 Batch Number,Vendor Name,Invoice Number, Line,Line Amount,Account Description,Issue Date ,Total Amount Paid
250613C,ENTEL UK LTD==================,127768,1,106.66,RADIO,01/07/2013,377.68
250613C,ENTEL UK LTD==================,127768,3,53.43,RADIO,01/07/2013,
250613C,ENTEL UK LTD==================,127768,4,43.11,RADIO,01/07/2013,
250613C,ENTEL UK LTD==================,127768,5,39.87,RADIO,01/07/2013,
250613C,ENTEL UK LTD==================,127768,6,55.67,RADIO,01/07/2013,
250613C,ENTEL UK LTD==================,127768,7,19,RADIO,01/07/2013,
250613C,ENTEL UK LTD==================,127768,8,50.94,RADIO,01/07/2013,
250613C,ENTEL UK LTD==================,127768,9,9,RADIO,01/07/2013,
260613C,*OCS GROUP UK LTD,176799,1,99,REFRESHMENTS,01/07/2013,714
260613C,*OCS GROUP UK LTD,176799,2,99,REFRESHMENTS,01/07/2013,
260613C,*OCS GROUP UK LTD,176799,3,510,REFRESHMENTS,01/07/2013,
260613C,*OCS GROUP UK LTD,176799,4,6,REFRESHMENTS,01/07/2013,
260613C,*OCS GROUP UK LTD,176902,1,212.5,REFRESHMENTS,01/07/2013,253.75
260613C,*OCS GROUP UK LTD,176902,2,41.25,REFRESHMENTS,01/07/2013,
260613C,*OCS GROUP UK LTD,176918,1,198,REFRESHMENTS,01/07/2013,594
260613C,*OCS GROUP UK LTD,176918,2,198,REFRESHMENTS,01/07/2013,
260613C,*OCS GROUP UK LTD,176918,3,198,REFRESHMENTS,01/07/2013,
260613C,*OCS GROUP UK LTD,176920,1,140.25,REFRESHMENTS,01/07/2013,"1,513.00"
260613C,*OCS GROUP UK LTD,176920,2,140.25,REFRESHMENTS,01/07/2013,
260613C,*OCS GROUP UK LTD,176920,3,"1,232.50",REFRESHMENTS,01/07/2013,
190613C,SUE HILL RECRUITMENT & SRV.LTD,45197,1,"1,121.25",FRS STAFF AGENCY,01/07/2013,"1,121.25"
140272,THAMES WATER UTILITIES LTD====,0423030577E,1,569.97,WATER & SEWERAGE RATES,01/07/2013,569.97
270613G,*PRINCIPAL CATERING CONSULTNTS,50974,1,"3,261.83",CATERING FIXTURES,01/07/2013,"3,261.83"
190613C,HAYS ACCOUNTANCY & FINANCE====,1003275712,1,696,FRS STAFF AGENCY,01/07/2013,696
250613C,*APTCO========================,101634,1,360,OPERATIONAL EQUIP-PURCHASE,01/07/2013,360
190613H,*SPRUE SAFETY PRODUCTS LTD====,1048383,1,"1,560.00",FIRE DETECTORS,01/07/2013,"2,440.00"
190613H,*SPRUE SAFETY PRODUCTS LTD====,1048383,2,880,FIRE DETECTORS,01/07/2013,
190613H,*SPRUE SAFETY PRODUCTS LTD====,1048384,1,"3,230.00",FIRE DETECTORS,01/07/2013,"8,059.00"
190613H,*SPRUE SAFETY PRODUCTS LTD====,1048384,2,"1,400.00",FIRE DETECTORS,01/07/2013,
190613H,*SPRUE SAFETY PRODUCTS LTD====,1048384,3,"3,429.00",FIRE DETECTORS,01/07/2013,
800021045,JAMES HUNTER (OUTFITTERS) LTD=,107089,1,280.58,CLOTHING,01/07/2013,421.66
800021045,JAMES HUNTER (OUTFITTERS) LTD=,107089,2,141.08,CLOTHING,01/07/2013,
260613C,INFOR (UNITED KINGDOM) LIMITED,11303735-GB04G,1,"4,280.00",MAINTENANCE & SUPPORT,01/07/2013,"4,280.00"
250613C,T&B CONTRACTORS LIMITED=======,11574,1,"5,866.00",STRATEGIC (NON CYCLICAL),01/07/2013,"5,866.00"
260613C,CMT===========================,135879,1,381.8,OPERATIONAL EQUIP-PURCHASE,01/07/2013,998.35
260613C,CMT===========================,135879,2,571.55,OPERATIONAL EQUIP-PURCHASE,01/07/2013,
260613C,CMT===========================,135879,3,45,OPERATIONAL EQUIP-PURCHASE,01/07/2013,
140272,AFFINITY WATER,1587526-0N,1,860.76,WATER & SEWERAGE RATES,01/07/2013,860.76
250613C,B NOKES CONTRACTS LTD,1793,1,430,DEVELOPMENT  EXPENSES-CONTRACT,01/07/2013,430
270613G,BRISTOL UNIFORMS LTD==========,216448,1,"3,759.82",CLOTHING,01/07/2013,"3,759.82"
260613H,TEAM PURPLE LIMITED===========,2550,1,139,CLOTHING,01/07/2013,278.42
260613H,TEAM PURPLE LIMITED===========,2550,2,39.82,CLOTHING,01/07/2013,
260613H,TEAM PURPLE LIMITED===========,2550,3,99.6,CLOTHING,01/07/2013,
140272,THAMES WATER UTILITIES LTD====,2574700531D,1,888.15,WATER & SEWERAGE RATES,01/07/2013,888.15
800021278,ADECCO UK LIMITED=============,26450286,1,427.04,FRS STAFF AGENCY,01/07/2013,427.04
800021279,ADECCO UK LIMITED=============,26450287,1,"1,333.44",FRS STAFF AGENCY,01/07/2013,"1,333.44"
800021280,ADECCO UK LIMITED=============,26450288,1,942.2,FRS STAFF AGENCY,01/07/2013,942.2
800021281,ADECCO UK LIMITED=============,26450289,1,952.7,FRS STAFF AGENCY,01/07/2013,952.7
800021282,ADECCO UK LIMITED=============,26450290,1,439.6,FRS STAFF AGENCY,01/07/2013,439.6
800021283,ADECCO UK LIMITED=============,26450291,1,945.42,FRS STAFF AGENCY,01/07/2013,945.42
800021284,ADECCO UK LIMITED=============,26450292,1,"1,908.90",FRS STAFF AGENCY,01/07/2013,"1,908.90"
800021285,ADECCO UK LIMITED=============,26450293,1,"1,483.68",FRS STAFF AGENCY,01/07/2013,"1,483.68"
800021286,ADECCO UK LIMITED=============,26450294,1,420.76,FRS STAFF AGENCY,01/07/2013,420.76
800021287,ADECCO UK LIMITED=============,26450295,1,560.34,FRS STAFF AGENCY,01/07/2013,560.34
800021288,ADECCO UK LIMITED=============,26450296,1,586.88,FRS STAFF AGENCY,01/07/2013,586.88
800021289,ADECCO UK LIMITED=============,26450297,1,439.6,FRS STAFF AGENCY,01/07/2013,439.6
800021290,ADECCO UK LIMITED=============,26450298,1,"1,445.40",FRS STAFF AGENCY,01/07/2013,"1,445.40"
800021291,ADECCO UK LIMITED=============,26450299,1,303.87,FRS STAFF AGENCY,01/07/2013,303.87
800021300,ADECCO UK LIMITED=============,26453263,1,"1,082.72",FRS STAFF AGENCY,01/07/2013,"1,082.72"
800021301,ADECCO UK LIMITED=============,26453264,1,"1,212.00",FRS STAFF AGENCY,01/07/2013,"1,212.00"
800021302,ADECCO UK LIMITED=============,26453265,1,"1,212.00",FRS STAFF AGENCY,01/07/2013,"1,212.00"
800021307,ADECCO UK LIMITED=============,26453266,1,573.6,FRS STAFF AGENCY,01/07/2013,573.6
800021308,ADECCO UK LIMITED=============,26453267,1,"1,075.50",FRS STAFF AGENCY,01/07/2013,"1,075.50"
800021311,ADECCO UK LIMITED=============,26453268,1,"1,333.71",FRS STAFF AGENCY,01/07/2013,"1,333.71"
800021312,ADECCO UK LIMITED=============,26453269,1,"2,222.85",FRS STAFF AGENCY,01/07/2013,"2,222.85"
800021313,ADECCO UK LIMITED=============,26453270,1,"2,222.85",FRS STAFF AGENCY,01/07/2013,"2,222.85"
800021314,ADECCO UK LIMITED=============,26453271,1,"2,222.85",FRS STAFF AGENCY,01/07/2013,"2,222.85"
800021296,ADECCO UK LIMITED=============,26453272,1,"1,066.56",FRS STAFF AGENCY,01/07/2013,"1,066.56"
800021297,ADECCO UK LIMITED=============,26453273,1,775.68,FRS STAFF AGENCY,01/07/2013,775.68
800021298,ADECCO UK LIMITED=============,26453274,1,"1,050.40",FRS STAFF AGENCY,01/07/2013,"1,050.40"
800021299,ADECCO UK LIMITED=============,26453275,1,"1,195.84",FRS STAFF AGENCY,01/07/2013,"1,195.84"
800021303,ADECCO UK LIMITED=============,26453276,1,"1,131.55",FRS STAFF AGENCY,01/07/2013,"1,131.55"
800021304,ADECCO UK LIMITED=============,26453277,1,678.93,FRS STAFF AGENCY,01/07/2013,678.93
800021305,ADECCO UK LIMITED=============,26453278,1,"1,131.55",FRS STAFF AGENCY,01/07/2013,"1,131.55"
800021306,ADECCO UK LIMITED=============,26453279,1,"1,131.55",FRS STAFF AGENCY,01/07/2013,"1,131.55"
800021292,ADECCO UK LIMITED=============,26453280,1,"1,403.65",FRS STAFF AGENCY,01/07/2013,"1,403.65"
800021293,ADECCO UK LIMITED=============,26453281,1,"1,340.80",FRS STAFF AGENCY,01/07/2013,"1,340.80"
800021294,ADECCO UK LIMITED=============,26453282,1,"1,372.23",FRS STAFF AGENCY,01/07/2013,"1,372.23"
800021295,ADECCO UK LIMITED=============,26453283,1,"1,466.50",FRS STAFF AGENCY,01/07/2013,"1,466.50"
800021309,ADECCO UK LIMITED=============,26453284,1,724.5,FRS STAFF AGENCY,01/07/2013,724.5
800021310,ADECCO UK LIMITED=============,26453285,1,289.8,FRS STAFF AGENCY,01/07/2013,289.8
250613C,BRISTOL UNIFORMS LTD==========,3101211,1,169.44,CLOTHING,01/07/2013,338.88
250613C,BRISTOL UNIFORMS LTD==========,3101211,2,169.44,CLOTHING,01/07/2013,
170613C,TEXTHELP SYSTEMS LIMITED======,31131,1,"6,995.00",PRESS OFFICE,01/07/2013,"6,995.00"
190613C,WALKER CONSTRUCTION (UK) LIMIT,33710,1,"100,244.00",DEVELOPMENT  EXPENSES-CONTRACT,01/07/2013,"100,244.00"
190613H,HUNTERS CONTRACTS LIMITED,342376,1,694.8,OFFICE FURNITURE,01/07/2013,694.8
260613C,CLASSIC VIDEO INTERNATIONAL===,37189,1,716,PUBLIC RELATIONS,01/07/2013,716
260613C,CLASSIC VIDEO INTERNATIONAL===,37197,1,657,PUBLIC RELATIONS,01/07/2013,657
260613C,CLASSIC VIDEO INTERNATIONAL===,37198,1,657,PUBLIC RELATIONS,01/07/2013,657
250613C,LOCAL GOVERNMENT ASSOCIATION==,40131311,1,265,PROFESSIONAL DEVELOPMENT,01/07/2013,265
250613C,FAHEY BUILDERS LTD============,5156,1,"22,802.68",DEVELOPMENT  EXPENSES-CONTRACT,01/07/2013,"22,802.68"
250613C,FAHEY BUILDERS LTD============,5159,1,"3,250.00",STRATEGIC (NON CYCLICAL),01/07/2013,"3,250.00"
250613C,FAHEY BUILDERS LTD============,5160,1,"5,278.00",STRATEGIC (NON CYCLICAL),01/07/2013,"5,278.00"
250613C,FAHEY BUILDERS LTD============,5161,1,450,STRATEGIC (NON CYCLICAL),01/07/2013,450
250613C,FAHEY BUILDERS LTD============,5162,1,"1,320.00",STRATEGIC (NON CYCLICAL),01/07/2013,"1,320.00"
190613C,INDEC BECKENHAM LTD===========,5549,1,"2,900.00",DEVELOPMENT  EXPENSES-CONTRACT,01/07/2013,"3,400.00"
190613C,INDEC BECKENHAM LTD===========,5549,2,500,DEVELOPMENT  EXPENSES-CONTRACT,01/07/2013,
140613E,MERLIN ELECTRICAL SERVICES LTD,6016,1,"1,645.00",STRATEGIC (NON CYCLICAL),01/07/2013,"1,645.00"
140272,THAMES WATER UTILITIES LTD====,65149-96346F,1,465,WATER & SEWERAGE RATES,01/07/2013,465
270613G,ACORN BUSINESS SUPPLIES LTD,7/I01390,1,260,OFFICE EQUIPMENT,01/07/2013,260
190613C,VIMPEX LIMITED================,77852,1,296.6,GENERAL CONSUMABLES,01/07/2013,296.6
260613C,AMBER CONSTRUCTION SERVICES LT,A3059,1,"6,866.26",DEVELOPT  EXPENSES-MISC,01/07/2013,"6,866.26"
270613G,LG BLAND ELECTRICAL & MECHANIC,B44441,1,"22,263.15",DEVELOPMENT  EXPENSES-CONTRACT,01/07/2013,"22,263.15"
260613C,PITNEY BOWES PURCHASE POWER,BA695735,1,"4,040.00",POSTAL SERVICES,01/07/2013,"4,040.00"
260613C,THAMES WATER UTILITIES LTD====,CBA1305906,1,"1,185.00",CURRENT HYDRANT COSTS,01/07/2013,"1,185.00"
260613C,THAMES WATER UTILITIES LTD====,CBA1306261,1,"1,185.00",CURRENT HYDRANT COSTS,01/07/2013,"1,185.00"
260613C,THAMES WATER UTILITIES LTD====,CBA1306262,1,"1,185.00",CURRENT HYDRANT COSTS,01/07/2013,"1,185.00"
260613C,THAMES WATER UTILITIES LTD====,CBA1306263,1,"1,185.00",CURRENT HYDRANT COSTS,01/07/2013,"1,185.00"
260613C,THAMES WATER UTILITIES LTD====,CBA1306265,1,"1,185.00",CURRENT HYDRANT COSTS,01/07/2013,"1,185.00"
260613C,THAMES WATER UTILITIES LTD====,CBA1306268,1,"1,185.00",CURRENT HYDRANT COSTS,01/07/2013,"1,185.00"
260613C,THAMES WATER UTILITIES LTD====,CBA1306270,1,"1,185.00",CURRENT HYDRANT COSTS,01/07/2013,"1,185.00"
260613C,THAMES WATER UTILITIES LTD====,CBA1306272,1,"1,185.00",CURRENT HYDRANT COSTS,01/07/2013,"1,185.00"
260613C,THAMES WATER UTILITIES LTD====,CBA1306273,1,"1,185.00",CURRENT HYDRANT COSTS,01/07/2013,"1,185.00"
260613C,THAMES WATER UTILITIES LTD====,CBA1306276,1,"1,185.00",CURRENT HYDRANT COSTS,01/07/2013,"1,185.00"
260613C,THAMES WATER UTILITIES LTD====,CBA1306282,1,"1,185.00",CURRENT HYDRANT COSTS,01/07/2013,"1,185.00"
260613C,THAMES WATER UTILITIES LTD====,CBA1306286,1,"1,185.00",CURRENT HYDRANT COSTS,01/07/2013,"1,185.00"
260613C,THAMES WATER UTILITIES LTD====,CBA1306289,1,"1,082.00",CURRENT HYDRANT COSTS,01/07/2013,"1,082.00"
260613C,THAMES WATER UTILITIES LTD====,CBA1306291,1,419,CURRENT HYDRANT COSTS,01/07/2013,419
260613C,THAMES WATER UTILITIES LTD====,CBA1306292,1,"1,082.00",CURRENT HYDRANT COSTS,01/07/2013,"1,082.00"
260613C,THAMES WATER UTILITIES LTD====,CBA1306295,1,"1,082.00",CURRENT HYDRANT COSTS,01/07/2013,"1,082.00"
260613C,THAMES WATER UTILITIES LTD====,CBA1306297,1,511.5,CURRENT HYDRANT COSTS,01/07/2013,511.5
260613C,THAMES WATER UTILITIES LTD====,CBA1306302,1,"1,082.00",CURRENT HYDRANT COSTS,01/07/2013,"1,082.00"
260613C,THAMES WATER UTILITIES LTD====,CBA1306303,1,"1,082.00",CURRENT HYDRANT COSTS,01/07/2013,"1,082.00"
260613C,THAMES WATER UTILITIES LTD====,CBA1306353,1,459,CURRENT HYDRANT COSTS,01/07/2013,459
260613C,THAMES WATER UTILITIES LTD====,CBA1306355,1,436,CURRENT HYDRANT COSTS,01/07/2013,436
260613C,THAMES WATER UTILITIES LTD====,CBA1306356,1,"1,082.00",CURRENT HYDRANT COSTS,01/07/2013,"1,082.00"
260613C,THAMES WATER UTILITIES LTD====,CBA1306358,1,"1,082.00",CURRENT HYDRANT COSTS,01/07/2013,"1,082.00"
260613C,THAMES WATER UTILITIES LTD====,CBA1306359,1,"1,082.00",HYDRANTS,01/07/2013,"1,082.00"
200613G,*GRAFTON MERCHANTING GB LTD,CRO/342478,1,199.68,OPERATIONAL EQUIP-PURCHASE,01/07/2013,519.36
200613G,*GRAFTON MERCHANTING GB LTD,CRO/342478,2,319.68,OPERATIONAL EQUIP-PURCHASE,01/07/2013,
250613C,KIER BUILDING SERV ENGINEERS==,F00042969,1,"2,832.64",STRATEGIC (NON CYCLICAL),01/07/2013,"2,832.64"
140274,JCT600 CONTRACTS LIMITED======,INV00036409,1,"4,567.60",LEASE CAR CHARGES,01/07/2013,"5,484.13"
140274,JCT600 CONTRACTS LIMITED======,INV00036409,2,916.53,P/PAYMTS-CAR LEASG-RENTAL,01/07/2013,
140274,JCT600 CONTRACTS LIMITED======,INV00036409,3,-474.63,VAT CAR LEASING,01/07/2013,
140274,JCT600 CONTRACTS LIMITED======,INV00036409,4,474.63,LEASE CAR CHARGES,01/07/2013,
140274,JCT600 CONTRACTS LIMITED======,INV00036410,1,"3,273.39",LEASE CAR CHARGES,01/07/2013,"3,995.95"
140274,JCT600 CONTRACTS LIMITED======,INV00036410,2,722.56,P/PAYMTS-CAR LEASG-RENTAL,01/07/2013,
140274,JCT600 CONTRACTS LIMITED======,INV00036410,3,-339.88,VAT CAR LEASING,01/07/2013,
140274,JCT600 CONTRACTS LIMITED======,INV00036410,4,339.88,LEASE CAR CHARGES,01/07/2013,
140274,JCT600 CONTRACTS LIMITED======,INV00036411,1,"4,615.27",LEASE CAR CHARGES,01/07/2013,"5,541.36"
140274,JCT600 CONTRACTS LIMITED======,INV00036411,2,926.09,P/PAYMTS-CAR LEASG-RENTAL,01/07/2013,
140274,JCT600 CONTRACTS LIMITED======,INV00036411,3,-479.84,VAT CAR LEASING,01/07/2013,
140274,JCT600 CONTRACTS LIMITED======,INV00036411,4,479.84,LEASE CAR CHARGES,01/07/2013,
140274,JCT600 CONTRACTS LIMITED======,INV00037162,1,"4,809.02",LEASE CAR CHARGES,01/07/2013,"6,011.28"
140274,JCT600 CONTRACTS LIMITED======,INV00037162,2,"1,202.26",P/PAYMTS-CAR LEASG-RENTAL,01/07/2013,
140274,JCT600 CONTRACTS LIMITED======,INV00037162,3,-532.64,VAT CAR LEASING,01/07/2013,
140274,JCT600 CONTRACTS LIMITED======,INV00037162,4,532.64,LEASE CAR CHARGES,01/07/2013,
250613C,EDE'S (UK) LTD================,INV12368,1,"3,466.80",STRATEGIC (NON CYCLICAL),01/07/2013,"3,466.80"
250613C,BRISSCO SIGNS & GRAPHICS======,INV80017,1,508,GENERAL CONSUMABLES,01/07/2013,508
270613G,CHANGING YOUNG MINDS,MAY-JUNE2013,1,450,PROFESSIONAL DEVELOPMENT,01/07/2013,450
250613C,RADIOCOMS SYSTEMS LIMITED=====,OP/I011443,1,325,RADIO,01/07/2013,325
250613C,RADIOCOMS SYSTEMS LIMITED=====,OP/I011461,1,210,RADIO,01/07/2013,"2,935.00"
250613C,RADIOCOMS SYSTEMS LIMITED=====,OP/I011461,2,"2,215.00",RADIO,01/07/2013,
250613C,RADIOCOMS SYSTEMS LIMITED=====,OP/I011461,3,10,RADIO,01/07/2013,
250613C,RADIOCOMS SYSTEMS LIMITED=====,OP/I011461,4,500,RADIO,01/07/2013,
210613C,HUNTER LODGE==================,SI-05190,1,"1,705.00",ADVERTISING,01/07/2013,"1,705.00"
140279,THOMPSONS SOLICITORS==========,8790,2,"2,500.00",CLAIMANT COSTS AGREED,02/07/2013,"2,500.00"
270613H,WOLF SAFETY LAMP CO LTD=======,20187,1,"2,500.00",GENERAL CONSUMABLES,04/07/2013,"7,540.00"
270613H,WOLF SAFETY LAMP CO LTD=======,20187,2,"5,040.00",GENERAL CONSUMABLES,04/07/2013,
010713G,*OCS GROUP UK LTD,165649,1,291.95,STATIONERY CONSUMABLES,04/07/2013,291.95
240613E,INTUITIVE SYSTEMS AND NETWORKS,1861,1,"3,750.00",PURCHASES-COMPUTER/EQUIPMENT,04/07/2013,"3,750.00"
140278,OGILVIE FLEET LTD=============,241984,1,"3,641.06",LEASE CAR CHARGES,04/07/2013,"4,763.40"
140278,OGILVIE FLEET LTD=============,241984,2,"1,122.34",P/PAYMTS-CAR LEASG-RENTAL,04/07/2013,
140278,OGILVIE FLEET LTD=============,241984,3,-424.87,VAT CAR LEASING,04/07/2013,
140278,OGILVIE FLEET LTD=============,241984,4,424.87,LEASE CAR CHARGES,04/07/2013,
140278,GOOD ENERGY===================,003016060X,1,938,ELECTRICITY,04/07/2013,938
270613H,*PRINCIPAL CATERING CONSULTNTS,47825,1,389.25,REFRESHMENTS,04/07/2013,389.25
280613C,BT GLOBAL SERVICES============,790095235,1,500,TELECOMMUNICATIONS,04/07/2013,500
140278,THAMES WATER UTILITIES LTD====,0833660263*,1,"1,680.71",WATER & SEWERAGE RATES,04/07/2013,"1,680.71"
280613H,AFFINITY WATER,101024017,1,818,CURRENT HYDRANT COSTS,04/07/2013,818
010713E,REAM CONTRACTS LTD============,10118,1,"58,630.99",DEVELOPMENT  EXPENSES-CONTRACT,04/07/2013,"58,630.99"
800021051,JAMES HUNTER (OUTFITTERS) LTD=,107095,1,273.79,CLOTHING,04/07/2013,273.79
800021053,JAMES HUNTER (OUTFITTERS) LTD=,107097,1,141.08,CLOTHING,04/07/2013,426.84
800021053,JAMES HUNTER (OUTFITTERS) LTD=,107097,2,5.18,CLOTHING,04/07/2013,
800021053,JAMES HUNTER (OUTFITTERS) LTD=,107097,3,280.58,CLOTHING,04/07/2013,
800021064,JAMES HUNTER (OUTFITTERS) LTD=,107108,1,345.41,CLOTHING,04/07/2013,345.41
800021065,JAMES HUNTER (OUTFITTERS) LTD=,107109,1,283.77,CLOTHING,04/07/2013,283.77
280613C,BUSINESS EDGE LIMITED,10716,1,"2,490.00",STRATEGIC (NON CYCLICAL),04/07/2013,"2,490.00"
280613C,BT GLOBAL SERVICES============,1126421,1,541.66,TELECOMMUNICATIONS,04/07/2013,541.66
280613C,KIER BUILDING SERV ENGINEERS==,12120964,1,"30,061.71",TACTICAL DAY TO DAY,04/07/2013,"71,210.41"
280613C,KIER BUILDING SERV ENGINEERS==,12120964,2,523.32,TACTICAL DAY TO DAY,04/07/2013,
280613C,KIER BUILDING SERV ENGINEERS==,12120964,3,"1,745.65",TACTICAL DAY TO DAY,04/07/2013,
280613C,KIER BUILDING SERV ENGINEERS==,12120964,4,"1,882.77",TACTICAL DAY TO DAY,04/07/2013,
280613C,KIER BUILDING SERV ENGINEERS==,12120964,5,"28,919.33",STRATEGIC (CYCLICAL),04/07/2013,
280613C,KIER BUILDING SERV ENGINEERS==,12120964,6,808.13,STRATEGIC (CYCLICAL),04/07/2013,
280613C,KIER BUILDING SERV ENGINEERS==,12120964,7,"1,488.35",STRATEGIC (CYCLICAL),04/07/2013,
280613C,KIER BUILDING SERV ENGINEERS==,12120964,8,"5,781.15",STRATEGIC (CYCLICAL),04/07/2013,
270613H,MAYFAIR'S COACHES LTD=========,12853,1,550,CONTRACT HIRE,04/07/2013,550
280613H,ATKINS LIMITED================,13010111,1,"12,100.00",CONSULTANTS,04/07/2013,"16,080.00"
280613H,ATKINS LIMITED================,13010111,2,"3,980.00",CONSULTANTS,04/07/2013,
260613C,BUREAU VERITAS HS&E LTD=======,13010514,1,"94,508.74",SCIENTIFIC SERVICES,04/07/2013,"94,508.74"
010713F,PA ASSOCIATES (UK) LTD========,13050,1,"33,193.58",DEVELOPMENT  EXPENSES-CONTRACT,04/07/2013,"33,193.58"
010713E,GP CONTRACTS==================,14742,1,395,OFFICE FURNITURE,04/07/2013,395
180613E,B NOKES CONTRACTS LTD,1796,1,745,REMOVALS,04/07/2013,745
190613C,MERLIN ELECTRICAL SERVICES LTD,1876,1,481,STRATEGIC (NON CYCLICAL),04/07/2013,481
010713E,BRISTOL UNIFORMS LTD==========,207599,1,"1,351.00",CLOTHING,04/07/2013,"1,351.00"
280613C,ARKAS LIMITED=================,24005,1,"1,145.32",TACTICAL DAY TO DAY,04/07/2013,"3,464.89"
280613C,ARKAS LIMITED=================,24005,2,"2,319.57",STRATEGIC (CYCLICAL),04/07/2013,
280613C,ARKAS LIMITED=================,24012,1,"14,172.70",STRATEGIC (CYCLICAL),04/07/2013,"14,172.70"
010713F,ARKAS LIMITED=================,24025,1,682,STRATEGIC (NON CYCLICAL),04/07/2013,682
800021371,ADECCO UK LIMITED=============,26402701,1,"1,357.44",FRS STAFF AGENCY,04/07/2013,"1,357.44"
140278,THAMES WATER UTILITIES LTD====,2963180521/,1,666.92,WATER & SEWERAGE RATES,04/07/2013,666.92
270613H,NWFS==========================,30162,1,"7,948.00",PROFESSIONAL DEVELOPMENT,04/07/2013,"7,948.00"
010713E,BRISTOL UNIFORMS LTD==========,3101162,1,131.46,CLOTHING,04/07/2013,262.92
010713E,BRISTOL UNIFORMS LTD==========,3101162,2,131.46,CLOTHING,04/07/2013,
010713G,BRISTOL UNIFORMS LTD==========,3101213,1,169.44,CLOTHING,04/07/2013,338.88
010713G,BRISTOL UNIFORMS LTD==========,3101213,2,169.44,CLOTHING,04/07/2013,
190613C,W.GILCHRIST & CO,3464,1,635,PURCHASE,04/07/2013,782.5
190613C,W.GILCHRIST & CO,3464,2,147.5,PURCHASE,04/07/2013,
240613E,PCS CONSULTING SERVICES LTD===,3518,1,"1,978.00",PURCHASES-COMPUTER/EQUIPMENT,04/07/2013,"1,978.00"
140278,OPHTHALMIC TECHNOLOGIES LTD,35365,1,"4,437.86",MEDICAL EXPENSES,04/07/2013,"4,437.86"
270613H,CLASSIC VIDEO INTERNATIONAL===,37218,1,781,PUBLIC RELATIONS,04/07/2013,781
270613H,CLASSIC VIDEO INTERNATIONAL===,37219,1,711,PUBLIC RELATIONS,04/07/2013,711
270613H,CLASSIC VIDEO INTERNATIONAL===,37233,1,781,PUBLIC RELATIONS,04/07/2013,781
800020964,*BURLINGTON UNIFORMS LTD,418384,1,25.95,CLOTHING,04/07/2013,517.71
800020964,*BURLINGTON UNIFORMS LTD,418384,2,20.15,CLOTHING,04/07/2013,
800020964,*BURLINGTON UNIFORMS LTD,418384,3,29.29,CLOTHING,04/07/2013,
800020964,*BURLINGTON UNIFORMS LTD,418384,4,58.58,CLOTHING,04/07/2013,
800020964,*BURLINGTON UNIFORMS LTD,418384,5,191.87,CLOTHING,04/07/2013,
800020964,*BURLINGTON UNIFORMS LTD,418384,6,191.87,CLOTHING,04/07/2013,
010713G,GATWICK AIRPORT FIRE & RESCUE,4500003311,1,515.83,PROFESSIONAL DEVELOPMENT,04/07/2013,515.83
140278,BRITISH GAS BUSINESS==========,45712014/1,1,"10,311.16",ELECTRICITY,04/07/2013,"10,311.16"
010713E,REGENT OFFICE CARE LTD========,5385,1,158.7,STRATEGIC (CYCLICAL),04/07/2013,"5,554.50"
010713E,REGENT OFFICE CARE LTD========,5385,2,158.7,STRATEGIC (CYCLICAL),04/07/2013,
010713E,REGENT OFFICE CARE LTD========,5385,3,190.44,STRATEGIC (CYCLICAL),04/07/2013,
010713E,REGENT OFFICE CARE LTD========,5385,4,190.44,STRATEGIC (CYCLICAL),04/07/2013,
010713E,REGENT OFFICE CARE LTD========,5385,5,190.44,STRATEGIC (CYCLICAL),04/07/2013,
010713E,REGENT OFFICE CARE LTD========,5385,6,158.7,STRATEGIC (CYCLICAL),04/07/2013,
010713E,REGENT OFFICE CARE LTD========,5385,7,190.44,STRATEGIC (CYCLICAL),04/07/2013,
010713E,REGENT OFFICE CARE LTD========,5385,8,190.44,STRATEGIC (CYCLICAL),04/07/2013,
010713E,REGENT OFFICE CARE LTD========,5385,9,190.44,STRATEGIC (CYCLICAL),04/07/2013,
010713E,REGENT OFFICE CARE LTD========,5385,10,190.44,STRATEGIC (CYCLICAL),04/07/2013,
010713E,REGENT OFFICE CARE LTD========,5385,11,158.7,STRATEGIC (CYCLICAL),04/07/2013,
010713E,REGENT OFFICE CARE LTD========,5385,12,158.7,STRATEGIC (CYCLICAL),04/07/2013,
010713E,REGENT OFFICE CARE LTD========,5385,13,158.7,STRATEGIC (CYCLICAL),04/07/2013,
010713E,REGENT OFFICE CARE LTD========,5385,14,190.44,STRATEGIC (CYCLICAL),04/07/2013,
010713E,REGENT OFFICE CARE LTD========,5385,15,190.44,STRATEGIC (CYCLICAL),04/07/2013,
010713E,REGENT OFFICE CARE LTD========,5385,16,158.7,STRATEGIC (CYCLICAL),04/07/2013,
010713E,REGENT OFFICE CARE LTD========,5385,17,158.7,STRATEGIC (CYCLICAL),04/07/2013,
010713E,REGENT OFFICE CARE LTD========,5385,18,190.44,STRATEGIC (CYCLICAL),04/07/2013,
010713E,REGENT OFFICE CARE LTD========,5385,19,190.44,STRATEGIC (CYCLICAL),04/07/2013,
010713E,REGENT OFFICE CARE LTD========,5385,20,158.7,STRATEGIC (CYCLICAL),04/07/2013,
010713E,REGENT OFFICE CARE LTD========,5385,21,158.7,STRATEGIC (CYCLICAL),04/07/2013,
010713E,REGENT OFFICE CARE LTD========,5385,22,158.7,STRATEGIC (CYCLICAL),04/07/2013,
010713E,REGENT OFFICE CARE LTD========,5385,23,190.44,STRATEGIC (CYCLICAL),04/07/2013,
010713E,REGENT OFFICE CARE LTD========,5385,24,190.44,STRATEGIC (CYCLICAL),04/07/2013,
010713E,REGENT OFFICE CARE LTD========,5385,25,158.7,STRATEGIC (CYCLICAL),04/07/2013,
010713E,REGENT OFFICE CARE LTD========,5385,26,158.7,STRATEGIC (CYCLICAL),04/07/2013,
010713E,REGENT OFFICE CARE LTD========,5385,27,158.7,STRATEGIC (CYCLICAL),04/07/2013,
010713E,REGENT OFFICE CARE LTD========,5385,28,158.7,STRATEGIC (CYCLICAL),04/07/2013,
010713E,REGENT OFFICE CARE LTD========,5385,29,158.7,STRATEGIC (CYCLICAL),04/07/2013,
010713E,REGENT OFFICE CARE LTD========,5385,30,190.44,STRATEGIC (CYCLICAL),04/07/2013,
010713E,REGENT OFFICE CARE LTD========,5385,31,190.44,STRATEGIC (CYCLICAL),04/07/2013,
010713E,REGENT OFFICE CARE LTD========,5385,32,158.7,STRATEGIC (CYCLICAL),04/07/2013,
140278,THAMES WATER UTILITIES LTD====,5552098535G,1,587.06,WATER & SEWERAGE RATES,04/07/2013,587.06
010713G,URS SCOTT WILSON LIMITED,5559208,1,"3,378.34",PROF FEES-MISCELLANEOUS,04/07/2013,"3,378.34"
800021090,*GREENHAM TRADING LTD=========,5593162,1,165.6,OPERATIONAL EQUIP-PURCHASE,04/07/2013,331.2
800021090,*GREENHAM TRADING LTD=========,5593162,2,165.6,OPERATIONAL EQUIP-PURCHASE,04/07/2013,
902297,BANK OF SCOTLAND,593.485.01.108000/0713,1,"229,381.86",VEHICLES,04/07/2013,"229,381.86"
140272,ESSEX & SUFFOLK WATER PLC=====,60311490001XO,1,"2,410.30",WATER & SEWERAGE RATES,04/07/2013,"2,410.30"
140278,LONDON PENSIONS FUND AUTHORITY,6476,1,"86,629.88",LOCAL GOVT PENSION SCHEME PAYM,04/07/2013,"86,629.88"
280613H,H V SIER LTD==================,7/I43498,1,441.36,STATIONERY CONSUMABLES,04/07/2013,441.36
270613H,TWO SERVICES LTD==============,71116,1,681.5,CATERING EQUIPMENT,04/07/2013,"1,394.50"
270613H,TWO SERVICES LTD==============,71116,2,713,CATERING EQUIPMENT,04/07/2013,
010713E,SHARPE PRITCHARD==============,76431,1,"5,552.00",GENERAL,04/07/2013,"5,552.00"
280613C,SIGN GRAPHIC DESIGN,919/668,1,400,FILM & VIDEO,04/07/2013,400
240613H,SMITHS DETECTION WATFORD LTD.,92015639,1,230,OPERATIONAL EQUIP-PURCHASE,04/07/2013,460
240613H,SMITHS DETECTION WATFORD LTD.,92015639,2,100,OPERATIONAL EQUIP-PURCHASE,04/07/2013,
240613H,SMITHS DETECTION WATFORD LTD.,92015639,3,100,OPERATIONAL EQUIP-PURCHASE,04/07/2013,
240613H,SMITHS DETECTION WATFORD LTD.,92015639,4,30,OPERATIONAL EQUIP-PURCHASE,04/07/2013,
010713G,FIRE SERVICE COLLEGE LTD======,92998968,1,"1,360.00",PROFESSIONAL DEVELOPMENT,04/07/2013,"2,408.00"
010713G,FIRE SERVICE COLLEGE LTD======,92998968,2,"1,048.00",PROFESSIONAL DEVELOPMENT,04/07/2013,
210613H,CAPITA SECURE INFO SOLUTIONS,93030758,1,"53,298.00",CAMS CONTRACT,04/07/2013,"53,298.00"
280613C,FIRE SERVICE COLLEGE LTD======,93041154,1,350,GENERAL,04/07/2013,350
280613H,CPL PETROLEUM=================,9726410,1,"3,311.61",FUEL,04/07/2013,"3,311.61"
280613H,CPL PETROLEUM=================,9752673,1,"2,223.00",FUEL,04/07/2013,"2,223.00"
280613H,CPL PETROLEUM=================,9764458,1,"4,384.40",FUEL,04/07/2013,"4,384.40"
280613C,LPFA CONTRIBUTIONS ACCOUNT====,ACT795,1,"1,415.00",CONSULTANTS,04/07/2013,"1,415.00"
280613C,BOON EDAM LTD,C10484,1,797,STRATEGIC (NON CYCLICAL),04/07/2013,797
280613C,BOON EDAM LTD,C10485,1,428,STRATEGIC (NON CYCLICAL),04/07/2013,428
010713G,THAMES WATER UTILITIES LTD====,CBA1306465,1,"1,185.00",CURRENT HYDRANT COSTS,04/07/2013,"1,185.00"
010713G,THAMES WATER UTILITIES LTD====,CBA1306466,1,"1,185.00",CURRENT HYDRANT COSTS,04/07/2013,"1,185.00"
010713G,THAMES WATER UTILITIES LTD====,CBA1306468,1,"1,185.00",CURRENT HYDRANT COSTS,04/07/2013,"1,185.00"
010713G,THAMES WATER UTILITIES LTD====,CBA1306470,1,"1,082.00",CURRENT HYDRANT COSTS,04/07/2013,"1,082.00"
010713G,THAMES WATER UTILITIES LTD====,CBA1306471,1,"1,082.00",CURRENT HYDRANT COSTS,04/07/2013,"1,082.00"
010713G,THAMES WATER UTILITIES LTD====,CBA1306472,1,436,CURRENT HYDRANT COSTS,04/07/2013,436
010713G,THAMES WATER UTILITIES LTD====,CBA1306474,1,511.5,HYDRANTS,04/07/2013,511.5
010713G,THAMES WATER UTILITIES LTD====,CBA1306475,1,"1,082.00",HYDRANTS,04/07/2013,"1,082.00"
010713G,THAMES WATER UTILITIES LTD====,CBA1306476,1,511.5,CURRENT HYDRANT COSTS,04/07/2013,511.5
010713G,THAMES WATER UTILITIES LTD====,CBA1306477,1,"1,800.00",CURRENT HYDRANT COSTS,04/07/2013,"1,800.00"
010713G,THAMES WATER UTILITIES LTD====,CBA1306518,1,"1,185.00",CURRENT HYDRANT COSTS,04/07/2013,"1,185.00"
270613H,KIER BUILDING SERV ENGINEERS==,F00043023,1,"2,833.20",CATERING FIXTURES,04/07/2013,"2,833.20"
280613C,KIER BUILDING SERV ENGINEERS==,F00043028,1,"1,440.98",STRATEGIC (NON CYCLICAL),04/07/2013,"7,239.34"
280613C,KIER BUILDING SERV ENGINEERS==,F00043028,2,888.2,STRATEGIC (NON CYCLICAL),04/07/2013,
280613C,KIER BUILDING SERV ENGINEERS==,F00043028,3,292.16,TACTICAL DAY TO DAY,04/07/2013,
280613C,KIER BUILDING SERV ENGINEERS==,F00043028,4,50.01,TACTICAL DAY TO DAY,04/07/2013,
280613C,KIER BUILDING SERV ENGINEERS==,F00043028,5,"1,056.00",STRATEGIC (NON CYCLICAL),04/07/2013,
280613C,KIER BUILDING SERV ENGINEERS==,F00043028,6,558.45,STRATEGIC (NON CYCLICAL),04/07/2013,
280613C,KIER BUILDING SERV ENGINEERS==,F00043028,7,209,TACTICAL DAY TO DAY,04/07/2013,
280613C,KIER BUILDING SERV ENGINEERS==,F00043028,8,64.76,TACTICAL DAY TO DAY,04/07/2013,
280613C,KIER BUILDING SERV ENGINEERS==,F00043028,9,25.08,TACTICAL DAY TO DAY,04/07/2013,
280613C,KIER BUILDING SERV ENGINEERS==,F00043028,10,16.19,TACTICAL DAY TO DAY,04/07/2013,
280613C,KIER BUILDING SERV ENGINEERS==,F00043028,11,153.25,TACTICAL DAY TO DAY,04/07/2013,
280613C,KIER BUILDING SERV ENGINEERS==,F00043028,12,48.57,TACTICAL DAY TO DAY,04/07/2013,
280613C,KIER BUILDING SERV ENGINEERS==,F00043028,13,655.05,STRATEGIC (NON CYCLICAL),04/07/2013,
280613C,KIER BUILDING SERV ENGINEERS==,F00043028,14,423.1,STRATEGIC (NON CYCLICAL),04/07/2013,
280613C,KIER BUILDING SERV ENGINEERS==,F00043028,15,"1,358.54",STRATEGIC (NON CYCLICAL),04/07/2013,
010713G,KIER BUILDING SERV ENGINEERS==,F00043074,1,"4,107.06",STRATEGIC (CYCLICAL),04/07/2013,"4,107.06"
010713G,WM ENGINEERING SERVICES LTD===,I-4527,1,274,TACTICAL DAY TO DAY,04/07/2013,274
210613C,BLUESKY SHAREPOINT CONSULTING,INV-1198,1,"1,700.00",CONSULTANTS,04/07/2013,"1,700.00"
140278,JCT600 CONTRACTS LIMITED======,INV00036412,1,"4,371.13",LEASE CAR CHARGES,04/07/2013,"5,501.60"
140278,JCT600 CONTRACTS LIMITED======,INV00036412,2,"1,130.47",P/PAYMTS-CAR LEASG-RENTAL,04/07/2013,
140278,JCT600 CONTRACTS LIMITED======,INV00036412,3,-483.09,VAT CAR LEASING,04/07/2013,
140278,JCT600 CONTRACTS LIMITED======,INV00036412,4,483.09,LEASE CAR CHARGES,04/07/2013,
140278,JCT600 CONTRACTS LIMITED======,INV00036413,1,"4,962.03",LEASE CAR CHARGES,04/07/2013,"6,354.88"
140278,JCT600 CONTRACTS LIMITED======,INV00036413,2,"1,392.85",P/PAYMTS-CAR LEASG-RENTAL,04/07/2013,
140278,JCT600 CONTRACTS LIMITED======,INV00036413,3,-575.32,VAT CAR LEASING,04/07/2013,
140278,JCT600 CONTRACTS LIMITED======,INV00036413,4,575.32,LEASE CAR CHARGES,04/07/2013,
140278,JCT600 CONTRACTS LIMITED======,INV00036905,1,"4,148.28",LEASE CAR CHARGES,04/07/2013,"5,047.08"
140278,JCT600 CONTRACTS LIMITED======,INV00036905,2,898.8,P/PAYMTS-CAR LEASG-RENTAL,04/07/2013,
140278,JCT600 CONTRACTS LIMITED======,INV00036905,3,-451,VAT CAR LEASING,04/07/2013,
140278,JCT600 CONTRACTS LIMITED======,INV00036905,4,451,LEASE CAR CHARGES,04/07/2013,
140278,JCT600 CONTRACTS LIMITED======,INV00037241,1,"2,082.40",LEASE CAR CHARGES,04/07/2013,"2,082.40"
280613H,BRISSCO SIGNS & GRAPHICS======,INV79572,1,"2,070.00",HYDRANTS,04/07/2013,"2,407.90"
280613H,BRISSCO SIGNS & GRAPHICS======,INV79572,2,337.9,HYDRANTS,04/07/2013,
010713E,JACKSON LIFT GROUP============,JS326030 M,1,16.25,STRATEGIC (CYCLICAL),04/07/2013,"2,506.09"
010713E,JACKSON LIFT GROUP============,JS326030 M,2,82.92,STRATEGIC (CYCLICAL),04/07/2013,
010713E,JACKSON LIFT GROUP============,JS326030 M,3,32.92,STRATEGIC (CYCLICAL),04/07/2013,
010713E,JACKSON LIFT GROUP============,JS326030 M,4,32.92,STRATEGIC (CYCLICAL),04/07/2013,
010713E,JACKSON LIFT GROUP============,JS326030 M,5,32.92,STRATEGIC (CYCLICAL),04/07/2013,
010713E,JACKSON LIFT GROUP============,JS326030 M,6,82.92,STRATEGIC (CYCLICAL),04/07/2013,
010713E,JACKSON LIFT GROUP============,JS326030 M,7,82.92,STRATEGIC (CYCLICAL),04/07/2013,
010713E,JACKSON LIFT GROUP============,JS326030 M,8,82.92,STRATEGIC (CYCLICAL),04/07/2013,
010713E,JACKSON LIFT GROUP============,JS326030 M,9,82.92,STRATEGIC (CYCLICAL),04/07/2013,
010713E,JACKSON LIFT GROUP============,JS326030 M,10,82.92,STRATEGIC (CYCLICAL),04/07/2013,
010713E,JACKSON LIFT GROUP============,JS326030 M,11,82.92,STRATEGIC (CYCLICAL),04/07/2013,
010713E,JACKSON LIFT GROUP============,JS326030 M,12,82.92,STRATEGIC (CYCLICAL),04/07/2013,
010713E,JACKSON LIFT GROUP============,JS326030 M,13,82.92,STRATEGIC (CYCLICAL),04/07/2013,
010713E,JACKSON LIFT GROUP============,JS326030 M,14,108.92,STRATEGIC (CYCLICAL),04/07/2013,
010713E,JACKSON LIFT GROUP============,JS326030 M,15,41.25,STRATEGIC (CYCLICAL),04/07/2013,
010713E,JACKSON LIFT GROUP============,JS326030 M,16,41.25,STRATEGIC (CYCLICAL),04/07/2013,
010713E,JACKSON LIFT GROUP============,JS326030 M,17,104.17,STRATEGIC (CYCLICAL),04/07/2013,
010713E,JACKSON LIFT GROUP============,JS326030 M,18,104.17,STRATEGIC (CYCLICAL),04/07/2013,
010713E,JACKSON LIFT GROUP============,JS326030 M,19,104.17,STRATEGIC (CYCLICAL),04/07/2013,
010713E,JACKSON LIFT GROUP============,JS326030 M,20,104.17,STRATEGIC (CYCLICAL),04/07/2013,
010713E,JACKSON LIFT GROUP============,JS326030 M,21,104.2,STRATEGIC (CYCLICAL),04/07/2013,
010713E,JACKSON LIFT GROUP============,JS326030 M,22,104.2,STRATEGIC (CYCLICAL),04/07/2013,
010713E,JACKSON LIFT GROUP============,JS326030 M,23,41.5,STRATEGIC (CYCLICAL),04/07/2013,
010713E,JACKSON LIFT GROUP============,JS326030 M,24,82.16,STRATEGIC (CYCLICAL),04/07/2013,
010713E,JACKSON LIFT GROUP============,JS326030 M,25,41.5,STRATEGIC (CYCLICAL),04/07/2013,
010713E,JACKSON LIFT GROUP============,JS326030 M,26,82.92,STRATEGIC (CYCLICAL),04/07/2013,
010713E,JACKSON LIFT GROUP============,JS326030 M,27,41.45,STRATEGIC (CYCLICAL),04/07/2013,
010713E,JACKSON LIFT GROUP============,JS326030 M,28,82.92,STRATEGIC (CYCLICAL),04/07/2013,
010713E,JACKSON LIFT GROUP============,JS326030 M,29,82.92,STRATEGIC (CYCLICAL),04/07/2013,
010713E,JACKSON LIFT GROUP============,JS326030 M,30,82.92,STRATEGIC (CYCLICAL),04/07/2013,
010713E,JACKSON LIFT GROUP============,JS326030 M,31,82.92,STRATEGIC (CYCLICAL),04/07/2013,
010713E,JACKSON LIFT GROUP============,JS326030 M,32,41.25,STRATEGIC (CYCLICAL),04/07/2013,
010713E,JACKSON LIFT GROUP============,JS326030 M,33,82.92,STRATEGIC (CYCLICAL),04/07/2013,
010713E,JACKSON LIFT GROUP============,JS326030 M,34,82.92,STRATEGIC (CYCLICAL),04/07/2013,
240613E,BENNETT MECHANICAL SERVICES LT,L4871,1,"17,714.27",DEVELOPMENT  EXPENSES-CONTRACT,04/07/2013,"17,714.27"
210613C,BENNETT MECHANICAL SERVICES LT,L4873,1,"3,420.00",STRATEGIC (NON CYCLICAL),04/07/2013,"3,420.00"
140278,ARVAL UK LTD,RI0000751148,1,507.54,LEASE CAR CHARGES,04/07/2013,507.54
140278,ARVAL UK LTD,RI0000751148,2,-42.23,VAT CAR LEASING,04/07/2013,
140278,ARVAL UK LTD,RI0000751148,3,42.23,LEASE CAR CHARGES,04/07/2013,
140277,MAYPLACE PROPERTY SERVICES LIM,SI-1015,1,"5,517.76",STRATEGIC (NON CYCLICAL),04/07/2013,"9,817.76"
140277,MAYPLACE PROPERTY SERVICES LIM,SI-1015,2,"4,300.00",STRATEGIC (NON CYCLICAL),04/07/2013,
250613C,*OCS GROUP UK LTD,178821,1,"4,411.50",REFRESHMENTS,08/07/2013,"4,411.50"
250613C,SUE HILL RECRUITMENT & SRV.LTD,45291,1,"1,121.25",FRS STAFF AGENCY,08/07/2013,"1,121.25"
030713C,ASSOC FOR GEOGRAPHIC INFO,70115,1,365,SUBSCRIPTIONS,08/07/2013,365
270613G,FIRST PRODUCTS (SUSSEX) LTD,02/136,1,"2,000.00",GENERAL CONSUMABLES,08/07/2013,"4,000.00"
270613G,FIRST PRODUCTS (SUSSEX) LTD,02/136,2,"2,000.00",GENERAL CONSUMABLES,08/07/2013,
030713H,AFFINITY WATER,101024050,1,769,CURRENT HYDRANT COSTS,08/07/2013,769
030713H,AFFINITY WATER,101024064,1,769,CURRENT HYDRANT COSTS,08/07/2013,769
030713H,CHANGING YOUNG MINDS,110613,1,300,PROFESSIONAL DEVELOPMENT,08/07/2013,300
030713H,INFOR (UNITED KINGDOM) LIMITED,11303633-GB04G,1,"1,070.00",CONSULTANTS,08/07/2013,"1,635.00"
030713H,INFOR (UNITED KINGDOM) LIMITED,11303633-GB04G,2,150,CONSULTANTS,08/07/2013,
030713H,INFOR (UNITED KINGDOM) LIMITED,11303633-GB04G,3,415,CONSULTANTS,08/07/2013,
030713C,INFOR (UNITED KINGDOM) LIMITED,11304700-BG04G,1,535,MAINTENANCE & SUPPORT,08/07/2013,535
030713C,GP CONTRACTS==================,14740,1,780,PURCHASES-FURNITURE,08/07/2013,780
030713C,GP CONTRACTS==================,14748,1,520,OFFICE FURNITURE,08/07/2013,520
030713C,DRON & WRIGHT=================,16513,1,"1,158.00",PROFESSIONAL SERVICES,08/07/2013,"1,158.00"
020713E,B NOKES CONTRACTS LTD,1807,1,425.5,STRATEGIC (NON CYCLICAL),08/07/2013,"1,685.50"
020713E,B NOKES CONTRACTS LTD,1807,2,"1,260.00",STRATEGIC (NON CYCLICAL),08/07/2013,
020713E,B NOKES CONTRACTS LTD,1808,1,"1,990.00",STRATEGIC (NON CYCLICAL),08/07/2013,"1,990.00"
020713E,B NOKES CONTRACTS LTD,1809,1,"1,817.50",STRATEGIC (NON CYCLICAL),08/07/2013,"1,817.50"
030713C,B NOKES CONTRACTS LTD,1810,1,"1,932.50",STRATEGIC (NON CYCLICAL),08/07/2013,"1,932.50"
020713E,B NOKES CONTRACTS LTD,1811,1,336,DEVELOPMENT  EXPENSES-CONTRACT,08/07/2013,336
020713E,B NOKES CONTRACTS LTD,1812,1,"2,301.00",STRATEGIC (NON CYCLICAL),08/07/2013,"2,301.00"
020713E,B NOKES CONTRACTS LTD,1813,1,"1,834.50",STRATEGIC (NON CYCLICAL),08/07/2013,"1,834.50"
020713E,CARPETS & FLOOR COVERS DIRECT=,1879,1,"1,484.60",STRATEGIC (NON CYCLICAL),08/07/2013,"1,484.60"
030713H,CRISPIN HUGHES================,2186,1,372.2,GENERAL,08/07/2013,372.2
030713C,STORM TECHNOLOGIES============,225866,1,"4,473.72",ACQUISITIONS,08/07/2013,"4,473.72"
030713H,TEAM PURPLE LIMITED===========,2551,1,139,CLOTHING,08/07/2013,278.42
030713H,TEAM PURPLE LIMITED===========,2551,2,39.82,CLOTHING,08/07/2013,
030713H,TEAM PURPLE LIMITED===========,2551,3,99.6,CLOTHING,08/07/2013,
030713C,HANDS FREE COMPUTING LTD======,28847,1,345,GOVERNMENT GRANTS,08/07/2013,345
140282,OPHTHALMIC TECHNOLOGIES LTD,35542,1,"2,652.46",MEDICAL EXPENSES,08/07/2013,"2,652.46"
030713C,KNIGHTON CLEANING SERVICES LTD,35657,1,"2,094.26",GENERAL CLEANS,08/07/2013,"83,926.59"
030713C,KNIGHTON CLEANING SERVICES LTD,35657,2,"1,936.71",GENERAL CLEANS,08/07/2013,
030713C,KNIGHTON CLEANING SERVICES LTD,35657,3,"1,367.56",GENERAL CLEANS,08/07/2013,
030713C,KNIGHTON CLEANING SERVICES LTD,35657,4,942.59,GENERAL CLEANS,08/07/2013,
030713C,KNIGHTON CLEANING SERVICES LTD,35657,5,"1,105.64",GENERAL CLEANS,08/07/2013,
030713C,KNIGHTON CLEANING SERVICES LTD,35657,6,758.25,GENERAL CLEANS,08/07/2013,
030713C,KNIGHTON CLEANING SERVICES LTD,35657,7,"1,157.41",GENERAL CLEANS,08/07/2013,
030713C,KNIGHTON CLEANING SERVICES LTD,35657,8,"1,023.31",GENERAL CLEANS,08/07/2013,
030713C,KNIGHTON CLEANING SERVICES LTD,35657,9,727.77,GENERAL CLEANS,08/07/2013,
030713C,KNIGHTON CLEANING SERVICES LTD,35657,10,585.09,GENERAL CLEANS,08/07/2013,
030713C,KNIGHTON CLEANING SERVICES LTD,35657,11,"1,878.21",GENERAL CLEANS,08/07/2013,
030713C,KNIGHTON CLEANING SERVICES LTD,35657,12,"1,164.03",GENERAL CLEANS,08/07/2013,
030713C,KNIGHTON CLEANING SERVICES LTD,35657,13,"1,210.36",GENERAL CLEANS,08/07/2013,
030713C,KNIGHTON CLEANING SERVICES LTD,35657,14,"1,032.89",GENERAL CLEANS,08/07/2013,
030713C,KNIGHTON CLEANING SERVICES LTD,35657,15,"1,819.69",GENERAL CLEANS,08/07/2013,
030713C,KNIGHTON CLEANING SERVICES LTD,35657,16,"2,162.39",GENERAL CLEANS,08/07/2013,
030713C,KNIGHTON CLEANING SERVICES LTD,35657,17,732.51,GENERAL CLEANS,08/07/2013,
030713C,KNIGHTON CLEANING SERVICES LTD,35657,18,"1,386.93",GENERAL CLEANS,08/07/2013,
030713C,KNIGHTON CLEANING SERVICES LTD,35657,19,731.93,GENERAL CLEANS,08/07/2013,
030713C,KNIGHTON CLEANING SERVICES LTD,35657,20,"1,451.49",GENERAL CLEANS,08/07/2013,
030713C,KNIGHTON CLEANING SERVICES LTD,35657,21,"1,678.00",GENERAL CLEANS,08/07/2013,
030713C,KNIGHTON CLEANING SERVICES LTD,35657,22,746.62,GENERAL CLEANS,08/07/2013,
030713C,KNIGHTON CLEANING SERVICES LTD,35657,23,"2,205.43",GENERAL CLEANS,08/07/2013,
030713C,KNIGHTON CLEANING SERVICES LTD,35657,24,"1,748.10",GENERAL CLEANS,08/07/2013,
030713C,KNIGHTON CLEANING SERVICES LTD,35657,25,892.8,GENERAL CLEANS,08/07/2013,
030713C,KNIGHTON CLEANING SERVICES LTD,35657,26,894.02,GENERAL CLEANS,08/07/2013,
030713C,KNIGHTON CLEANING SERVICES LTD,35657,27,"1,037.76",GENERAL CLEANS,08/07/2013,
030713C,KNIGHTON CLEANING SERVICES LTD,35657,28,"1,693.32",GENERAL CLEANS,08/07/2013,
030713C,KNIGHTON CLEANING SERVICES LTD,35657,29,"1,006.72",GENERAL CLEANS,08/07/2013,
030713C,KNIGHTON CLEANING SERVICES LTD,35657,30,791.49,GENERAL CLEANS,08/07/2013,
030713C,KNIGHTON CLEANING SERVICES LTD,35657,31,931.02,GENERAL CLEANS,08/07/2013,
030713C,KNIGHTON CLEANING SERVICES LTD,35657,32,"1,279.56",GENERAL CLEANS,08/07/2013,
030713C,KNIGHTON CLEANING SERVICES LTD,35657,33,740.25,GENERAL CLEANS,08/07/2013,
030713C,KNIGHTON CLEANING SERVICES LTD,35657,34,"1,489.74",GENERAL CLEANS,08/07/2013,
030713C,KNIGHTON CLEANING SERVICES LTD,35657,35,"1,219.68",GENERAL CLEANS,08/07/2013,
030713C,KNIGHTON CLEANING SERVICES LTD,35657,36,"1,337.62",GENERAL CLEANS,08/07/2013,
030713C,KNIGHTON CLEANING SERVICES LTD,35657,37,752.16,GENERAL CLEANS,08/07/2013,
030713C,KNIGHTON CLEANING SERVICES LTD,35657,38,845.85,GENERAL CLEANS,08/07/2013,
030713C,KNIGHTON CLEANING SERVICES LTD,35657,39,847.39,GENERAL CLEANS,08/07/2013,
030713C,KNIGHTON CLEANING SERVICES LTD,35657,40,900.11,GENERAL CLEANS,08/07/2013,
030713C,KNIGHTON CLEANING SERVICES LTD,35657,41,918.79,GENERAL CLEANS,08/07/2013,
030713C,KNIGHTON CLEANING SERVICES LTD,35657,42,670.32,GENERAL CLEANS,08/07/2013,
030713C,KNIGHTON CLEANING SERVICES LTD,35657,43,"1,449.70",GENERAL CLEANS,08/07/2013,
030713C,KNIGHTON CLEANING SERVICES LTD,35657,44,"1,280.76",GENERAL CLEANS,08/07/2013,
030713C,KNIGHTON CLEANING SERVICES LTD,35657,45,911.62,GENERAL CLEANS,08/07/2013,
030713C,KNIGHTON CLEANING SERVICES LTD,35657,46,"2,676.91",GENERAL CLEANS,08/07/2013,
030713C,KNIGHTON CLEANING SERVICES LTD,35657,47,991.09,GENERAL CLEANS,08/07/2013,
030713C,KNIGHTON CLEANING SERVICES LTD,35657,48,551.25,GENERAL CLEANS,08/07/2013,
030713C,KNIGHTON CLEANING SERVICES LTD,35657,49,"1,036.44",GENERAL CLEANS,08/07/2013,
030713C,KNIGHTON CLEANING SERVICES LTD,35657,50,"1,002.55",GENERAL CLEANS,08/07/2013,
030713C,KNIGHTON CLEANING SERVICES LTD,35657,51,910.22,GENERAL CLEANS,08/07/2013,
030713C,KNIGHTON CLEANING SERVICES LTD,35657,52,"1,242.27",GENERAL CLEANS,08/07/2013,
030713C,KNIGHTON CLEANING SERVICES LTD,35657,53,"2,187.12",GENERAL CLEANS,08/07/2013,
030713C,KNIGHTON CLEANING SERVICES LTD,35657,54,843.69,GENERAL CLEANS,08/07/2013,
030713C,KNIGHTON CLEANING SERVICES LTD,35657,55,"1,777.63",GENERAL CLEANS,08/07/2013,
030713C,KNIGHTON CLEANING SERVICES LTD,35657,56,"1,000.36",GENERAL CLEANS,08/07/2013,
030713C,KNIGHTON CLEANING SERVICES LTD,35657,57,661.36,GENERAL CLEANS,08/07/2013,
030713C,KNIGHTON CLEANING SERVICES LTD,35657,58,653.05,GENERAL CLEANS,08/07/2013,
030713C,KNIGHTON CLEANING SERVICES LTD,35657,59,758.83,GENERAL CLEANS,08/07/2013,
030713C,KNIGHTON CLEANING SERVICES LTD,35657,60,"2,222.46",GENERAL CLEANS,08/07/2013,
030713C,KNIGHTON CLEANING SERVICES LTD,35657,61,850.75,GENERAL CLEANS,08/07/2013,
030713C,KNIGHTON CLEANING SERVICES LTD,35657,62,"1,526.45",GENERAL CLEANS,08/07/2013,
030713C,KNIGHTON CLEANING SERVICES LTD,35657,63,"2,514.86",GENERAL CLEANS,08/07/2013,
030713C,KNIGHTON CLEANING SERVICES LTD,35657,64,737.63,GENERAL CLEANS,08/07/2013,
030713C,KNIGHTON CLEANING SERVICES LTD,35657,65,754.02,GENERAL CLEANS,08/07/2013,
030713C,KNIGHTON CLEANING SERVICES LTD,35657,66,"1,448.45",GENERAL CLEANS,08/07/2013,
030713C,KNIGHTON CLEANING SERVICES LTD,35657,67,"1,023.60",GENERAL CLEANS,08/07/2013,
030713C,KNIGHTON CLEANING SERVICES LTD,35657,68,779.05,GENERAL CLEANS,08/07/2013,
030713C,KNIGHTON CLEANING SERVICES LTD,35657,69,"1,011.57",GENERAL CLEANS,08/07/2013,
030713C,KNIGHTON CLEANING SERVICES LTD,35657,70,"1,227.13",GENERAL CLEANS,08/07/2013,
030713C,KNIGHTON CLEANING SERVICES LTD,35658,1,933.82,GENERAL CLEANS,08/07/2013,"72,823.64"
030713C,KNIGHTON CLEANING SERVICES LTD,35658,2,"1,031.43",GENERAL CLEANS,08/07/2013,
030713C,KNIGHTON CLEANING SERVICES LTD,35658,3,966.73,GENERAL CLEANS,08/07/2013,
030713C,KNIGHTON CLEANING SERVICES LTD,35658,4,"1,172.14",GENERAL CLEANS,08/07/2013,
030713C,KNIGHTON CLEANING SERVICES LTD,35658,5,566.57,GENERAL CLEANS,08/07/2013,
030713C,KNIGHTON CLEANING SERVICES LTD,35658,6,"1,296.76",GENERAL CLEANS,08/07/2013,
030713C,KNIGHTON CLEANING SERVICES LTD,35658,7,"1,879.68",GENERAL CLEANS,08/07/2013,
030713C,KNIGHTON CLEANING SERVICES LTD,35658,8,"1,940.42",GENERAL CLEANS,08/07/2013,
030713C,KNIGHTON CLEANING SERVICES LTD,35658,9,"3,036.27",GENERAL CLEANS,08/07/2013,
030713C,KNIGHTON CLEANING SERVICES LTD,35658,10,956.12,GENERAL CLEANS,08/07/2013,
030713C,KNIGHTON CLEANING SERVICES LTD,35658,11,847.09,GENERAL CLEANS,08/07/2013,
030713C,KNIGHTON CLEANING SERVICES LTD,35658,12,"1,016.04",GENERAL CLEANS,08/07/2013,
030713C,KNIGHTON CLEANING SERVICES LTD,35658,13,"1,159.92",GENERAL CLEANS,08/07/2013,
030713C,KNIGHTON CLEANING SERVICES LTD,35658,14,963.56,GENERAL CLEANS,08/07/2013,
030713C,KNIGHTON CLEANING SERVICES LTD,35658,15,"1,008.33",GENERAL CLEANS,08/07/2013,
030713C,KNIGHTON CLEANING SERVICES LTD,35658,16,"1,029.98",GENERAL CLEANS,08/07/2013,
030713C,KNIGHTON CLEANING SERVICES LTD,35658,17,"1,394.69",GENERAL CLEANS,08/07/2013,
030713C,KNIGHTON CLEANING SERVICES LTD,35658,18,"1,174.82",GENERAL CLEANS,08/07/2013,
030713C,KNIGHTON CLEANING SERVICES LTD,35658,19,561.2,GENERAL CLEANS,08/07/2013,
030713C,KNIGHTON CLEANING SERVICES LTD,35658,20,"12,841.16",GENERAL CLEANS,08/07/2013,
030713C,KNIGHTON CLEANING SERVICES LTD,35658,21,"1,123.78",GENERAL CLEANS,08/07/2013,
030713C,KNIGHTON CLEANING SERVICES LTD,35658,22,373.04,GENERAL CLEANS,08/07/2013,
030713C,KNIGHTON CLEANING SERVICES LTD,35658,23,"1,415.64",GENERAL CLEANS,08/07/2013,
030713C,KNIGHTON CLEANING SERVICES LTD,35658,24,"2,981.29",GENERAL CLEANS,08/07/2013,
030713C,KNIGHTON CLEANING SERVICES LTD,35658,25,598.46,GENERAL CLEANS,08/07/2013,
030713C,KNIGHTON CLEANING SERVICES LTD,35658,26,"1,626.72",GENERAL CLEANS,08/07/2013,
030713C,KNIGHTON CLEANING SERVICES LTD,35658,27,805.76,GENERAL CLEANS,08/07/2013,
030713C,KNIGHTON CLEANING SERVICES LTD,35658,28,"1,227.28",GENERAL CLEANS,08/07/2013,
030713C,KNIGHTON CLEANING SERVICES LTD,35658,29,"1,245.35",GENERAL CLEANS,08/07/2013,
030713C,KNIGHTON CLEANING SERVICES LTD,35658,30,824.56,GENERAL CLEANS,08/07/2013,
030713C,KNIGHTON CLEANING SERVICES LTD,35658,31,"1,802.31",GENERAL CLEANS,08/07/2013,
030713C,KNIGHTON CLEANING SERVICES LTD,35658,32,"1,169.83",GENERAL CLEANS,08/07/2013,
030713C,KNIGHTON CLEANING SERVICES LTD,35658,33,847.24,GENERAL CLEANS,08/07/2013,
030713C,KNIGHTON CLEANING SERVICES LTD,35658,34,"1,133.78",GENERAL CLEANS,08/07/2013,
030713C,KNIGHTON CLEANING SERVICES LTD,35658,35,"1,154.80",GENERAL CLEANS,08/07/2013,
030713C,KNIGHTON CLEANING SERVICES LTD,35658,36,"7,096.89",GENERAL CLEANS,08/07/2013,
030713C,KNIGHTON CLEANING SERVICES LTD,35658,37,689.79,GENERAL CLEANS,08/07/2013,
030713C,KNIGHTON CLEANING SERVICES LTD,35658,38,859.96,GENERAL CLEANS,08/07/2013,
030713C,KNIGHTON CLEANING SERVICES LTD,35658,39,"1,731.72",GENERAL CLEANS,08/07/2013,
030713C,KNIGHTON CLEANING SERVICES LTD,35658,40,"1,009.40",GENERAL CLEANS,08/07/2013,
030713C,KNIGHTON CLEANING SERVICES LTD,35658,41,751.98,GENERAL CLEANS,08/07/2013,
030713C,KNIGHTON CLEANING SERVICES LTD,35658,42,"1,523.31",GENERAL CLEANS,08/07/2013,
030713C,KNIGHTON CLEANING SERVICES LTD,35658,43,"1,238.14",GENERAL CLEANS,08/07/2013,
030713C,KNIGHTON CLEANING SERVICES LTD,35658,44,"1,233.08",GENERAL CLEANS,08/07/2013,
030713C,KNIGHTON CLEANING SERVICES LTD,35658,45,"1,140.19",GENERAL CLEANS,08/07/2013,
030713C,KNIGHTON CLEANING SERVICES LTD,35658,46,962.96,GENERAL CLEANS,08/07/2013,
030713C,KNIGHTON CLEANING SERVICES LTD,35658,47,479.65,GENERAL CLEANS,08/07/2013,
250613C,W & E DERRICK BLDG. CONT.=====,4042,1,405,STRATEGIC (NON CYCLICAL),08/07/2013,494
250613C,W & E DERRICK BLDG. CONT.=====,4042,2,89,STRATEGIC (NON CYCLICAL),08/07/2013,
030713C,SPORTSAFE UK LTD==============,446080,1,103.88,GYM EQUIPMENT,08/07/2013,325.76
030713C,SPORTSAFE UK LTD==============,446080,2,103.88,GYM EQUIPMENT,08/07/2013,
030713C,SPORTSAFE UK LTD==============,446080,3,69,GYM EQUIPMENT,08/07/2013,
030713C,SPORTSAFE UK LTD==============,446080,4,49,GYM EQUIPMENT,08/07/2013,
030713C,SPORTSAFE UK LTD==============,446084,1,315.72,GYM EQUIPMENT,08/07/2013,381.97
030713C,SPORTSAFE UK LTD==============,446084,2,66.25,GYM EQUIPMENT,08/07/2013,
030713C,SPORTSAFE UK LTD==============,446210,1,449.96,GYM EQUIPMENT,08/07/2013,449.96
030713C,SPORTSAFE UK LTD==============,446359,1,285,GYM EQUIPMENT,08/07/2013,285
030713C,SPORTSAFE UK LTD==============,446360,1,255,GYM EQUIPMENT,08/07/2013,255
030713C,SPORTSAFE UK LTD==============,446361,1,300,GYM EQUIPMENT,08/07/2013,300
030713C,SPORTSAFE UK LTD==============,446363,1,275,GYM EQUIPMENT,08/07/2013,275
030713C,SPORTSAFE UK LTD==============,446364,1,365,GYM EQUIPMENT,08/07/2013,365
030713C,SPORTSAFE UK LTD==============,446433,1,285,GYM EQUIPMENT,08/07/2013,285
030713C,OPERATIONAL RESEARCH IN HEALTH,50X/LFBD1/6,1,"3,120.00",CONSULTANTS,08/07/2013,"3,120.00"
030713C,OPERATIONAL RESEARCH IN HEALTH,51X/LFB-TS/4,1,"2,800.00",OUTSOURCED TRAINING,08/07/2013,"2,800.00"
210613H,SIEMENS ENTERPRISE COMM LTD===,549G 6000847347,1,"99,999.96",MAINTENANCE & SUPPORT,08/07/2013,"99,999.96"
250613C,URS SCOTT WILSON LIMITED,5563788,1,"6,250.00",CONSULTANTS,08/07/2013,"6,250.00"
030713C,NEXUS PROPERTY SERVICES,79798,1,"6,407.54",GENERAL,08/07/2013,"6,407.54"
030713C,G4S TECHNOLOGY LIMITED========,845495,1,495.36,PREMISES SECURITY,08/07/2013,495.36
140279,WEST YORKSHIRE FIRE SERVICE,8505015178,1,332.5,PROFESSIONAL FEES GENERAL,08/07/2013,332.5
280613H,RS COMPONENTS LTD=============,88097476,1,106.43,PURCHASE,08/07/2013,285.72
280613H,RS COMPONENTS LTD=============,88097476,2,39.3,PURCHASE,08/07/2013,
280613H,RS COMPONENTS LTD=============,88097476,3,139.99,PURCHASE,08/07/2013,
030713H,DRAEGER SAFETY UK LIMITED=====,90415013,1,"1,289.80",PROTECTIVE EQUIPT - PARTS,08/07/2013,"1,289.80"
250613C,DRAEGER SAFETY UK LIMITED=====,90416337,1,276,GENERAL CONSUMABLES,08/07/2013,276
030713C,DRAEGER SAFETY UK LIMITED=====,90416471,1,"2,354.00",PROTECTIVE EQUIPT - PARTS,08/07/2013,"2,354.00"
030713C,NORTHGATE INFO SOLUTIONS UK LT,91248187,1,889.27,MAINTENANCE & SUPPORT,08/07/2013,"13,380.18"
030713C,NORTHGATE INFO SOLUTIONS UK LT,91248187,2,"1,867.29",MAINTENANCE & SUPPORT,08/07/2013,
030713C,NORTHGATE INFO SOLUTIONS UK LT,91248187,3,"1,067.28",MAINTENANCE & SUPPORT,08/07/2013,
030713C,NORTHGATE INFO SOLUTIONS UK LT,91248187,4,889.27,MAINTENANCE & SUPPORT,08/07/2013,
030713C,NORTHGATE INFO SOLUTIONS UK LT,91248187,5,"4,514.66",MAINTENANCE & SUPPORT,08/07/2013,
030713C,NORTHGATE INFO SOLUTIONS UK LT,91248187,6,"2,598.68",MAINTENANCE & SUPPORT,08/07/2013,
030713C,NORTHGATE INFO SOLUTIONS UK LT,91248187,7,"1,152.67",MAINTENANCE & SUPPORT,08/07/2013,
030713C,NORTHGATE INFO SOLUTIONS UK LT,91248187,8,401.06,MAINTENANCE & SUPPORT,08/07/2013,
250613C,*OFFICE DEPOT UK LTD,957823801,1,"1,190.00",STATIONERY CONSUMABLES,08/07/2013,"1,190.00"
260613C,*OFFICE DEPOT UK LTD,957823802,1,270.24,STATIONERY CONSUMABLES,08/07/2013,270.24
030713C,WM ENGINEERING SERVICES LTD===,I-4530,1,499.5,TACTICAL DAY TO DAY,08/07/2013,499.5
030713C,WM ENGINEERING SERVICES LTD===,I-4532,1,520,TACTICAL DAY TO DAY,08/07/2013,520
030713H,BALFOUR BEATTY WORKPLACE LTD,M 120193,1,"23,577.87",TACTICAL DAY TO DAY,08/07/2013,"77,593.96"
030713H,BALFOUR BEATTY WORKPLACE LTD,M 120193,2,92.89,TACTICAL DAY TO DAY,08/07/2013,
030713H,BALFOUR BEATTY WORKPLACE LTD,M 120193,3,272.82,TACTICAL DAY TO DAY,08/07/2013,
030713H,BALFOUR BEATTY WORKPLACE LTD,M 120193,4,"52,912.78",STRATEGIC (CYCLICAL),08/07/2013,
030713H,BALFOUR BEATTY WORKPLACE LTD,M 120193,5,208.24,STRATEGIC (CYCLICAL),08/07/2013,
030713H,BALFOUR BEATTY WORKPLACE LTD,M 120193,6,529.36,STRATEGIC (CYCLICAL),08/07/2013,
030713H,BALFOUR BEATTY WORKPLACE LTD,M 120770,1,"23,577.87",TACTICAL DAY TO DAY,08/07/2013,"77,520.58"
030713H,BALFOUR BEATTY WORKPLACE LTD,M 120770,2,92.89,TACTICAL DAY TO DAY,08/07/2013,
030713H,BALFOUR BEATTY WORKPLACE LTD,M 120770,3,272.82,TACTICAL DAY TO DAY,08/07/2013,
030713H,BALFOUR BEATTY WORKPLACE LTD,M 120770,4,"52,839.40",STRATEGIC (CYCLICAL),08/07/2013,
030713H,BALFOUR BEATTY WORKPLACE LTD,M 120770,5,208.24,STRATEGIC (CYCLICAL),08/07/2013,
030713H,BALFOUR BEATTY WORKPLACE LTD,M 120770,6,529.36,STRATEGIC (CYCLICAL),08/07/2013,
030713C,G4S TECHNOLOGY LIMITED========,MTN10568,1,744,PREMISES SECURITY,08/07/2013,744
030713C,PEGASUS COURIERS - LONDON=====,PL013978,1,"1,073.95",POSTAL SERVICES,08/07/2013,"1,073.95"
210613C,BABCOCK CRITICAL SERVICES LTD,SIMP011135,1,"3,773.00",OTHER MISC,08/07/2013,"3,773.00"
030713C,SABRE SAFETY LTD,SUKIN09826,1,518.2,PROTECTIVE EQUIPT - PARTS,08/07/2013,530.7
030713C,SABRE SAFETY LTD,SUKIN09826,2,12.5,REPAIR & MAINTENANCE,08/07/2013,
800021144,*XMA LTD,T318503,1,67.4,STATIONERY CONSUMABLES,08/07/2013,269.6
800021144,*XMA LTD,T318503,2,67.4,STATIONERY CONSUMABLES,08/07/2013,
800021144,*XMA LTD,T318503,3,134.8,STATIONERY CONSUMABLES,08/07/2013,
902298,ASHURST LLP,9305,1,"18,970.65",RENTS,09/07/2013,"81,193.65"
902298,ASHURST LLP,9305,2,"62,223.00",PROPERTY RATES,09/07/2013,
902299,NAT WEST BANK=================,Jun-13,1,"1,305.09",BANK CHARGES,10/07/2013,"1,305.09"
140285,ROYAL GARDEN HOTEL(JERSEY) LTD,5,1,"1,500.00",RENTS,11/07/2013,"1,500.00"
050713C,TURNER & TOWNSEND PROJECT MNGT,537842,1,"10,044.97",PROF FEES-MISCELLANEOUS,11/07/2013,"10,044.97"
140284,OGILVIE FLEET LTD=============,243351,1,414.59,LEASE CAR CHARGES,11/07/2013,414.59
140284,OGILVIE FLEET LTD=============,243351,2,-35.52,VAT CAR LEASING,11/07/2013,
140284,OGILVIE FLEET LTD=============,243351,3,35.52,LEASE CAR CHARGES,11/07/2013,
140284,OGILVIE FLEET LTD=============,243352,1,432.2,LEASE CAR CHARGES,11/07/2013,432.2
140284,OGILVIE FLEET LTD=============,243352,2,-37.28,VAT CAR LEASING,11/07/2013,
140284,OGILVIE FLEET LTD=============,243352,3,37.28,LEASE CAR CHARGES,11/07/2013,
140284,OGILVIE FLEET LTD=============,243353,1,367.2,LEASE CAR CHARGES,11/07/2013,367.2
140284,OGILVIE FLEET LTD=============,243353,2,-32.53,VAT CAR LEASING,11/07/2013,
140284,OGILVIE FLEET LTD=============,243353,3,32.53,LEASE CAR CHARGES,11/07/2013,
140285,OGILVIE FLEET LTD=============,244082,1,"2,561.62",LEASE CAR CHARGES,11/07/2013,"3,710.28"
140285,OGILVIE FLEET LTD=============,244082,2,"1,148.66",P/PAYMTS-CAR LEASG-RENTAL,11/07/2013,
140285,OGILVIE FLEET LTD=============,244082,3,-312.13,VAT CAR LEASING,11/07/2013,
140285,OGILVIE FLEET LTD=============,244082,4,312.13,LEASE CAR CHARGES,11/07/2013,
140285,OGILVIE FLEET LTD=============,244083,1,"3,034.60",LEASE CAR CHARGES,11/07/2013,"4,211.52"
140285,OGILVIE FLEET LTD=============,244083,2,"1,176.92",P/PAYMTS-CAR LEASG-RENTAL,11/07/2013,
140285,OGILVIE FLEET LTD=============,244083,3,-356.2,VAT CAR LEASING,11/07/2013,
140285,OGILVIE FLEET LTD=============,244083,4,356.2,LEASE CAR CHARGES,11/07/2013,
140285,OGILVIE FLEET LTD=============,244084,1,"3,946.84",LEASE CAR CHARGES,11/07/2013,"5,605.44"
140285,OGILVIE FLEET LTD=============,244084,2,"1,658.60",P/PAYMTS-CAR LEASG-RENTAL,11/07/2013,
050713C,FIRE PREVENTION PRODUCTS LTD==,44898,1,528.98,OPERATIONAL EQUIP-PURCHASE,11/07/2013,528.98
050713C,HAYS ACCOUNTANCY & FINANCE====,1003300199,1,696,FRS STAFF AGENCY,11/07/2013,696
040713E,AFFINITY WATER,101024063,1,769,CURRENT HYDRANT COSTS,11/07/2013,769
040713E,AFFINITY WATER,101024067,1,754,CURRENT HYDRANT COSTS,11/07/2013,754
040713E,AFFINITY WATER,101024076,1,754,CURRENT HYDRANT COSTS,11/07/2013,754
040713E,AFFINITY WATER,101024077,1,818,CURRENT HYDRANT COSTS,11/07/2013,818
040713E,AFFINITY WATER,101024084,1,368,CURRENT HYDRANT COSTS,11/07/2013,368
080713C,*APTCO========================,101658,1,360,OPERATIONAL EQUIP-PURCHASE,11/07/2013,360
030713C,*SPRUE SAFETY PRODUCTS LTD====,1048677,1,"1,896.00",FIRE DETECTORS,11/07/2013,"1,896.00"
050713C,*SPRUE SAFETY PRODUCTS LTD====,1048679,1,632,FIRE DETECTORS,11/07/2013,632
030713H,*SPRUE SAFETY PRODUCTS LTD====,1048681,1,"1,896.00",FIRE DETECTORS,11/07/2013,"1,896.00"
050713C,*SPRUE SAFETY PRODUCTS LTD====,1048683,1,"2,022.40",FIRE DETECTORS,11/07/2013,"2,022.40"
050713C,*SPRUE SAFETY PRODUCTS LTD====,1048684,1,758.4,FIRE DETECTORS,11/07/2013,758.4
030713H,*SPRUE SAFETY PRODUCTS LTD====,1048685,1,758.4,FIRE DETECTORS,11/07/2013,758.4
800021052,JAMES HUNTER (OUTFITTERS) LTD=,107096,1,280.58,CLOTHING,11/07/2013,421.66
800021052,JAMES HUNTER (OUTFITTERS) LTD=,107096,2,141.08,CLOTHING,11/07/2013,
800021066,JAMES HUNTER (OUTFITTERS) LTD=,107110,1,283.77,CLOTHING,11/07/2013,283.77
800021315,*NPS (SHOES) LTD,11823,1,41.1,CLOTHING,11/07/2013,"2,121.90"
800021315,*NPS (SHOES) LTD,11823,2,41.1,CLOTHING,11/07/2013,
800021315,*NPS (SHOES) LTD,11823,3,41.1,CLOTHING,11/07/2013,
800021315,*NPS (SHOES) LTD,11823,4,41.1,CLOTHING,11/07/2013,
800021315,*NPS (SHOES) LTD,11823,5,41.1,CLOTHING,11/07/2013,
800021315,*NPS (SHOES) LTD,11823,6,41.1,CLOTHING,11/07/2013,
800021315,*NPS (SHOES) LTD,11823,7,41.1,CLOTHING,11/07/2013,
800021315,*NPS (SHOES) LTD,11823,8,41.1,CLOTHING,11/07/2013,
800021315,*NPS (SHOES) LTD,11823,9,41.1,CLOTHING,11/07/2013,
800021315,*NPS (SHOES) LTD,11823,10,30.05,CLOTHING,11/07/2013,
800021315,*NPS (SHOES) LTD,11823,11,30.05,CLOTHING,11/07/2013,
800021315,*NPS (SHOES) LTD,11823,12,30.05,CLOTHING,11/07/2013,
800021315,*NPS (SHOES) LTD,11823,13,30.05,CLOTHING,11/07/2013,
800021315,*NPS (SHOES) LTD,11823,14,30.05,CLOTHING,11/07/2013,
800021315,*NPS (SHOES) LTD,11823,15,30.05,CLOTHING,11/07/2013,
800021315,*NPS (SHOES) LTD,11823,16,30.05,CLOTHING,11/07/2013,
800021315,*NPS (SHOES) LTD,11823,17,30.05,CLOTHING,11/07/2013,
800021315,*NPS (SHOES) LTD,11823,18,30.05,CLOTHING,11/07/2013,
800021315,*NPS (SHOES) LTD,11823,19,30.05,CLOTHING,11/07/2013,
800021315,*NPS (SHOES) LTD,11823,20,30.05,CLOTHING,11/07/2013,
800021315,*NPS (SHOES) LTD,11823,21,29.45,CLOTHING,11/07/2013,
800021315,*NPS (SHOES) LTD,11823,22,29.45,CLOTHING,11/07/2013,
800021315,*NPS (SHOES) LTD,11823,23,29.45,CLOTHING,11/07/2013,
800021315,*NPS (SHOES) LTD,11823,24,29.45,CLOTHING,11/07/2013,
800021315,*NPS (SHOES) LTD,11823,25,29.45,CLOTHING,11/07/2013,
800021315,*NPS (SHOES) LTD,11823,26,29.45,CLOTHING,11/07/2013,
800021315,*NPS (SHOES) LTD,11823,27,29.45,CLOTHING,11/07/2013,
800021315,*NPS (SHOES) LTD,11823,28,29.45,CLOTHING,11/07/2013,
800021315,*NPS (SHOES) LTD,11823,29,29.45,CLOTHING,11/07/2013,
800021315,*NPS (SHOES) LTD,11823,30,29.45,CLOTHING,11/07/2013,
800021315,*NPS (SHOES) LTD,11823,31,29.45,CLOTHING,11/07/2013,
800021315,*NPS (SHOES) LTD,11823,32,29.45,CLOTHING,11/07/2013,
800021315,*NPS (SHOES) LTD,11823,33,29.45,CLOTHING,11/07/2013,
800021315,*NPS (SHOES) LTD,11823,34,29.45,CLOTHING,11/07/2013,
800021315,*NPS (SHOES) LTD,11823,35,29.45,CLOTHING,11/07/2013,
800021315,*NPS (SHOES) LTD,11823,36,29.45,CLOTHING,11/07/2013,
800021315,*NPS (SHOES) LTD,11823,37,29.45,CLOTHING,11/07/2013,
800021315,*NPS (SHOES) LTD,11823,38,29.45,CLOTHING,11/07/2013,
800021315,*NPS (SHOES) LTD,11823,39,29.45,CLOTHING,11/07/2013,
800021315,*NPS (SHOES) LTD,11823,40,29.45,CLOTHING,11/07/2013,
800021315,*NPS (SHOES) LTD,11823,41,29.45,CLOTHING,11/07/2013,
800021315,*NPS (SHOES) LTD,11823,42,29.45,CLOTHING,11/07/2013,
800021315,*NPS (SHOES) LTD,11823,43,29.45,CLOTHING,11/07/2013,
800021315,*NPS (SHOES) LTD,11823,44,41.1,CLOTHING,11/07/2013,
800021315,*NPS (SHOES) LTD,11823,45,41.1,CLOTHING,11/07/2013,
800021315,*NPS (SHOES) LTD,11823,46,41.1,CLOTHING,11/07/2013,
800021315,*NPS (SHOES) LTD,11823,47,41.1,CLOTHING,11/07/2013,
800021315,*NPS (SHOES) LTD,11823,48,41.1,CLOTHING,11/07/2013,
800021315,*NPS (SHOES) LTD,11823,49,41.1,CLOTHING,11/07/2013,
800021315,*NPS (SHOES) LTD,11823,50,41.1,CLOTHING,11/07/2013,
800021315,*NPS (SHOES) LTD,11823,51,41.1,CLOTHING,11/07/2013,
800021315,*NPS (SHOES) LTD,11823,52,30.05,CLOTHING,11/07/2013,
800021315,*NPS (SHOES) LTD,11823,53,30.05,CLOTHING,11/07/2013,
800021315,*NPS (SHOES) LTD,11823,54,30.05,CLOTHING,11/07/2013,
800021315,*NPS (SHOES) LTD,11823,55,30.05,CLOTHING,11/07/2013,
800021315,*NPS (SHOES) LTD,11823,56,30.05,CLOTHING,11/07/2013,
800021315,*NPS (SHOES) LTD,11823,57,29.45,CLOTHING,11/07/2013,
800021315,*NPS (SHOES) LTD,11823,58,29.45,CLOTHING,11/07/2013,
800021315,*NPS (SHOES) LTD,11823,59,29.45,CLOTHING,11/07/2013,
800021315,*NPS (SHOES) LTD,11823,60,29.45,CLOTHING,11/07/2013,
800021315,*NPS (SHOES) LTD,11823,61,29.45,CLOTHING,11/07/2013,
800021315,*NPS (SHOES) LTD,11823,62,29.45,CLOTHING,11/07/2013,
800021315,*NPS (SHOES) LTD,11823,63,29.45,CLOTHING,11/07/2013,
800021315,*NPS (SHOES) LTD,11823,64,29.45,CLOTHING,11/07/2013,
800021315,*NPS (SHOES) LTD,11823,65,29.45,CLOTHING,11/07/2013,
080713C,H J HALL & SON================,122149,1,265.61,PROTECTIVE EQUIPT - PARTS,11/07/2013,265.61
040713E,MARTIN LAVELL LTD=============,1227599,1,357.2,BOOKS & JOURNALS,11/07/2013,357.2
800021587,PRIMEPEACE LTD================,130601,1,"2,050.00",MAINTENANCE & SUPPORT,11/07/2013,"4,050.00"
800021587,PRIMEPEACE LTD================,130601,2,500,MAINTENANCE & SUPPORT,11/07/2013,
800021587,PRIMEPEACE LTD================,130601,3,"1,500.00",TELECOMMUNICATIONS,11/07/2013,
050713C,RESPIREX======================,142756,1,"11,250.00",PROTECTIVE EQUIPMENT,11/07/2013,"11,250.00"
050713C,RESPIREX======================,142757,1,"3,750.00",PROTECTIVE EQUIPMENT,11/07/2013,"3,750.00"
140284,THAMES WATER UTILITIES LTD====,1616806584E,1,325.12,WATER & SEWERAGE RATES,11/07/2013,325.12
140285,THAMES WATER UTILITIES LTD====,16780-90537/,1,264.24,WATER & SEWERAGE RATES,11/07/2013,264.24
080713C,BRIGHT INTERACTIVE LTD========,173/0141/1,1,450,CONSULTANTS,11/07/2013,450
140285,EDF ENERGY===================,1785907933,1,"2,238.35",ELECTRICITY,11/07/2013,"2,238.35"
140285,EDF ENERGY===================,1786209534,1,"8,383.61",ELECTRICITY,11/07/2013,"8,383.61"
140285,EDF ENERGY===================,1786484434,1,160.86,ELECTRICITY,11/07/2013,"3,217.16"
140285,EDF ENERGY===================,1786484434,2,"3,056.30",ELECTRICITY,11/07/2013,
140285,EDF ENERGY===================,1793376231,1,"9,716.15",ELECTRICITY,11/07/2013,"9,716.15"
250613C,GREATER LONDON AUTHORITY======,1800003250,1,"17,112.14",GLA SHARED SERVICES,11/07/2013,"17,237.93"
250613C,GREATER LONDON AUTHORITY======,1800003250,2,125.79,GLA SHARED SERVICES,11/07/2013,
140285,EDF ENERGY===================,1813823624,1,"13,465.67",ELECTRICITY,11/07/2013,"13,465.67"
140284,THAMES WATER UTILITIES LTD====,18966-01041F,1,"1,338.06",WATER & SEWERAGE RATES,11/07/2013,"1,338.06"
030713C,*LOCKHART CATERING EQUIPMENT,1995209,1,10.04,CATERING EQUIPMENT,11/07/2013,296
030713C,*LOCKHART CATERING EQUIPMENT,1995209,2,17.36,CATERING EQUIPMENT,11/07/2013,
030713C,*LOCKHART CATERING EQUIPMENT,1995209,3,203.04,CATERING EQUIPMENT,11/07/2013,
030713C,*LOCKHART CATERING EQUIPMENT,1995209,4,65.56,CATERING EQUIPMENT,11/07/2013,
090713G,COLT TECHNOLOGY SERVICES======,2011101036894/1036144,1,"14,781.31",TELECOMMUNICATIONS,11/07/2013,"14,781.31"
090713G,COLT TECHNOLOGY SERVICES======,2011101045447/1045498,1,"7,439.26",TELECOMMUNICATIONS,11/07/2013,"7,439.26"
090713G,COLT TECHNOLOGY SERVICES======,2011101050036/7,1,"7,439.86",TELECOMMUNICATIONS,11/07/2013,"7,439.86"
090713G,COLT TECHNOLOGY SERVICES======,20111053437/8,1,"7,439.26",TELECOMMUNICATIONS,11/07/2013,"7,439.26"
080713C,FIRE HOSETECH LIMITED=========,2116,1,923.4,OPERATIONAL EQUIP-PURCHASE,11/07/2013,953.4
080713C,FIRE HOSETECH LIMITED=========,2116,2,30,OPERATIONAL EQUIP-PURCHASE,11/07/2013,
140284,NOMURA INTERNATIONAL PLC,21209,1,"3,196.57",RENTS,11/07/2013,"3,196.57"
140287,MR STEPHEN WALSH,231907*,1,"1,125.00",PROFESSIONAL FEES GENERAL,11/07/2013,"1,125.00"
040713E,MARIAN TOBIN,24/06/2013,1,600,CONSULTANTS,11/07/2013,600
040713E,TEAM PURPLE LIMITED===========,2552,1,139,CLOTHING,11/07/2013,286.92
040713E,TEAM PURPLE LIMITED===========,2552,2,39.82,CLOTHING,11/07/2013,
040713E,TEAM PURPLE LIMITED===========,2552,3,108.1,CLOTHING,11/07/2013,
140284,THAMES WATER UTILITIES LTD====,2559901112E,1,637.65,WATER & SEWERAGE RATES,11/07/2013,637.65
800021713,*BANNER BUSINESS SUPPLIES LTD=,26084188,1,10.28,STATIONERY CONSUMABLES,11/07/2013,494.84
800021713,*BANNER BUSINESS SUPPLIES LTD=,26084188,2,4.86,STATIONERY CONSUMABLES,11/07/2013,
800021713,*BANNER BUSINESS SUPPLIES LTD=,26084188,3,410.1,STATIONERY CONSUMABLES,11/07/2013,
800021713,*BANNER BUSINESS SUPPLIES LTD=,26084188,4,31.95,STATIONERY CONSUMABLES,11/07/2013,
800021713,*BANNER BUSINESS SUPPLIES LTD=,26084188,5,37.65,STATIONERY CONSUMABLES,11/07/2013,
800021493,ADECCO UK LIMITED=============,26457340,1,442.68,FRS STAFF AGENCY,11/07/2013,442.68
800021494,ADECCO UK LIMITED=============,26457341,1,442.68,FRS STAFF AGENCY,11/07/2013,442.68
800021497,ADECCO UK LIMITED=============,26457344,1,439.6,FRS STAFF AGENCY,11/07/2013,439.6
800021499,ADECCO UK LIMITED=============,26457346,1,739.5,FRS STAFF AGENCY,11/07/2013,739.5
800021500,ADECCO UK LIMITED=============,26457347,1,"1,333.44",FRS STAFF AGENCY,11/07/2013,"1,333.44"
800021501,ADECCO UK LIMITED=============,26457348,1,952.7,FRS STAFF AGENCY,11/07/2013,952.7
800021502,ADECCO UK LIMITED=============,26457349,1,439.6,FRS STAFF AGENCY,11/07/2013,439.6
800021528,ADECCO UK LIMITED=============,26457350,1,945.42,FRS STAFF AGENCY,11/07/2013,945.42
800021504,ADECCO UK LIMITED=============,26457351,1,"1,908.90",FRS STAFF AGENCY,11/07/2013,"1,908.90"
800021505,ADECCO UK LIMITED=============,26457352,1,989.12,FRS STAFF AGENCY,11/07/2013,989.12
800021506,ADECCO UK LIMITED=============,26457353,1,594.3,FRS STAFF AGENCY,11/07/2013,594.3
800021507,ADECCO UK LIMITED=============,26457354,1,880.32,FRS STAFF AGENCY,11/07/2013,880.32
800021508,ADECCO UK LIMITED=============,26457355,1,475.44,FRS STAFF AGENCY,11/07/2013,475.44
800021509,ADECCO UK LIMITED=============,26457356,1,439.6,FRS STAFF AGENCY,11/07/2013,439.6
800021510,ADECCO UK LIMITED=============,26457357,1,439.6,FRS STAFF AGENCY,11/07/2013,439.6
800021512,ADECCO UK LIMITED=============,26457359,1,554.75,FRS STAFF AGENCY,11/07/2013,554.75
800021513,ADECCO UK LIMITED=============,26457360,1,443.8,FRS STAFF AGENCY,11/07/2013,443.8
800021514,ADECCO UK LIMITED=============,26457361,1,443.8,FRS STAFF AGENCY,11/07/2013,443.8
800021515,ADECCO UK LIMITED=============,26457362,1,554.75,FRS STAFF AGENCY,11/07/2013,554.75
800021516,ADECCO UK LIMITED=============,26457363,1,554.75,FRS STAFF AGENCY,11/07/2013,554.75
800021517,ADECCO UK LIMITED=============,26457364,1,554.75,FRS STAFF AGENCY,11/07/2013,554.75
040713E,DYSLEXIA ASSESSMENT & CONSULTA,2722,1,475,PROFESSIONAL DEVELOPMENT,11/07/2013,475
280613H,WILLIAM SUGDEN & SONS LTD=====,35803,1,392.5,UNIFORMS - POMS,11/07/2013,392.5
080713C,CANON (UK) LTD===============,401396524,1,"2,549.53",OFFICE EQUIPMENT,11/07/2013,"2,549.53"
800021156,*BURLINGTON UNIFORMS LTD,418652,1,3.49,CLOTHING,11/07/2013,507.05
800021156,*BURLINGTON UNIFORMS LTD,418652,2,3.49,CLOTHING,11/07/2013,
800021156,*BURLINGTON UNIFORMS LTD,418652,3,34.6,CLOTHING,11/07/2013,
800021156,*BURLINGTON UNIFORMS LTD,418652,4,34.6,CLOTHING,11/07/2013,
800021156,*BURLINGTON UNIFORMS LTD,418652,5,8.92,CLOTHING,11/07/2013,
800021156,*BURLINGTON UNIFORMS LTD,418652,6,8.92,CLOTHING,11/07/2013,
800021156,*BURLINGTON UNIFORMS LTD,418652,7,29.29,CLOTHING,11/07/2013,
800021156,*BURLINGTON UNIFORMS LTD,418652,8,191.87,CLOTHING,11/07/2013,
800021156,*BURLINGTON UNIFORMS LTD,418652,9,191.87,CLOTHING,11/07/2013,
800021172,*BURLINGTON UNIFORMS LTD,418668,1,3.49,CLOTHING,11/07/2013,273.48
800021172,*BURLINGTON UNIFORMS LTD,418668,2,34.6,CLOTHING,11/07/2013,
800021172,*BURLINGTON UNIFORMS LTD,418668,3,34.6,CLOTHING,11/07/2013,
800021172,*BURLINGTON UNIFORMS LTD,418668,4,8.92,CLOTHING,11/07/2013,
800021172,*BURLINGTON UNIFORMS LTD,418668,5,191.87,CLOTHING,11/07/2013,
800021593,*BURLINGTON UNIFORMS LTD,418934,1,191.87,CLOTHING,11/07/2013,383.74
800021593,*BURLINGTON UNIFORMS LTD,418934,2,191.87,CLOTHING,11/07/2013,
050713C,SPORTSAFE UK LTD==============,446435,1,255,GYM EQUIPMENT,11/07/2013,255
080713C,URS SCOTT WILSON LIMITED,5563837,1,"4,250.00",CONSULTANTS,11/07/2013,"4,250.00"
080713G,DRAMANON======================,557,1,"1,650.00",ASSESSMENTS,11/07/2013,"1,650.00"
800021358,*GREENHAM TRADING LTD=========,5594251,1,5.67,HYGIENE,11/07/2013,329.13
800021358,*GREENHAM TRADING LTD=========,5594251,2,20.1,HYGIENE,11/07/2013,
800021358,*GREENHAM TRADING LTD=========,5594251,3,125.65,HYGIENE,11/07/2013,
800021358,*GREENHAM TRADING LTD=========,5594251,4,21.62,HYGIENE,11/07/2013,
800021358,*GREENHAM TRADING LTD=========,5594251,5,21.62,HYGIENE,11/07/2013,
800021358,*GREENHAM TRADING LTD=========,5594251,6,6.72,HYGIENE,11/07/2013,
800021358,*GREENHAM TRADING LTD=========,5594251,7,32.6,HYGIENE,11/07/2013,
800021358,*GREENHAM TRADING LTD=========,5594251,8,16.44,HYGIENE,11/07/2013,
800021358,*GREENHAM TRADING LTD=========,5594251,9,18.6,HYGIENE,11/07/2013,
800021358,*GREENHAM TRADING LTD=========,5594251,10,4.94,HYGIENE,11/07/2013,
800021358,*GREENHAM TRADING LTD=========,5594251,11,22.08,OPERATIONAL EQUIP-PURCHASE,11/07/2013,
800021358,*GREENHAM TRADING LTD=========,5594251,12,17.88,OPERATIONAL EQUIP-PURCHASE,11/07/2013,
800021358,*GREENHAM TRADING LTD=========,5594251,13,15.21,HYGIENE,11/07/2013,
280613C,MERLIN ELECTRICAL SERVICES LTD,6056,1,"2,428.60",STRATEGIC (NON CYCLICAL),11/07/2013,"2,428.60"
280613C,RICARDO-AEA LTD,6152663,1,"31,410.00",MAINTENANCE & SUPPORT,11/07/2013,"31,410.00"
140284,THAMES WATER UTILITIES LTD====,6366176423E,1,"1,924.90",WATER & SEWERAGE RATES,11/07/2013,"1,924.90"
140286,AFFINITY WATER,6740*,1,"42,188.00",GENERAL,11/07/2013,"42,188.00"
140285,THAMES WATER UTILITIES LTD====,69230-96400F,1,729.95,WATER & SEWERAGE RATES,11/07/2013,729.95
050713C,S W BRUCE & CO LTD,7017554,1,"1,945.27",DEVELOPMENT  EXPENSES-CONTRACT,11/07/2013,"1,945.27"
080713G,CANON (UK) LTD===============,770402735,1,"3,154.62",OFFICE EQUIPMENT,11/07/2013,"3,154.62"
080713C,CANON (UK) LTD===============,770417644,1,"3,154.62",OFFICE EQUIPMENT,11/07/2013,"3,154.62"
080713C,CANON (UK) LTD===============,770418752,1,"1,380.90",OFFICE EQUIPMENT,11/07/2013,"1,380.90"
080713C,CANON (UK) LTD===============,770418758,1,"1,601.41",OFFICE EQUIPMENT,11/07/2013,"1,601.41"
080713C,CANON (UK) LTD===============,770418762,1,"1,205.49",OFFICE EQUIPMENT,11/07/2013,"1,205.49"
140287,MISS JUDY STONE,80654A,1,"23,650.00",COUNSELS FEES,11/07/2013,"23,650.00"
040713E,THE HAY GROUP MANAGEMENT LTD==,835-3566,1,550,CONSULTANTS,11/07/2013,550
030713C,RS COMPONENTS LTD=============,88133458,1,52.96,PURCHASE,11/07/2013,253.94
030713C,RS COMPONENTS LTD=============,88133458,2,43.35,PURCHASE,11/07/2013,
030713C,RS COMPONENTS LTD=============,88133458,3,39.64,PURCHASE,11/07/2013,
030713C,RS COMPONENTS LTD=============,88133458,4,17.49,PURCHASE,11/07/2013,
030713C,RS COMPONENTS LTD=============,88133458,5,100.5,PURCHASE,11/07/2013,
280613C,MULTITONE ELECTRONICS PLC=====,88197,1,"1,200.00",PURCHASES-COMPUTER/EQUIPMENT,11/07/2013,"1,225.00"
280613C,MULTITONE ELECTRONICS PLC=====,88197,2,25,PURCHASES-COMPUTER/EQUIPMENT,11/07/2013,
140284,THAMES WATER UTILITIES LTD====,8952513074D,1,735.53,WATER & SEWERAGE RATES,11/07/2013,735.53
140283,BRITISH GAS ENERGY PERFORMANCE,90194479,1,128.4,GAS,11/07/2013,"23,865.87"
140283,BRITISH GAS ENERGY PERFORMANCE,90194479,2,256.8,GAS,11/07/2013,
140283,BRITISH GAS ENERGY PERFORMANCE,90194479,3,128.4,GAS,11/07/2013,
140283,BRITISH GAS ENERGY PERFORMANCE,90194479,4,128.4,GAS,11/07/2013,
140283,BRITISH GAS ENERGY PERFORMANCE,90194479,5,128.4,GAS,11/07/2013,
140283,BRITISH GAS ENERGY PERFORMANCE,90194479,6,256.8,GAS,11/07/2013,
140283,BRITISH GAS ENERGY PERFORMANCE,90194479,7,128.4,GAS,11/07/2013,
140283,BRITISH GAS ENERGY PERFORMANCE,90194479,8,680.7,GAS,11/07/2013,
140283,BRITISH GAS ENERGY PERFORMANCE,90194479,9,513.6,GAS,11/07/2013,
140283,BRITISH GAS ENERGY PERFORMANCE,90194479,10,128.4,GAS,11/07/2013,
140283,BRITISH GAS ENERGY PERFORMANCE,90194479,11,256.8,GAS,11/07/2013,
140283,BRITISH GAS ENERGY PERFORMANCE,90194479,12,128.4,GAS,11/07/2013,
140283,BRITISH GAS ENERGY PERFORMANCE,90194479,13,128.4,GAS,11/07/2013,
140283,BRITISH GAS ENERGY PERFORMANCE,90194479,14,128.4,GAS,11/07/2013,
140283,BRITISH GAS ENERGY PERFORMANCE,90194479,15,256.8,GAS,11/07/2013,
140283,BRITISH GAS ENERGY PERFORMANCE,90194479,16,256.8,GAS,11/07/2013,
140283,BRITISH GAS ENERGY PERFORMANCE,90194479,17,256.8,GAS,11/07/2013,
140283,BRITISH GAS ENERGY PERFORMANCE,90194479,18,128.4,GAS,11/07/2013,
140283,BRITISH GAS ENERGY PERFORMANCE,90194479,19,128.4,GAS,11/07/2013,
140283,BRITISH GAS ENERGY PERFORMANCE,90194479,20,256.8,GAS,11/07/2013,
140283,BRITISH GAS ENERGY PERFORMANCE,90194479,21,128.4,GAS,11/07/2013,
140283,BRITISH GAS ENERGY PERFORMANCE,90194479,22,166.74,GAS,11/07/2013,
140283,BRITISH GAS ENERGY PERFORMANCE,90194479,23,385.2,GAS,11/07/2013,
140283,BRITISH GAS ENERGY PERFORMANCE,90194479,24,128.4,GAS,11/07/2013,
140283,BRITISH GAS ENERGY PERFORMANCE,90194479,25,256.8,GAS,11/07/2013,
140283,BRITISH GAS ENERGY PERFORMANCE,90194479,26,339.12,GAS,11/07/2013,
140283,BRITISH GAS ENERGY PERFORMANCE,90194479,27,329.98,GAS,11/07/2013,
140283,BRITISH GAS ENERGY PERFORMANCE,90194479,28,128.4,GAS,11/07/2013,
140283,BRITISH GAS ENERGY PERFORMANCE,90194479,29,385.2,GAS,11/07/2013,
140283,BRITISH GAS ENERGY PERFORMANCE,90194479,30,333.48,GAS,11/07/2013,
140283,BRITISH GAS ENERGY PERFORMANCE,90194479,31,128.4,GAS,11/07/2013,
140283,BRITISH GAS ENERGY PERFORMANCE,90194479,32,385.2,GAS,11/07/2013,
140283,BRITISH GAS ENERGY PERFORMANCE,90194479,33,128.4,GAS,11/07/2013,
140283,BRITISH GAS ENERGY PERFORMANCE,90194479,34,128.4,GAS,11/07/2013,
140283,BRITISH GAS ENERGY PERFORMANCE,90194479,35,128.4,GAS,11/07/2013,
140283,BRITISH GAS ENERGY PERFORMANCE,90194479,36,256.8,GAS,11/07/2013,
140283,BRITISH GAS ENERGY PERFORMANCE,90194479,37,256.8,GAS,11/07/2013,
140283,BRITISH GAS ENERGY PERFORMANCE,90194479,38,128.4,GAS,11/07/2013,
140283,BRITISH GAS ENERGY PERFORMANCE,90194479,39,128.4,GAS,11/07/2013,
140283,BRITISH GAS ENERGY PERFORMANCE,90194479,40,256.8,GAS,11/07/2013,
140283,BRITISH GAS ENERGY PERFORMANCE,90194479,41,513.6,GAS,11/07/2013,
140283,BRITISH GAS ENERGY PERFORMANCE,90194479,42,128.4,GAS,11/07/2013,
140283,BRITISH GAS ENERGY PERFORMANCE,90194479,43,128.4,GAS,11/07/2013,
140283,BRITISH GAS ENERGY PERFORMANCE,90194479,44,256.8,GAS,11/07/2013,
140283,BRITISH GAS ENERGY PERFORMANCE,90194479,45,385.2,GAS,11/07/2013,
140283,BRITISH GAS ENERGY PERFORMANCE,90194479,46,128.4,GAS,11/07/2013,
140283,BRITISH GAS ENERGY PERFORMANCE,90194479,47,256.8,GAS,11/07/2013,
140283,BRITISH GAS ENERGY PERFORMANCE,90194479,48,256.8,GAS,11/07/2013,
140283,BRITISH GAS ENERGY PERFORMANCE,90194479,49,256.8,GAS,11/07/2013,
140283,BRITISH GAS ENERGY PERFORMANCE,90194479,50,256.8,GAS,11/07/2013,
140283,BRITISH GAS ENERGY PERFORMANCE,90194479,51,256.8,GAS,11/07/2013,
140283,BRITISH GAS ENERGY PERFORMANCE,90194479,52,128.4,GAS,11/07/2013,
140283,BRITISH GAS ENERGY PERFORMANCE,90194479,53,128.4,GAS,11/07/2013,
140283,BRITISH GAS ENERGY PERFORMANCE,90194479,54,128.4,GAS,11/07/2013,
140283,BRITISH GAS ENERGY PERFORMANCE,90194479,55,128.4,GAS,11/07/2013,
140283,BRITISH GAS ENERGY PERFORMANCE,90194479,56,128.4,GAS,11/07/2013,
140283,BRITISH GAS ENERGY PERFORMANCE,90194479,57,128.4,GAS,11/07/2013,
140283,BRITISH GAS ENERGY PERFORMANCE,90194479,58,128.4,GAS,11/07/2013,
140283,BRITISH GAS ENERGY PERFORMANCE,90194479,59,128.4,GAS,11/07/2013,
140283,BRITISH GAS ENERGY PERFORMANCE,90194479,60,148.8,GAS,11/07/2013,
140283,BRITISH GAS ENERGY PERFORMANCE,90194479,61,128.4,GAS,11/07/2013,
140283,BRITISH GAS ENERGY PERFORMANCE,90194479,62,167.1,GAS,11/07/2013,
140283,BRITISH GAS ENERGY PERFORMANCE,90194479,63,470.67,GAS,11/07/2013,
140283,BRITISH GAS ENERGY PERFORMANCE,90194479,64,256.8,GAS,11/07/2013,
140283,BRITISH GAS ENERGY PERFORMANCE,90194479,65,128.4,GAS,11/07/2013,
140283,BRITISH GAS ENERGY PERFORMANCE,90194479,66,164.99,GAS,11/07/2013,
140283,BRITISH GAS ENERGY PERFORMANCE,90194479,67,770.4,GAS,11/07/2013,
140283,BRITISH GAS ENERGY PERFORMANCE,90194479,68,128.4,GAS,11/07/2013,
140283,BRITISH GAS ENERGY PERFORMANCE,90194479,69,128.4,GAS,11/07/2013,
140283,BRITISH GAS ENERGY PERFORMANCE,90194479,70,128.4,GAS,11/07/2013,
140283,BRITISH GAS ENERGY PERFORMANCE,90194479,71,256.8,GAS,11/07/2013,
140283,BRITISH GAS ENERGY PERFORMANCE,90194479,72,385.2,GAS,11/07/2013,
140283,BRITISH GAS ENERGY PERFORMANCE,90194479,73,128.4,GAS,11/07/2013,
140283,BRITISH GAS ENERGY PERFORMANCE,90194479,74,128.4,GAS,11/07/2013,
140283,BRITISH GAS ENERGY PERFORMANCE,90194479,75,128.4,GAS,11/07/2013,
140283,BRITISH GAS ENERGY PERFORMANCE,90194479,76,128.4,GAS,11/07/2013,
140283,BRITISH GAS ENERGY PERFORMANCE,90194479,77,263.49,GAS,11/07/2013,
140283,BRITISH GAS ENERGY PERFORMANCE,90194479,78,128.4,GAS,11/07/2013,
140283,BRITISH GAS ENERGY PERFORMANCE,90194479,79,385.2,GAS,11/07/2013,
140283,BRITISH GAS ENERGY PERFORMANCE,90194479,80,128.4,GAS,11/07/2013,
140283,BRITISH GAS ENERGY PERFORMANCE,90194479,81,128.4,GAS,11/07/2013,
140283,BRITISH GAS ENERGY PERFORMANCE,90194479,82,256.8,GAS,11/07/2013,
140283,BRITISH GAS ENERGY PERFORMANCE,90194479,83,513.6,GAS,11/07/2013,
140283,BRITISH GAS ENERGY PERFORMANCE,90194479,84,128.4,GAS,11/07/2013,
140283,BRITISH GAS ENERGY PERFORMANCE,90194479,85,128.4,GAS,11/07/2013,
140283,BRITISH GAS ENERGY PERFORMANCE,90194479,86,128.4,GAS,11/07/2013,
140283,BRITISH GAS ENERGY PERFORMANCE,90194479,87,128.4,GAS,11/07/2013,
140283,BRITISH GAS ENERGY PERFORMANCE,90194479,88,128.4,GAS,11/07/2013,
140283,BRITISH GAS ENERGY PERFORMANCE,90194479,89,128.4,GAS,11/07/2013,
140283,BRITISH GAS ENERGY PERFORMANCE,90194479,90,128.4,GAS,11/07/2013,
140283,BRITISH GAS ENERGY PERFORMANCE,90194479,91,256.8,GAS,11/07/2013,
140283,BRITISH GAS ENERGY PERFORMANCE,90194479,92,128.4,GAS,11/07/2013,
140283,BRITISH GAS ENERGY PERFORMANCE,90194479,93,128.4,GAS,11/07/2013,
140283,BRITISH GAS ENERGY PERFORMANCE,90194479,94,256.8,GAS,11/07/2013,
140283,BRITISH GAS ENERGY PERFORMANCE,90194479,95,256.8,GAS,11/07/2013,
140283,BRITISH GAS ENERGY PERFORMANCE,90194479,96,128.4,GAS,11/07/2013,
140283,BRITISH GAS ENERGY PERFORMANCE,90194479,97,128.4,GAS,11/07/2013,
140283,BRITISH GAS ENERGY PERFORMANCE,90194479,98,128.4,GAS,11/07/2013,
140283,BRITISH GAS ENERGY PERFORMANCE,90194479,99,128.4,GAS,11/07/2013,
140283,BRITISH GAS ENERGY PERFORMANCE,90194479,100,128.4,GAS,11/07/2013,
140283,BRITISH GAS ENERGY PERFORMANCE,90194479,101,256.8,GAS,11/07/2013,
140283,BRITISH GAS ENERGY PERFORMANCE,90194479,102,128.4,GAS,11/07/2013,
140283,BRITISH GAS ENERGY PERFORMANCE,90194479,103,128.4,GAS,11/07/2013,
140283,BRITISH GAS ENERGY PERFORMANCE,90194479,104,128.4,GAS,11/07/2013,
140283,BRITISH GAS ENERGY PERFORMANCE,90194479,105,128.4,GAS,11/07/2013,
140283,BRITISH GAS ENERGY PERFORMANCE,90194479,106,385.2,GAS,11/07/2013,
140283,BRITISH GAS ENERGY PERFORMANCE,90194479,107,256.8,GAS,11/07/2013,
140283,BRITISH GAS ENERGY PERFORMANCE,90194479,108,128.4,GAS,11/07/2013,
140283,BRITISH GAS ENERGY PERFORMANCE,90194479,109,128.4,GAS,11/07/2013,
140283,BRITISH GAS ENERGY PERFORMANCE,90194479,110,256.8,GAS,11/07/2013,
140283,BRITISH GAS ENERGY PERFORMANCE,90194479,111,385.2,GAS,11/07/2013,
140283,BRITISH GAS ENERGY PERFORMANCE,90194479,112,128.4,GAS,11/07/2013,
140283,BRITISH GAS ENERGY PERFORMANCE,90194479,113,385.2,GAS,11/07/2013,
140283,BRITISH GAS ENERGY PERFORMANCE,90194479,114,128.4,GAS,11/07/2013,
050713C,DRAEGER SAFETY UK LIMITED=====,90416696,1,"1,070.00",PROTECTIVE EQUIPT - PARTS,11/07/2013,"1,070.00"
050713C,DRAEGER SAFETY UK LIMITED=====,90417304,1,"4,815.00",PROTECTIVE EQUIPT - PARTS,11/07/2013,"4,815.00"
050713C,DRAEGER SAFETY UK LIMITED=====,90417394,1,"1,391.00",PROTECTIVE EQUIPT - PARTS,11/07/2013,"1,391.00"
040713E,ROYAL MAIL (LONDON DIVISION)==,9043670003,1,283.33,POSTAL SERVICES,11/07/2013,283.33
140290,THOMPSONS SOLICITORS==========,9114,1,500,MISCELLANEOUS DISBURSEMENTS,11/07/2013,500
040713E,CPL PETROLEUM=================,9724186,1,"4,422.00",FUEL,11/07/2013,"4,422.00"
090713G,CPL PETROLEUM=================,9801213,1,"3,313.20",FUEL,11/07/2013,"3,313.20"
050713C,THAMES WATER UTILITIES LTD====,CBA1306520,1,"1,023.00",HYDRANTS,11/07/2013,"1,023.00"
050713C,THAMES WATER UTILITIES LTD====,CBA1306820,1,"1,082.00",HYDRANTS,11/07/2013,"1,082.00"
050713C,THAMES WATER UTILITIES LTD====,CBA1306821,1,"1,082.00",HYDRANTS,11/07/2013,"1,082.00"
050713C,THAMES WATER UTILITIES LTD====,CBA1306822,1,"1,082.00",HYDRANTS,11/07/2013,"1,082.00"
050713C,THAMES WATER UTILITIES LTD====,CBA1306823,1,"1,082.00",HYDRANTS,11/07/2013,"1,082.00"
050713C,THAMES WATER UTILITIES LTD====,CBA1306824,1,"1,082.00",CURRENT HYDRANT COSTS,11/07/2013,"1,082.00"
050713C,THAMES WATER UTILITIES LTD====,CBA1306825,1,"1,082.00",CURRENT HYDRANT COSTS,11/07/2013,"1,082.00"
050713C,THAMES WATER UTILITIES LTD====,CBA1306826,1,"1,800.00",CURRENT HYDRANT COSTS,11/07/2013,"1,800.00"
050713C,THAMES WATER UTILITIES LTD====,CBA1306828,1,"1,082.00",CURRENT HYDRANT COSTS,11/07/2013,"1,082.00"
050713C,THAMES WATER UTILITIES LTD====,CBA1306831,1,"1,082.00",CURRENT HYDRANT COSTS,11/07/2013,"1,082.00"
050713C,THAMES WATER UTILITIES LTD====,CBA1306833,1,"1,023.00",CURRENT HYDRANT COSTS,11/07/2013,"1,023.00"
050713C,THAMES WATER UTILITIES LTD====,CBA1306834,1,280,CURRENT HYDRANT COSTS,11/07/2013,280
050713C,THAMES WATER UTILITIES LTD====,CBA1306835,1,"1,082.00",CURRENT HYDRANT COSTS,11/07/2013,"1,082.00"
050713C,THAMES WATER UTILITIES LTD====,CBA1306844,1,"1,082.00",CURRENT HYDRANT COSTS,11/07/2013,"1,082.00"
050713C,THAMES WATER UTILITIES LTD====,CBA1306846,1,"1,082.00",CURRENT HYDRANT COSTS,11/07/2013,"1,082.00"
050713C,THAMES WATER UTILITIES LTD====,CBA1306847,1,"1,082.00",CURRENT HYDRANT COSTS,11/07/2013,"1,082.00"
050713C,THAMES WATER UTILITIES LTD====,CBA1306850,1,"1,185.00",CURRENT HYDRANT COSTS,11/07/2013,"1,185.00"
050713C,THAMES WATER UTILITIES LTD====,CBA1306853,1,"1,185.00",CURRENT HYDRANT COSTS,11/07/2013,"1,185.00"
050713C,THAMES WATER UTILITIES LTD====,CBA1306855,1,"1,185.00",CURRENT HYDRANT COSTS,11/07/2013,"1,185.00"
050713C,THAMES WATER UTILITIES LTD====,CBA1306857,1,"1,185.00",CURRENT HYDRANT COSTS,11/07/2013,"1,185.00"
050713C,THAMES WATER UTILITIES LTD====,CBA1306858,1,"1,185.00",CURRENT HYDRANT COSTS,11/07/2013,"1,185.00"
050713C,THAMES WATER UTILITIES LTD====,CBA1306859,1,280,CURRENT HYDRANT COSTS,11/07/2013,280
050713C,THAMES WATER UTILITIES LTD====,CBA1306860,1,477,CURRENT HYDRANT COSTS,11/07/2013,477
050713C,THAMES WATER UTILITIES LTD====,CBA1306863,1,"1,185.00",CURRENT HYDRANT COSTS,11/07/2013,"1,185.00"
050713C,THAMES WATER UTILITIES LTD====,CBA1306865,1,"1,185.00",CURRENT HYDRANT COSTS,11/07/2013,"1,185.00"
050713C,THAMES WATER UTILITIES LTD====,CBA1306866,1,"1,185.00",CURRENT HYDRANT COSTS,11/07/2013,"1,185.00"
050713C,THAMES WATER UTILITIES LTD====,CBA1306869,1,"1,185.00",CURRENT HYDRANT COSTS,11/07/2013,"1,185.00"
050713C,THAMES WATER UTILITIES LTD====,CBA1306870,1,"1,185.00",CURRENT HYDRANT COSTS,11/07/2013,"1,185.00"
050713C,THAMES WATER UTILITIES LTD====,CBA1306872,1,"1,185.00",CURRENT HYDRANT COSTS,11/07/2013,"1,185.00"
050713C,THAMES WATER UTILITIES LTD====,CBA1306873,1,"1,185.00",CURRENT HYDRANT COSTS,11/07/2013,"1,185.00"
050713C,THAMES WATER UTILITIES LTD====,CBA1306874,1,477,CURRENT HYDRANT COSTS,11/07/2013,477
050713C,THAMES WATER UTILITIES LTD====,CBA1306884,1,477,CURRENT HYDRANT COSTS,11/07/2013,477
040713E,E&S B DAVIS LTD,DAV/43760,1,720,OPERATIONAL EQUIP-PURCHASE,11/07/2013,720
040713E,E&S B DAVIS LTD,DAV/44114,1,"1,080.00",OPERATIONAL EQUIP-PURCHASE,11/07/2013,"1,080.00"
090713G,E&S B DAVIS LTD,DAV/44361,1,900,OPERATIONAL EQUIP-PURCHASE,11/07/2013,900
090713G,E&S B DAVIS LTD,DAV/44362,1,720,OPERATIONAL EQUIP-PURCHASE,11/07/2013,720
140287,VOICEPATH,DT6909,1,332.96,MISCELLANEOUS DISBURSEMENTS,11/07/2013,332.96
240613E,INFOTERRA=====================,IN026802,1,"129,360.00",ACQUISITIONS,11/07/2013,"129,360.00"
140284,JCT600 CONTRACTS LIMITED======,INV00037989,1,418.47,LEASE CAR CHARGES,11/07/2013,418.47
140284,JCT600 CONTRACTS LIMITED======,INV00037989,2,-36.78,VAT CAR LEASING,11/07/2013,
140284,JCT600 CONTRACTS LIMITED======,INV00037989,3,36.78,LEASE CAR CHARGES,11/07/2013,
140284,JCT600 CONTRACTS LIMITED======,INV00037990,1,312.03,LEASE CAR CHARGES,11/07/2013,312.03
140284,JCT600 CONTRACTS LIMITED======,INV00037990,2,-26.22,VAT CAR LEASING,11/07/2013,
140284,JCT600 CONTRACTS LIMITED======,INV00037990,3,26.22,LEASE CAR CHARGES,11/07/2013,
140284,JCT600 CONTRACTS LIMITED======,INV00037991,1,430.55,LEASE CAR CHARGES,11/07/2013,430.55
140284,JCT600 CONTRACTS LIMITED======,INV00037991,2,-36.84,VAT CAR LEASING,11/07/2013,
140284,JCT600 CONTRACTS LIMITED======,INV00037991,3,36.84,LEASE CAR CHARGES,11/07/2013,
140284,JCT600 CONTRACTS LIMITED======,INV00037992,1,544.05,LEASE CAR CHARGES,11/07/2013,544.05
140284,JCT600 CONTRACTS LIMITED======,INV00037992,2,-48.22,VAT CAR LEASING,11/07/2013,
140284,JCT600 CONTRACTS LIMITED======,INV00037992,3,48.22,LEASE CAR CHARGES,11/07/2013,
140284,JCT600 CONTRACTS LIMITED======,INV00037993,1,316.58,LEASE CAR CHARGES,11/07/2013,316.58
140284,JCT600 CONTRACTS LIMITED======,INV00037993,2,-26.95,VAT CAR LEASING,11/07/2013,
140284,JCT600 CONTRACTS LIMITED======,INV00037993,3,26.95,LEASE CAR CHARGES,11/07/2013,
080713C,SMITH O'SULLIVAN LTD.=========,LFB/CFS/003,1,"5,271.80",STRATEGIC (NON CYCLICAL),11/07/2013,"5,271.80"
080713C,SMITH O'SULLIVAN LTD.=========,LFB/RFS/003A,1,"7,647.70",STRATEGIC (NON CYCLICAL),11/07/2013,"7,647.70"
040713E,BALFOUR BEATTY WORKPLACE LTD,M 120062,1,"1,734.00",TACTICAL DAY TO DAY,11/07/2013,"1,734.00"
040713E,BALFOUR BEATTY WORKPLACE LTD,M 121678,1,"23,577.87",TACTICAL DAY TO DAY,11/07/2013,"77,520.58"
040713E,BALFOUR BEATTY WORKPLACE LTD,M 121678,2,92.89,TACTICAL DAY TO DAY,11/07/2013,
040713E,BALFOUR BEATTY WORKPLACE LTD,M 121678,3,272.82,TACTICAL DAY TO DAY,11/07/2013,
040713E,BALFOUR BEATTY WORKPLACE LTD,M 121678,4,"52,839.40",STRATEGIC (CYCLICAL),11/07/2013,
040713E,BALFOUR BEATTY WORKPLACE LTD,M 121678,5,208.24,STRATEGIC (CYCLICAL),11/07/2013,
040713E,BALFOUR BEATTY WORKPLACE LTD,M 121678,6,529.36,STRATEGIC (CYCLICAL),11/07/2013,
080713C,BALFOUR BEATTY WORKPLACE LTD,M121059,1,"1,916.00",TACTICAL DAY TO DAY,11/07/2013,"1,916.00"
030713C,W E HEWITT,NEW MALDEN BATC,1,298,TACTICAL DAY TO DAY,11/07/2013,298
080713C,CANNONS MSA LTD,NV1062548,1,299,OPERATIONAL EQUIP-PURCHASE,11/07/2013,299
800021492,ALLSTAR BUSINESS SOLUTIONS LTD,P2001089059,1,"1,404.92",FUEL,11/07/2013,"22,144.77"
800021492,ALLSTAR BUSINESS SOLUTIONS LTD,P2001089059,2,695.32,FUEL,11/07/2013,
800021492,ALLSTAR BUSINESS SOLUTIONS LTD,P2001089059,3,566.41,FUEL,11/07/2013,
800021492,ALLSTAR BUSINESS SOLUTIONS LTD,P2001089059,4,558.87,FUEL,11/07/2013,
800021492,ALLSTAR BUSINESS SOLUTIONS LTD,P2001089059,5,482.65,FUEL,11/07/2013,
800021492,ALLSTAR BUSINESS SOLUTIONS LTD,P2001089059,6,466.83,FUEL,11/07/2013,
800021492,ALLSTAR BUSINESS SOLUTIONS LTD,P2001089059,7,465.3,FUEL,11/07/2013,
800021492,ALLSTAR BUSINESS SOLUTIONS LTD,P2001089059,8,442.45,FUEL,11/07/2013,
800021492,ALLSTAR BUSINESS SOLUTIONS LTD,P2001089059,9,430.75,FUEL,11/07/2013,
800021492,ALLSTAR BUSINESS SOLUTIONS LTD,P2001089059,10,405.81,FUEL,11/07/2013,
800021492,ALLSTAR BUSINESS SOLUTIONS LTD,P2001089059,11,402.54,FUEL,11/07/2013,
800021492,ALLSTAR BUSINESS SOLUTIONS LTD,P2001089059,12,365.06,FUEL,11/07/2013,
800021492,ALLSTAR BUSINESS SOLUTIONS LTD,P2001089059,13,341.08,FUEL,11/07/2013,
800021492,ALLSTAR BUSINESS SOLUTIONS LTD,P2001089059,14,320.5,FUEL,11/07/2013,
800021492,ALLSTAR BUSINESS SOLUTIONS LTD,P2001089059,15,319.53,FUEL,11/07/2013,
800021492,ALLSTAR BUSINESS SOLUTIONS LTD,P2001089059,16,319.48,FUEL,11/07/2013,
800021492,ALLSTAR BUSINESS SOLUTIONS LTD,P2001089059,17,318.53,FUEL,11/07/2013,
800021492,ALLSTAR BUSINESS SOLUTIONS LTD,P2001089059,18,315.5,FUEL,11/07/2013,
800021492,ALLSTAR BUSINESS SOLUTIONS LTD,P2001089059,19,302.34,FUEL,11/07/2013,
800021492,ALLSTAR BUSINESS SOLUTIONS LTD,P2001089059,20,300.27,FUEL,11/07/2013,
800021492,ALLSTAR BUSINESS SOLUTIONS LTD,P2001089059,21,277.19,FUEL,11/07/2013,
800021492,ALLSTAR BUSINESS SOLUTIONS LTD,P2001089059,22,276.37,FUEL,11/07/2013,
800021492,ALLSTAR BUSINESS SOLUTIONS LTD,P2001089059,23,275.95,FUEL,11/07/2013,
800021492,ALLSTAR BUSINESS SOLUTIONS LTD,P2001089059,24,272.46,FUEL,11/07/2013,
800021492,ALLSTAR BUSINESS SOLUTIONS LTD,P2001089059,25,268.16,FUEL,11/07/2013,
800021492,ALLSTAR BUSINESS SOLUTIONS LTD,P2001089059,26,266.42,FUEL,11/07/2013,
800021492,ALLSTAR BUSINESS SOLUTIONS LTD,P2001089059,27,261.51,FUEL,11/07/2013,
800021492,ALLSTAR BUSINESS SOLUTIONS LTD,P2001089059,28,259.2,FUEL,11/07/2013,
800021492,ALLSTAR BUSINESS SOLUTIONS LTD,P2001089059,29,241.99,FUEL,11/07/2013,
800021492,ALLSTAR BUSINESS SOLUTIONS LTD,P2001089059,30,237.3,FUEL,11/07/2013,
800021492,ALLSTAR BUSINESS SOLUTIONS LTD,P2001089059,31,237.24,FUEL,11/07/2013,
800021492,ALLSTAR BUSINESS SOLUTIONS LTD,P2001089059,32,235.42,FUEL,11/07/2013,
800021492,ALLSTAR BUSINESS SOLUTIONS LTD,P2001089059,33,234.86,FUEL,11/07/2013,
800021492,ALLSTAR BUSINESS SOLUTIONS LTD,P2001089059,34,231.09,FUEL,11/07/2013,
800021492,ALLSTAR BUSINESS SOLUTIONS LTD,P2001089059,35,225.62,FUEL,11/07/2013,
800021492,ALLSTAR BUSINESS SOLUTIONS LTD,P2001089059,36,225.17,FUEL,11/07/2013,
800021492,ALLSTAR BUSINESS SOLUTIONS LTD,P2001089059,37,214.53,FUEL,11/07/2013,
800021492,ALLSTAR BUSINESS SOLUTIONS LTD,P2001089059,38,212.19,FUEL,11/07/2013,
800021492,ALLSTAR BUSINESS SOLUTIONS LTD,P2001089059,39,211.09,FUEL,11/07/2013,
800021492,ALLSTAR BUSINESS SOLUTIONS LTD,P2001089059,40,204.08,FUEL,11/07/2013,
800021492,ALLSTAR BUSINESS SOLUTIONS LTD,P2001089059,41,201.08,FUEL,11/07/2013,
800021492,ALLSTAR BUSINESS SOLUTIONS LTD,P2001089059,42,199.79,FUEL,11/07/2013,
800021492,ALLSTAR BUSINESS SOLUTIONS LTD,P2001089059,43,194.94,FUEL,11/07/2013,
800021492,ALLSTAR BUSINESS SOLUTIONS LTD,P2001089059,44,192.82,FUEL,11/07/2013,
800021492,ALLSTAR BUSINESS SOLUTIONS LTD,P2001089059,45,188.51,FUEL,11/07/2013,
800021492,ALLSTAR BUSINESS SOLUTIONS LTD,P2001089059,46,174.36,FUEL,11/07/2013,
800021492,ALLSTAR BUSINESS SOLUTIONS LTD,P2001089059,47,173.65,FUEL,11/07/2013,
800021492,ALLSTAR BUSINESS SOLUTIONS LTD,P2001089059,48,167.61,FUEL,11/07/2013,
800021492,ALLSTAR BUSINESS SOLUTIONS LTD,P2001089059,49,166.26,FUEL,11/07/2013,
800021492,ALLSTAR BUSINESS SOLUTIONS LTD,P2001089059,50,165.3,FUEL,11/07/2013,
800021492,ALLSTAR BUSINESS SOLUTIONS LTD,P2001089059,51,159.08,FUEL,11/07/2013,
800021492,ALLSTAR BUSINESS SOLUTIONS LTD,P2001089059,52,155.47,FUEL,11/07/2013,
800021492,ALLSTAR BUSINESS SOLUTIONS LTD,P2001089059,53,151.86,FUEL,11/07/2013,
800021492,ALLSTAR BUSINESS SOLUTIONS LTD,P2001089059,54,149.1,FUEL,11/07/2013,
800021492,ALLSTAR BUSINESS SOLUTIONS LTD,P2001089059,55,145.74,FUEL,11/07/2013,
800021492,ALLSTAR BUSINESS SOLUTIONS LTD,P2001089059,56,145.38,FUEL,11/07/2013,
800021492,ALLSTAR BUSINESS SOLUTIONS LTD,P2001089059,57,143.9,FUEL,11/07/2013,
800021492,ALLSTAR BUSINESS SOLUTIONS LTD,P2001089059,58,143.36,FUEL,11/07/2013,
800021492,ALLSTAR BUSINESS SOLUTIONS LTD,P2001089059,59,140.63,FUEL,11/07/2013,
800021492,ALLSTAR BUSINESS SOLUTIONS LTD,P2001089059,60,138.39,FUEL,11/07/2013,
800021492,ALLSTAR BUSINESS SOLUTIONS LTD,P2001089059,61,138.38,FUEL,11/07/2013,
800021492,ALLSTAR BUSINESS SOLUTIONS LTD,P2001089059,62,136.68,FUEL,11/07/2013,
800021492,ALLSTAR BUSINESS SOLUTIONS LTD,P2001089059,63,136.37,FUEL,11/07/2013,
800021492,ALLSTAR BUSINESS SOLUTIONS LTD,P2001089059,64,134.3,FUEL,11/07/2013,
800021492,ALLSTAR BUSINESS SOLUTIONS LTD,P2001089059,65,134.3,FUEL,11/07/2013,
800021492,ALLSTAR BUSINESS SOLUTIONS LTD,P2001089059,66,132.72,FUEL,11/07/2013,
800021492,ALLSTAR BUSINESS SOLUTIONS LTD,P2001089059,67,131.27,FUEL,11/07/2013,
800021492,ALLSTAR BUSINESS SOLUTIONS LTD,P2001089059,68,130.53,FUEL,11/07/2013,
800021492,ALLSTAR BUSINESS SOLUTIONS LTD,P2001089059,69,124.46,FUEL,11/07/2013,
800021492,ALLSTAR BUSINESS SOLUTIONS LTD,P2001089059,70,124.43,FUEL,11/07/2013,
800021492,ALLSTAR BUSINESS SOLUTIONS LTD,P2001089059,71,122.72,FUEL,11/07/2013,
800021492,ALLSTAR BUSINESS SOLUTIONS LTD,P2001089059,72,120.52,FUEL,11/07/2013,
800021492,ALLSTAR BUSINESS SOLUTIONS LTD,P2001089059,73,119.68,FUEL,11/07/2013,
800021492,ALLSTAR BUSINESS SOLUTIONS LTD,P2001089059,74,119.31,FUEL,11/07/2013,
800021492,ALLSTAR BUSINESS SOLUTIONS LTD,P2001089059,75,119.14,FUEL,11/07/2013,
800021492,ALLSTAR BUSINESS SOLUTIONS LTD,P2001089059,76,115.36,FUEL,11/07/2013,
800021492,ALLSTAR BUSINESS SOLUTIONS LTD,P2001089059,77,115.35,FUEL,11/07/2013,
800021492,ALLSTAR BUSINESS SOLUTIONS LTD,P2001089059,78,114.24,FUEL,11/07/2013,
800021492,ALLSTAR BUSINESS SOLUTIONS LTD,P2001089059,79,113.78,FUEL,11/07/2013,
800021492,ALLSTAR BUSINESS SOLUTIONS LTD,P2001089059,80,113.77,FUEL,11/07/2013,
800021492,ALLSTAR BUSINESS SOLUTIONS LTD,P2001089059,81,110.66,FUEL,11/07/2013,
800021492,ALLSTAR BUSINESS SOLUTIONS LTD,P2001089059,82,107.44,FUEL,11/07/2013,
800021492,ALLSTAR BUSINESS SOLUTIONS LTD,P2001089059,83,102.72,FUEL,11/07/2013,
800021492,ALLSTAR BUSINESS SOLUTIONS LTD,P2001089059,84,97.04,FUEL,11/07/2013,
800021492,ALLSTAR BUSINESS SOLUTIONS LTD,P2001089059,85,94.26,FUEL,11/07/2013,
800021492,ALLSTAR BUSINESS SOLUTIONS LTD,P2001089059,86,94.15,FUEL,11/07/2013,
800021492,ALLSTAR BUSINESS SOLUTIONS LTD,P2001089059,87,93.78,FUEL,11/07/2013,
800021492,ALLSTAR BUSINESS SOLUTIONS LTD,P2001089059,88,93.72,FUEL,11/07/2013,
800021492,ALLSTAR BUSINESS SOLUTIONS LTD,P2001089059,89,93.59,FUEL,11/07/2013,
800021492,ALLSTAR BUSINESS SOLUTIONS LTD,P2001089059,90,87.21,FUEL,11/07/2013,
800021492,ALLSTAR BUSINESS SOLUTIONS LTD,P2001089059,91,86.7,FUEL,11/07/2013,
800021492,ALLSTAR BUSINESS SOLUTIONS LTD,P2001089059,92,85.65,FUEL,11/07/2013,
800021492,ALLSTAR BUSINESS SOLUTIONS LTD,P2001089059,93,85.23,FUEL,11/07/2013,
800021492,ALLSTAR BUSINESS SOLUTIONS LTD,P2001089059,94,83.08,FUEL,11/07/2013,
800021492,ALLSTAR BUSINESS SOLUTIONS LTD,P2001089059,95,81.42,FUEL,11/07/2013,
800021492,ALLSTAR BUSINESS SOLUTIONS LTD,P2001089059,96,79.93,FUEL,11/07/2013,
800021492,ALLSTAR BUSINESS SOLUTIONS LTD,P2001089059,97,74.51,FUEL,11/07/2013,
800021492,ALLSTAR BUSINESS SOLUTIONS LTD,P2001089059,98,73.28,FUEL,11/07/2013,
800021492,ALLSTAR BUSINESS SOLUTIONS LTD,P2001089059,99,73.2,FUEL,11/07/2013,
800021492,ALLSTAR BUSINESS SOLUTIONS LTD,P2001089059,100,72.65,FUEL,11/07/2013,
800021492,ALLSTAR BUSINESS SOLUTIONS LTD,P2001089059,101,71.43,FUEL,11/07/2013,
800021492,ALLSTAR BUSINESS SOLUTIONS LTD,P2001089059,102,63.91,FUEL,11/07/2013,
800021492,ALLSTAR BUSINESS SOLUTIONS LTD,P2001089059,103,55.76,FUEL,11/07/2013,
800021492,ALLSTAR BUSINESS SOLUTIONS LTD,P2001089059,104,44.82,FUEL,11/07/2013,
800021492,ALLSTAR BUSINESS SOLUTIONS LTD,P2001089059,105,44.15,FUEL,11/07/2013,
800021492,ALLSTAR BUSINESS SOLUTIONS LTD,P2001089059,106,43.11,FUEL,11/07/2013,
800021492,ALLSTAR BUSINESS SOLUTIONS LTD,P2001089059,107,41.23,FUEL,11/07/2013,
800021492,ALLSTAR BUSINESS SOLUTIONS LTD,P2001089059,108,37.71,FUEL,11/07/2013,
800021492,ALLSTAR BUSINESS SOLUTIONS LTD,P2001089059,109,27.32,FUEL,11/07/2013,
800021492,ALLSTAR BUSINESS SOLUTIONS LTD,P2001089059,110,22.13,FUEL,11/07/2013,
800021492,ALLSTAR BUSINESS SOLUTIONS LTD,P2001089059,111,20.4,FUEL,11/07/2013,
800021492,ALLSTAR BUSINESS SOLUTIONS LTD,P2001089059,112,10.23,FUEL,11/07/2013,
800021492,ALLSTAR BUSINESS SOLUTIONS LTD,P2001089059,113,5.83,FUEL,11/07/2013,
800021630,ALLSTAR BUSINESS SOLUTIONS LTD,P2001137787,1,"1,563.29",FUEL,11/07/2013,"23,241.90"
800021630,ALLSTAR BUSINESS SOLUTIONS LTD,P2001137787,2,780.08,FUEL,11/07/2013,
800021630,ALLSTAR BUSINESS SOLUTIONS LTD,P2001137787,3,614.82,FUEL,11/07/2013,
800021630,ALLSTAR BUSINESS SOLUTIONS LTD,P2001137787,4,556.19,FUEL,11/07/2013,
800021630,ALLSTAR BUSINESS SOLUTIONS LTD,P2001137787,5,517.96,FUEL,11/07/2013,
800021630,ALLSTAR BUSINESS SOLUTIONS LTD,P2001137787,6,464.16,FUEL,11/07/2013,
800021630,ALLSTAR BUSINESS SOLUTIONS LTD,P2001137787,7,437.6,FUEL,11/07/2013,
800021630,ALLSTAR BUSINESS SOLUTIONS LTD,P2001137787,8,392.23,FUEL,11/07/2013,
800021630,ALLSTAR BUSINESS SOLUTIONS LTD,P2001137787,9,382.31,FUEL,11/07/2013,
800021630,ALLSTAR BUSINESS SOLUTIONS LTD,P2001137787,10,374.25,FUEL,11/07/2013,
800021630,ALLSTAR BUSINESS SOLUTIONS LTD,P2001137787,11,371.31,FUEL,11/07/2013,
800021630,ALLSTAR BUSINESS SOLUTIONS LTD,P2001137787,12,370.44,FUEL,11/07/2013,
800021630,ALLSTAR BUSINESS SOLUTIONS LTD,P2001137787,13,359.13,FUEL,11/07/2013,
800021630,ALLSTAR BUSINESS SOLUTIONS LTD,P2001137787,14,352.5,FUEL,11/07/2013,
800021630,ALLSTAR BUSINESS SOLUTIONS LTD,P2001137787,15,351.76,FUEL,11/07/2013,
800021630,ALLSTAR BUSINESS SOLUTIONS LTD,P2001137787,16,333.53,FUEL,11/07/2013,
800021630,ALLSTAR BUSINESS SOLUTIONS LTD,P2001137787,17,325.4,FUEL,11/07/2013,
800021630,ALLSTAR BUSINESS SOLUTIONS LTD,P2001137787,18,318.38,FUEL,11/07/2013,
800021630,ALLSTAR BUSINESS SOLUTIONS LTD,P2001137787,19,309.14,FUEL,11/07/2013,
800021630,ALLSTAR BUSINESS SOLUTIONS LTD,P2001137787,20,308.13,FUEL,11/07/2013,
800021630,ALLSTAR BUSINESS SOLUTIONS LTD,P2001137787,21,307.66,FUEL,11/07/2013,
800021630,ALLSTAR BUSINESS SOLUTIONS LTD,P2001137787,22,305.23,FUEL,11/07/2013,
800021630,ALLSTAR BUSINESS SOLUTIONS LTD,P2001137787,23,300.22,FUEL,11/07/2013,
800021630,ALLSTAR BUSINESS SOLUTIONS LTD,P2001137787,24,297.82,FUEL,11/07/2013,
800021630,ALLSTAR BUSINESS SOLUTIONS LTD,P2001137787,25,290.44,FUEL,11/07/2013,
800021630,ALLSTAR BUSINESS SOLUTIONS LTD,P2001137787,26,288.71,FUEL,11/07/2013,
800021630,ALLSTAR BUSINESS SOLUTIONS LTD,P2001137787,27,279.89,FUEL,11/07/2013,
800021630,ALLSTAR BUSINESS SOLUTIONS LTD,P2001137787,28,264.62,FUEL,11/07/2013,
800021630,ALLSTAR BUSINESS SOLUTIONS LTD,P2001137787,29,261.93,FUEL,11/07/2013,
800021630,ALLSTAR BUSINESS SOLUTIONS LTD,P2001137787,30,261.52,FUEL,11/07/2013,
800021630,ALLSTAR BUSINESS SOLUTIONS LTD,P2001137787,31,259.35,FUEL,11/07/2013,
800021630,ALLSTAR BUSINESS SOLUTIONS LTD,P2001137787,32,254.77,FUEL,11/07/2013,
800021630,ALLSTAR BUSINESS SOLUTIONS LTD,P2001137787,33,253.93,FUEL,11/07/2013,
800021630,ALLSTAR BUSINESS SOLUTIONS LTD,P2001137787,34,241.92,FUEL,11/07/2013,
800021630,ALLSTAR BUSINESS SOLUTIONS LTD,P2001137787,35,240.47,FUEL,11/07/2013,
800021630,ALLSTAR BUSINESS SOLUTIONS LTD,P2001137787,36,237.45,FUEL,11/07/2013,
800021630,ALLSTAR BUSINESS SOLUTIONS LTD,P2001137787,37,231.65,FUEL,11/07/2013,
800021630,ALLSTAR BUSINESS SOLUTIONS LTD,P2001137787,38,224.16,FUEL,11/07/2013,
800021630,ALLSTAR BUSINESS SOLUTIONS LTD,P2001137787,39,218.95,FUEL,11/07/2013,
800021630,ALLSTAR BUSINESS SOLUTIONS LTD,P2001137787,40,217.51,FUEL,11/07/2013,
800021630,ALLSTAR BUSINESS SOLUTIONS LTD,P2001137787,41,213.73,FUEL,11/07/2013,
800021630,ALLSTAR BUSINESS SOLUTIONS LTD,P2001137787,42,213.54,FUEL,11/07/2013,
800021630,ALLSTAR BUSINESS SOLUTIONS LTD,P2001137787,43,213.29,FUEL,11/07/2013,
800021630,ALLSTAR BUSINESS SOLUTIONS LTD,P2001137787,44,213,FUEL,11/07/2013,
800021630,ALLSTAR BUSINESS SOLUTIONS LTD,P2001137787,45,210.34,FUEL,11/07/2013,
800021630,ALLSTAR BUSINESS SOLUTIONS LTD,P2001137787,46,209.17,FUEL,11/07/2013,
800021630,ALLSTAR BUSINESS SOLUTIONS LTD,P2001137787,47,202.97,FUEL,11/07/2013,
800021630,ALLSTAR BUSINESS SOLUTIONS LTD,P2001137787,48,194.12,FUEL,11/07/2013,
800021630,ALLSTAR BUSINESS SOLUTIONS LTD,P2001137787,49,183.15,FUEL,11/07/2013,
800021630,ALLSTAR BUSINESS SOLUTIONS LTD,P2001137787,50,182.66,FUEL,11/07/2013,
800021630,ALLSTAR BUSINESS SOLUTIONS LTD,P2001137787,51,182.31,FUEL,11/07/2013,
800021630,ALLSTAR BUSINESS SOLUTIONS LTD,P2001137787,52,178.53,FUEL,11/07/2013,
800021630,ALLSTAR BUSINESS SOLUTIONS LTD,P2001137787,53,169.04,FUEL,11/07/2013,
800021630,ALLSTAR BUSINESS SOLUTIONS LTD,P2001137787,54,165.47,FUEL,11/07/2013,
800021630,ALLSTAR BUSINESS SOLUTIONS LTD,P2001137787,55,162.18,FUEL,11/07/2013,
800021630,ALLSTAR BUSINESS SOLUTIONS LTD,P2001137787,56,161.11,FUEL,11/07/2013,
800021630,ALLSTAR BUSINESS SOLUTIONS LTD,P2001137787,57,161.03,FUEL,11/07/2013,
800021630,ALLSTAR BUSINESS SOLUTIONS LTD,P2001137787,58,160.36,FUEL,11/07/2013,
800021630,ALLSTAR BUSINESS SOLUTIONS LTD,P2001137787,59,157.92,FUEL,11/07/2013,
800021630,ALLSTAR BUSINESS SOLUTIONS LTD,P2001137787,60,155.54,FUEL,11/07/2013,
800021630,ALLSTAR BUSINESS SOLUTIONS LTD,P2001137787,61,151.99,FUEL,11/07/2013,
800021630,ALLSTAR BUSINESS SOLUTIONS LTD,P2001137787,62,147.41,FUEL,11/07/2013,
800021630,ALLSTAR BUSINESS SOLUTIONS LTD,P2001137787,63,147.04,FUEL,11/07/2013,
800021630,ALLSTAR BUSINESS SOLUTIONS LTD,P2001137787,64,143.6,FUEL,11/07/2013,
800021630,ALLSTAR BUSINESS SOLUTIONS LTD,P2001137787,65,142.08,FUEL,11/07/2013,
800021630,ALLSTAR BUSINESS SOLUTIONS LTD,P2001137787,66,138.6,FUEL,11/07/2013,
800021630,ALLSTAR BUSINESS SOLUTIONS LTD,P2001137787,67,138.33,FUEL,11/07/2013,
800021630,ALLSTAR BUSINESS SOLUTIONS LTD,P2001137787,68,137.86,FUEL,11/07/2013,
800021630,ALLSTAR BUSINESS SOLUTIONS LTD,P2001137787,69,135.36,FUEL,11/07/2013,
800021630,ALLSTAR BUSINESS SOLUTIONS LTD,P2001137787,70,135.19,FUEL,11/07/2013,
800021630,ALLSTAR BUSINESS SOLUTIONS LTD,P2001137787,71,134.44,FUEL,11/07/2013,
800021630,ALLSTAR BUSINESS SOLUTIONS LTD,P2001137787,72,133.47,FUEL,11/07/2013,
800021630,ALLSTAR BUSINESS SOLUTIONS LTD,P2001137787,73,133.26,FUEL,11/07/2013,
800021630,ALLSTAR BUSINESS SOLUTIONS LTD,P2001137787,74,131.54,FUEL,11/07/2013,
800021630,ALLSTAR BUSINESS SOLUTIONS LTD,P2001137787,75,129.33,FUEL,11/07/2013,
800021630,ALLSTAR BUSINESS SOLUTIONS LTD,P2001137787,76,127,FUEL,11/07/2013,
800021630,ALLSTAR BUSINESS SOLUTIONS LTD,P2001137787,77,123.47,FUEL,11/07/2013,
800021630,ALLSTAR BUSINESS SOLUTIONS LTD,P2001137787,78,121.58,FUEL,11/07/2013,
800021630,ALLSTAR BUSINESS SOLUTIONS LTD,P2001137787,79,120.76,FUEL,11/07/2013,
800021630,ALLSTAR BUSINESS SOLUTIONS LTD,P2001137787,80,114.57,FUEL,11/07/2013,
800021630,ALLSTAR BUSINESS SOLUTIONS LTD,P2001137787,81,111.25,FUEL,11/07/2013,
800021630,ALLSTAR BUSINESS SOLUTIONS LTD,P2001137787,82,110.5,FUEL,11/07/2013,
800021630,ALLSTAR BUSINESS SOLUTIONS LTD,P2001137787,83,105.14,FUEL,11/07/2013,
800021630,ALLSTAR BUSINESS SOLUTIONS LTD,P2001137787,84,103.83,FUEL,11/07/2013,
800021630,ALLSTAR BUSINESS SOLUTIONS LTD,P2001137787,85,102.53,FUEL,11/07/2013,
800021630,ALLSTAR BUSINESS SOLUTIONS LTD,P2001137787,86,101.68,FUEL,11/07/2013,
800021630,ALLSTAR BUSINESS SOLUTIONS LTD,P2001137787,87,101.5,FUEL,11/07/2013,
800021630,ALLSTAR BUSINESS SOLUTIONS LTD,P2001137787,88,100.84,FUEL,11/07/2013,
800021630,ALLSTAR BUSINESS SOLUTIONS LTD,P2001137787,89,95.35,FUEL,11/07/2013,
800021630,ALLSTAR BUSINESS SOLUTIONS LTD,P2001137787,90,95.23,FUEL,11/07/2013,
800021630,ALLSTAR BUSINESS SOLUTIONS LTD,P2001137787,91,94.32,FUEL,11/07/2013,
800021630,ALLSTAR BUSINESS SOLUTIONS LTD,P2001137787,92,92.82,FUEL,11/07/2013,
800021630,ALLSTAR BUSINESS SOLUTIONS LTD,P2001137787,93,92.62,FUEL,11/07/2013,
800021630,ALLSTAR BUSINESS SOLUTIONS LTD,P2001137787,94,88.97,FUEL,11/07/2013,
800021630,ALLSTAR BUSINESS SOLUTIONS LTD,P2001137787,95,80.08,FUEL,11/07/2013,
800021630,ALLSTAR BUSINESS SOLUTIONS LTD,P2001137787,96,78.45,FUEL,11/07/2013,
800021630,ALLSTAR BUSINESS SOLUTIONS LTD,P2001137787,97,76.32,FUEL,11/07/2013,
800021630,ALLSTAR BUSINESS SOLUTIONS LTD,P2001137787,98,74.58,FUEL,11/07/2013,
800021630,ALLSTAR BUSINESS SOLUTIONS LTD,P2001137787,99,65.45,FUEL,11/07/2013,
800021630,ALLSTAR BUSINESS SOLUTIONS LTD,P2001137787,100,60.86,FUEL,11/07/2013,
800021630,ALLSTAR BUSINESS SOLUTIONS LTD,P2001137787,101,59.46,FUEL,11/07/2013,
800021630,ALLSTAR BUSINESS SOLUTIONS LTD,P2001137787,102,57.93,FUEL,11/07/2013,
800021630,ALLSTAR BUSINESS SOLUTIONS LTD,P2001137787,103,52.13,FUEL,11/07/2013,
800021630,ALLSTAR BUSINESS SOLUTIONS LTD,P2001137787,104,46.06,FUEL,11/07/2013,
800021630,ALLSTAR BUSINESS SOLUTIONS LTD,P2001137787,105,45.87,FUEL,11/07/2013,
800021630,ALLSTAR BUSINESS SOLUTIONS LTD,P2001137787,106,31.54,FUEL,11/07/2013,
800021630,ALLSTAR BUSINESS SOLUTIONS LTD,P2001137787,107,10.86,FUEL,11/07/2013,
800021630,ALLSTAR BUSINESS SOLUTIONS LTD,P2001137787,108,8.58,FUEL,11/07/2013,
140271,MAYPLACE PROPERTY SERVICES LIM,SI-1016,1,425,STRATEGIC (NON CYCLICAL),11/07/2013,"1,025.94"
140271,MAYPLACE PROPERTY SERVICES LIM,SI-1016,2,600.94,STRATEGIC (NON CYCLICAL),11/07/2013,
140277,MAYPLACE PROPERTY SERVICES LIM,SI-1017,1,"1,411.25",STRATEGIC (NON CYCLICAL),11/07/2013,"2,411.25"
140277,MAYPLACE PROPERTY SERVICES LIM,SI-1017,2,"1,000.00",STRATEGIC (NON CYCLICAL),11/07/2013,
080713C,SKYGUARD LTD,SI01125470,1,"1,870.00",GENERAL,11/07/2013,"1,870.00"
050713C,SUNLIGHT SERVICE GROUP LTD====,SN1348677,1,"9,611.30",LAUNDRY,11/07/2013,"9,611.30"
050713C,SABRE SAFETY LTD,SUKIN09779,1,186.62,PROTECTIVE EQUIPT - PARTS,11/07/2013,421.87
050713C,SABRE SAFETY LTD,SUKIN09779,2,222.75,PROTECTIVE EQUIPT - PARTS,11/07/2013,
050713C,SABRE SAFETY LTD,SUKIN09779,3,12.5,REPAIR & MAINTENANCE,11/07/2013,
050713C,ARVAL UK LTD,VS0000764543,1,414.92,CONTRACT HIRE,11/07/2013,414.92
040713E,DNV CERTIFICATION LTD=========,ZNOUK70149622,1,"1,446.90",CONSULTANTS,11/07/2013,"1,446.90"
050713C,HAYS ACCOUNTANCY & FINANCE====,1003323647,1,696,FRS STAFF AGENCY,15/07/2013,696
050713C,*SPRUE SAFETY PRODUCTS LTD====,1048853,1,"1,137.60",FIRE DETECTORS,15/07/2013,"1,137.60"
050713C,*SPRUE SAFETY PRODUCTS LTD====,1048854,1,"1,137.60",FIRE DETECTORS,15/07/2013,"1,137.60"
100713H,*SPRUE SAFETY PRODUCTS LTD====,1048856,1,"1,137.60",FIRE DETECTORS,15/07/2013,"1,137.60"
100713H,*SPRUE SAFETY PRODUCTS LTD====,1048857,1,"2,275.20",FIRE DETECTORS,15/07/2013,"2,275.20"
100713H,*SPRUE SAFETY PRODUCTS LTD====,1048858,1,"2,275.20",FIRE DETECTORS,15/07/2013,"2,275.20"
050713C,*SPRUE SAFETY PRODUCTS LTD====,1048859,1,"1,137.60",FIRE DETECTORS,15/07/2013,"1,137.60"
050713C,*SPRUE SAFETY PRODUCTS LTD====,1048860,1,"2,275.20",FIRE DETECTORS,15/07/2013,"2,275.20"
050713C,*SPRUE SAFETY PRODUCTS LTD====,1048861,1,"2,275.20",FIRE DETECTORS,15/07/2013,"2,275.20"
050713C,*SPRUE SAFETY PRODUCTS LTD====,1048865,1,"2,275.20",FIRE DETECTORS,15/07/2013,"2,275.20"
050713C,*SPRUE SAFETY PRODUCTS LTD====,1048866,1,"1,137.60",FIRE DETECTORS,15/07/2013,"1,137.60"
100713H,*SPRUE SAFETY PRODUCTS LTD====,1048867,1,"1,137.60",FIRE DETECTORS,15/07/2013,"1,137.60"
050713C,*SPRUE SAFETY PRODUCTS LTD====,1048868,1,"2,275.20",FIRE DETECTORS,15/07/2013,"2,275.20"
050713C,*SPRUE SAFETY PRODUCTS LTD====,1048869,1,"2,275.20",FIRE DETECTORS,15/07/2013,"2,275.20"
050713C,*SPRUE SAFETY PRODUCTS LTD====,1048870,1,"1,137.60",FIRE DETECTORS,15/07/2013,"1,137.60"
050713C,*SPRUE SAFETY PRODUCTS LTD====,1048871,1,"2,275.20",FIRE DETECTORS,15/07/2013,"2,275.20"
050713C,*SPRUE SAFETY PRODUCTS LTD====,1048872,1,"1,137.60",FIRE DETECTORS,15/07/2013,"1,137.60"
050713C,*SPRUE SAFETY PRODUCTS LTD====,1048874,1,"2,148.80",FIRE DETECTORS,15/07/2013,"2,148.80"
050713C,*SPRUE SAFETY PRODUCTS LTD====,1048875,1,"1,137.60",FIRE DETECTORS,15/07/2013,"1,137.60"
050713C,*SPRUE SAFETY PRODUCTS LTD====,1048876,1,"2,275.20",FIRE DETECTORS,15/07/2013,"2,275.20"
100713H,*SPRUE SAFETY PRODUCTS LTD====,1048877,1,"2,275.20",FIRE DETECTORS,15/07/2013,"2,275.20"
050713C,*SPRUE SAFETY PRODUCTS LTD====,1048878,1,"2,275.20",FIRE DETECTORS,15/07/2013,"2,275.20"
050713C,*SPRUE SAFETY PRODUCTS LTD====,1048884,1,"1,137.60",FIRE DETECTORS,15/07/2013,"1,137.60"
050713C,*SPRUE SAFETY PRODUCTS LTD====,1048885,1,"1,137.60",FIRE DETECTORS,15/07/2013,"1,137.60"
050713C,*SPRUE SAFETY PRODUCTS LTD====,1048886,1,"1,137.60",FIRE DETECTORS,15/07/2013,"1,137.60"
050713C,*SPRUE SAFETY PRODUCTS LTD====,1048887,1,"2,275.20",FIRE DETECTORS,15/07/2013,"2,275.20"
050713C,*SPRUE SAFETY PRODUCTS LTD====,1048888,1,"2,275.20",FIRE DETECTORS,15/07/2013,"2,275.20"
050713C,*SPRUE SAFETY PRODUCTS LTD====,1048889,1,"2,275.20",FIRE DETECTORS,15/07/2013,"2,275.20"
050713C,*SPRUE SAFETY PRODUCTS LTD====,1048890,1,"2,275.20",FIRE DETECTORS,15/07/2013,"2,275.20"
080713C,*SPRUE SAFETY PRODUCTS LTD====,1048891,1,758.4,FIRE DETECTORS,15/07/2013,758.4
050713C,*SPRUE SAFETY PRODUCTS LTD====,1048892,1,"1,896.00",FIRE DETECTORS,15/07/2013,"1,896.00"
050713C,*SPRUE SAFETY PRODUCTS LTD====,1048893,1,758.4,FIRE DETECTORS,15/07/2013,758.4
080713C,*SPRUE SAFETY PRODUCTS LTD====,1048896,1,758.4,FIRE DETECTORS,15/07/2013,758.4
050713C,*SPRUE SAFETY PRODUCTS LTD====,1048898,1,"1,516.80",FIRE DETECTORS,15/07/2013,"1,516.80"
050713C,*SPRUE SAFETY PRODUCTS LTD====,1048899,1,"1,516.80",FIRE DETECTORS,15/07/2013,"1,516.80"
050713C,*SPRUE SAFETY PRODUCTS LTD====,1048902,1,"2,780.80",FIRE DETECTORS,15/07/2013,"2,780.80"
050713C,*SPRUE SAFETY PRODUCTS LTD====,1048903,1,"2,528.00",FIRE DETECTORS,15/07/2013,"2,528.00"
140288,ARVAL UK LTD,1049862,1,"1,576.26",LEASE CAR CHARGES,15/07/2013,"5,136.91"
140288,ARVAL UK LTD,1049862,2,"3,560.65",LEASE CAR CHARGES,15/07/2013,
140288,ARVAL UK LTD,1049862,3,-454.94,VAT CAR LEASING,15/07/2013,
140288,ARVAL UK LTD,1049862,4,454.94,LEASE CAR CHARGES,15/07/2013,
100713C,DELOITTE LLP,1110945320,1,"23,125.20",PROFESSIONAL SERVICES,15/07/2013,"23,125.20"
100713C,DELOITTE LLP,1110945326,1,"1,211.32",PROFESSIONAL SERVICES,15/07/2013,"1,211.32"
100713C,DELOITTE LLP,1110945337,1,"10,861.77",PROFESSIONAL SERVICES,15/07/2013,"10,861.77"
100713C,DELOITTE LLP,1110945340,1,"9,126.20",PROFESSIONAL SERVICES,15/07/2013,"9,126.20"
100713C,DELOITTE LLP,1110945350,1,"16,765.77",PROFESSIONAL SERVICES,15/07/2013,"16,765.77"
100713C,VIGILANCE PROPERTIES,1222,1,"7,500.00",PREMISES SECURITY,15/07/2013,"7,500.00"
140288,GALLAGHER HEATH,12648734,1,"5,100.00",CONSULTANTS,15/07/2013,"6,800.00"
140288,GALLAGHER HEATH,12648734,2,"1,700.00",PAYMENTS IN ADVANCE,15/07/2013,
270613H,MAYFAIR'S COACHES LTD=========,12853,1,550,CONTRACT HIRE,15/07/2013,550
100713C,W G WIGGINTON LTD,13-021,1,"7,675.50",DEVELOPMENT  EXPENSES-CONTRACT,15/07/2013,"8,925.00"
100713C,W G WIGGINTON LTD,13-021,2,"1,249.50",DEVELOPMENT  EXPENSES-CONTRACT,15/07/2013,
080713G,VALENTINE WALSH===============,1306050,1,"2,185.00",SPECIALIST EQUIPMENT,15/07/2013,"2,185.00"
100713C,SURREY BLIND & CURTAIN CO=====,13805,1,162,FIXTURES & FITTINGS,15/07/2013,280
100713C,SURREY BLIND & CURTAIN CO=====,13805,2,118,FIXTURES & FITTINGS,15/07/2013,
100713C,DRON & WRIGHT=================,16512,1,"2,478.00",PROFESSIONAL SERVICES,15/07/2013,"2,478.00"
100713C,B NOKES CONTRACTS LTD,1815,1,340,TACTICAL DAY TO DAY,15/07/2013,340
100713C,CARPETS & FLOOR COVERS DIRECT=,1818,1,"1,050.00",STRATEGIC (NON CYCLICAL),15/07/2013,"1,050.00"
140290,MR JAMES TODD=================,181864,1,"7,035.00",COUNSELS FEES,15/07/2013,"7,035.00"
100713C,B NOKES CONTRACTS LTD,1826,1,"4,019.00",STRATEGIC (NON CYCLICAL),15/07/2013,"4,019.00"
100713C,B NOKES CONTRACTS LTD,1828,1,"2,740.50",STRATEGIC (NON CYCLICAL),15/07/2013,"3,340.50"
100713C,B NOKES CONTRACTS LTD,1828,2,600,STRATEGIC (NON CYCLICAL),15/07/2013,
100713C,GRADIENT CONSULTANTS LLP======,1842,1,189.84,ASBESTOS,15/07/2013,"7,156.20"
100713C,GRADIENT CONSULTANTS LLP======,1842,2,295.3,ASBESTOS,15/07/2013,
100713C,GRADIENT CONSULTANTS LLP======,1842,3,126.55,ASBESTOS,15/07/2013,
100713C,GRADIENT CONSULTANTS LLP======,1842,4,290.02,ASBESTOS,15/07/2013,
100713C,GRADIENT CONSULTANTS LLP======,1842,5,290.02,ASBESTOS,15/07/2013,
100713C,GRADIENT CONSULTANTS LLP======,1842,6,290.02,ASBESTOS,15/07/2013,
100713C,GRADIENT CONSULTANTS LLP======,1842,7,290.02,ASBESTOS,15/07/2013,
100713C,GRADIENT CONSULTANTS LLP======,1842,8,290.02,ASBESTOS,15/07/2013,
100713C,GRADIENT CONSULTANTS LLP======,1842,9,290.02,ASBESTOS,15/07/2013,
100713C,GRADIENT CONSULTANTS LLP======,1842,10,290.02,ASBESTOS,15/07/2013,
100713C,GRADIENT CONSULTANTS LLP======,1842,11,290.02,ASBESTOS,15/07/2013,
100713C,GRADIENT CONSULTANTS LLP======,1842,12,290.02,ASBESTOS,15/07/2013,
100713C,GRADIENT CONSULTANTS LLP======,1842,13,197.75,ASBESTOS,15/07/2013,
100713C,GRADIENT CONSULTANTS LLP======,1842,14,290.02,ASBESTOS,15/07/2013,
100713C,GRADIENT CONSULTANTS LLP======,1842,15,290.02,ASBESTOS,15/07/2013,
100713C,GRADIENT CONSULTANTS LLP======,1842,16,290.02,ASBESTOS,15/07/2013,
100713C,GRADIENT CONSULTANTS LLP======,1842,17,295.3,ASBESTOS,15/07/2013,
100713C,GRADIENT CONSULTANTS LLP======,1842,18,290.02,ASBESTOS,15/07/2013,
100713C,GRADIENT CONSULTANTS LLP======,1842,19,290.02,ASBESTOS,15/07/2013,
100713C,GRADIENT CONSULTANTS LLP======,1842,20,812.06,ASBESTOS,15/07/2013,
100713C,GRADIENT CONSULTANTS LLP======,1842,21,104.41,STRATEGIC (NON CYCLICAL),15/07/2013,
100713C,GRADIENT CONSULTANTS LLP======,1842,22,104.41,ASBESTOS,15/07/2013,
100713C,GRADIENT CONSULTANTS LLP======,1842,23,52.74,ASBESTOS,15/07/2013,
100713C,GRADIENT CONSULTANTS LLP======,1842,24,104.41,ASBESTOS,15/07/2013,
100713C,GRADIENT CONSULTANTS LLP======,1842,25,104.41,ASBESTOS,15/07/2013,
100713C,GRADIENT CONSULTANTS LLP======,1842,26,104.41,ASBESTOS,15/07/2013,
100713C,GRADIENT CONSULTANTS LLP======,1842,27,104.41,ASBESTOS,15/07/2013,
100713C,GRADIENT CONSULTANTS LLP======,1842,28,104.41,ASBESTOS,15/07/2013,
100713C,GRADIENT CONSULTANTS LLP======,1842,29,52.74,ASBESTOS,15/07/2013,
100713C,GRADIENT CONSULTANTS LLP======,1842,30,114.25,ASBESTOS,15/07/2013,
100713C,GRADIENT CONSULTANTS LLP======,1842,31,114.25,ASBESTOS,15/07/2013,
100713C,GRADIENT CONSULTANTS LLP======,1842,32,114.27,ASBESTOS,15/07/2013,
100713C,GRADIENT CONSULTANTS LLP======,1843,1,185.88,PROF FEES-MISCELLANEOUS,15/07/2013,"1,264.25"
100713C,GRADIENT CONSULTANTS LLP======,1843,2,79.1,PROF FEES-MISCELLANEOUS,15/07/2013,
100713C,GRADIENT CONSULTANTS LLP======,1843,3,419.22,PROF FEES-MISCELLANEOUS,15/07/2013,
100713C,GRADIENT CONSULTANTS LLP======,1843,4,419.22,PROF FEES-MISCELLANEOUS,15/07/2013,
100713C,GRADIENT CONSULTANTS LLP======,1843,5,61.96,PROF FEES-MISCELLANEOUS,15/07/2013,
100713C,GRADIENT CONSULTANTS LLP======,1843,6,98.87,PROF FEES-MISCELLANEOUS,15/07/2013,
100713C,CARPETS & FLOOR COVERS DIRECT=,1895,1,582,FIXTURES & FITTINGS,15/07/2013,582
100713C,*LOCKHART CATERING EQUIPMENT,1985616,1,33.84,CATERING EQUIPMENT,15/07/2013,364.08
100713C,*LOCKHART CATERING EQUIPMENT,1985616,2,30.96,CATERING EQUIPMENT,15/07/2013,
100713C,*LOCKHART CATERING EQUIPMENT,1985616,3,28.68,CATERING EQUIPMENT,15/07/2013,
100713C,*LOCKHART CATERING EQUIPMENT,1985616,4,21.88,CATERING EQUIPMENT,15/07/2013,
100713C,*LOCKHART CATERING EQUIPMENT,1985616,5,28.96,CATERING EQUIPMENT,15/07/2013,
100713C,*LOCKHART CATERING EQUIPMENT,1985616,6,57.36,CATERING EQUIPMENT,15/07/2013,
100713C,*LOCKHART CATERING EQUIPMENT,1985616,7,28.68,CATERING EQUIPMENT,15/07/2013,
100713C,*LOCKHART CATERING EQUIPMENT,1985616,8,12.57,CATERING EQUIPMENT,15/07/2013,
100713C,*LOCKHART CATERING EQUIPMENT,1985616,9,1.13,CATERING EQUIPMENT,15/07/2013,
100713C,*LOCKHART CATERING EQUIPMENT,1985616,10,25.78,CATERING EQUIPMENT,15/07/2013,
100713C,*LOCKHART CATERING EQUIPMENT,1985616,11,12.57,CATERING EQUIPMENT,15/07/2013,
100713C,*LOCKHART CATERING EQUIPMENT,1985616,12,25.78,CATERING EQUIPMENT,15/07/2013,
100713C,*LOCKHART CATERING EQUIPMENT,1985616,13,54.76,CATERING EQUIPMENT,15/07/2013,
100713C,*LOCKHART CATERING EQUIPMENT,1985616,14,1.13,CATERING EQUIPMENT,15/07/2013,
010713E,SAFEGUARD PEST CON. & ENV.LTD,210533,1,480,PEST CONTROL,15/07/2013,480
100713C,AUTOGLASS LIMITED=============,21588998,1,607.3,WINDSCREEN & TYRE CHARGES,15/07/2013,607.3
800021784,ADECCO UK LIMITED=============,26465485,1,439.6,FRS STAFF AGENCY,15/07/2013,439.6
800021786,ADECCO UK LIMITED=============,26465487,1,"1,166.76",FRS STAFF AGENCY,15/07/2013,"1,166.76"
800021787,ADECCO UK LIMITED=============,26465488,1,952.7,FRS STAFF AGENCY,15/07/2013,952.7
800021788,ADECCO UK LIMITED=============,26465489,1,945.42,FRS STAFF AGENCY,15/07/2013,945.42
800021789,ADECCO UK LIMITED=============,26465490,1,"1,949.85",FRS STAFF AGENCY,15/07/2013,"1,949.85"
800021790,ADECCO UK LIMITED=============,26465491,1,594.3,FRS STAFF AGENCY,15/07/2013,594.3
800021791,ADECCO UK LIMITED=============,26465492,1,880.32,FRS STAFF AGENCY,15/07/2013,880.32
800021792,ADECCO UK LIMITED=============,26465493,1,439.6,FRS STAFF AGENCY,15/07/2013,439.6
800021793,ADECCO UK LIMITED=============,26465494,1,594.3,FRS STAFF AGENCY,15/07/2013,594.3
800021794,ADECCO UK LIMITED=============,26465495,1,439.6,FRS STAFF AGENCY,15/07/2013,439.6
800021795,ADECCO UK LIMITED=============,26465496,1,303.87,FRS STAFF AGENCY,15/07/2013,303.87
800021796,ADECCO UK LIMITED=============,26465497,1,554.75,FRS STAFF AGENCY,15/07/2013,554.75
800021797,ADECCO UK LIMITED=============,26465498,1,554.75,FRS STAFF AGENCY,15/07/2013,554.75
800021798,ADECCO UK LIMITED=============,26465499,1,"1,483.68",FRS STAFF AGENCY,15/07/2013,"1,483.68"
800021800,ADECCO UK LIMITED=============,26468744,1,"1,212.00",FRS STAFF AGENCY,15/07/2013,"1,212.00"
800021801,ADECCO UK LIMITED=============,26468745,1,"1,131.55",FRS STAFF AGENCY,15/07/2013,"1,131.55"
800021802,ADECCO UK LIMITED=============,26468746,1,"1,292.20",FRS STAFF AGENCY,15/07/2013,"1,292.20"
800021803,ADECCO UK LIMITED=============,26468747,1,"1,292.20",FRS STAFF AGENCY,15/07/2013,"1,292.20"
800021804,ADECCO UK LIMITED=============,26468748,1,"1,292.20",FRS STAFF AGENCY,15/07/2013,"1,292.20"
100713H,MACE LIMITED,26915/0912060,1,120.34,PROF FEES-MISCELLANEOUS,15/07/2013,"3,781.72"
100713H,MACE LIMITED,26915/0912060,2,"3,661.38",PROF FEES-MISCELLANEOUS,15/07/2013,
100713C,CIPFA BUSINESS,3084901,1,658.75,BOOKS & JOURNALS,15/07/2013,658.75
050713C,L B OF SUTTON=================,3183507144,1,767,CRB CHECKS,15/07/2013,767
090713G,HUNTERS CONTRACTS LIMITED,342521,1,359.1,OFFICE FURNITURE,15/07/2013,359.1
050713C,HUNTERS CONTRACTS LIMITED,342548,1,718.2,OFFICE FURNITURE,15/07/2013,"1,077.30"
050713C,HUNTERS CONTRACTS LIMITED,342548,2,359.1,OFFICE FURNITURE,15/07/2013,
100713C,MUSCO LIGHTING EUROPE LTD=====,3809,1,"3,853.33",GENERAL,15/07/2013,"3,853.33"
100713H,LOCAL GOVERNMENT ASSOCIATION==,40131271,1,495,PROFESSIONAL DEVELOPMENT,15/07/2013,495
100713C,CANON (UK) LTD===============,401396800,1,264.92,OFFICE EQUIPMENT,15/07/2013,322.59
100713C,CANON (UK) LTD===============,401396800,2,57.67,OFFICE EQUIPMENT,15/07/2013,
140290,MISS NADIA WHITTAKER,411591,1,450,COUNSELS FEES,15/07/2013,450
800021783,*BURLINGTON UNIFORMS LTD,419144,1,"1,972.80",UNIFORMS - POMS,15/07/2013,"1,972.80"
100713H,R J HOLLAND LTD===============,4774,1,"2,965.00",STRATEGIC (NON CYCLICAL),15/07/2013,"2,965.00"
050713C,DISCLOSURE SCOTLAND===========,592188,1,925,CRB CHECKS,15/07/2013,925
100713C,CONTRACT CATERING CONSULTANTS=,6183,1,500,CONSULTANTS,15/07/2013,500
100713C,TWO SERVICES LTD==============,71142,1,120,CATERING EQUIPMENT,15/07/2013,329.24
100713C,TWO SERVICES LTD==============,71142,2,209.24,CATERING EQUIPMENT,15/07/2013,
100713C,BOON EDAM LTD,712812,1,391.5,STRATEGIC (CYCLICAL),15/07/2013,391.5
100713C,TWO SERVICES LTD==============,71310,1,681.5,CATERING EQUIPMENT,15/07/2013,681.5
090713G,HASKEL ENERGY SYSTEMS LIMITED=,821253,1,"1,924.33",REPAIR & MAINTENANCE,15/07/2013,"1,924.33"
140288,CITY UNIVERSITY===============,90283062,1,"3,360.00",MEDICAL EXPENSES,15/07/2013,"3,360.00"
100713C,FIRE SERVICE COLLEGE LTD======,93062698,1,350,PROTECTIVE EQUIPMENT R & D,15/07/2013,350
800021364,*GET YOURSELF NOTICED LTD,9675,1,277.1,COMMUNITY RELATIONS,15/07/2013,704.1
800021364,*GET YOURSELF NOTICED LTD,9675,2,244,COMMUNITY RELATIONS,15/07/2013,
800021364,*GET YOURSELF NOTICED LTD,9675,3,183,COMMUNITY RELATIONS,15/07/2013,
800021366,*GET YOURSELF NOTICED LTD,9681,1,660,PUBLIC RELATIONS,15/07/2013,660
800021368,*GET YOURSELF NOTICED LTD,9706,1,419.6,PUBLIC RELATIONS,15/07/2013,419.6
800021367,*GET YOURSELF NOTICED LTD,9714,1,316,OPERATIONAL EQUIP-PURCHASE,15/07/2013,316
100713C,CPL PETROLEUM=================,9764218,1,"3,611.53",FUEL,15/07/2013,"3,611.53"
140288,JCT600 CONTRACTS LIMITED======,INV00038458,1,"2,365.25",LEASE CAR CHARGES,15/07/2013,"3,385.55"
140288,JCT600 CONTRACTS LIMITED======,INV00038458,2,"1,020.30",P/PAYMTS-CAR LEASG-RENTAL,15/07/2013,
140288,JCT600 CONTRACTS LIMITED======,INV00038458,3,-298.39,VAT CAR LEASING,15/07/2013,
140288,JCT600 CONTRACTS LIMITED======,INV00038458,4,298.39,LEASE CAR CHARGES,15/07/2013,
140288,JCT600 CONTRACTS LIMITED======,INV00038459,1,"3,605.50",LEASE CAR CHARGES,15/07/2013,"4,802.95"
140288,JCT600 CONTRACTS LIMITED======,INV00038459,2,"1,197.45",P/PAYMTS-CAR LEASG-RENTAL,15/07/2013,
140288,JCT600 CONTRACTS LIMITED======,INV00038459,3,-424.32,VAT CAR LEASING,15/07/2013,
140288,JCT600 CONTRACTS LIMITED======,INV00038459,4,424.32,LEASE CAR CHARGES,15/07/2013,
140288,JCT600 CONTRACTS LIMITED======,INV00038460,1,"3,307.03",LEASE CAR CHARGES,15/07/2013,"4,487.24"
140288,JCT600 CONTRACTS LIMITED======,INV00038460,2,"1,180.21",P/PAYMTS-CAR LEASG-RENTAL,15/07/2013,
140288,JCT600 CONTRACTS LIMITED======,INV00038460,3,-394.24,VAT CAR LEASING,15/07/2013,
140288,JCT600 CONTRACTS LIMITED======,INV00038460,4,394.24,LEASE CAR CHARGES,15/07/2013,
100713H,BALFOUR BEATTY WORKPLACE LTD,M119180,1,"3,330.00",STRATEGIC (NON CYCLICAL),15/07/2013,"3,330.00"
100713H,BALFOUR BEATTY WORKPLACE LTD,M119185,1,692,STRATEGIC (NON CYCLICAL),15/07/2013,692
100713H,BALFOUR BEATTY WORKPLACE LTD,M119245,1,"1,484.00",STRATEGIC (NON CYCLICAL),15/07/2013,"1,484.00"
100713H,BALFOUR BEATTY WORKPLACE LTD,M121057,1,"2,062.00",STRATEGIC (NON CYCLICAL),15/07/2013,"2,062.00"
100713H,BALFOUR BEATTY WORKPLACE LTD,M121060,1,"3,671.00",STRATEGIC (NON CYCLICAL),15/07/2013,"3,671.00"
100713H,BALFOUR BEATTY WORKPLACE LTD,M121676,1,"1,149.00",STRATEGIC (NON CYCLICAL),15/07/2013,"1,149.00"
100713H,BALFOUR BEATTY WORKPLACE LTD,M121677,1,"2,413.00",STRATEGIC (NON CYCLICAL),15/07/2013,"2,413.00"
100713C,BABCOCK SUPPORT SERVICES,SIINF01118,1,"2,055.42",STRATEGIC (NON CYCLICAL),15/07/2013,"2,055.42"
100713C,BABCOCK SUPPORT SERVICES,SIINF01119,1,"1,533.02",STRATEGIC (NON CYCLICAL),15/07/2013,"1,533.02"
100713C,BABCOCK SUPPORT SERVICES,SIINF01144,1,"29,349.63",STRATEGIC (CYCLICAL),15/07/2013,"29,349.63"
100713C,BABCOCK SUPPORT SERVICES,SIINF01164,1,"29,349.63",STRATEGIC (CYCLICAL),15/07/2013,"29,349.63"
100713C,BABCOCK SUPPORT SERVICES,SIINF01195,1,"29,349.63",STRATEGIC (CYCLICAL),15/07/2013,"29,349.63"
020713E,APPLUS LLT,169,1,"3,750.00",GENERAL,16/07/2013,"3,750.00"
902300,BABCOCK TRAINING LTD,PTSI009350,1,"1,315,486.63",OUTSOURCED TRAINING,17/07/2013,"1,315,486.63"
050713G,ADVANCED FURNITURE============,52174,1,"1,620.00",OFFICE FURNITURE,18/07/2013,"1,620.00"
030713C,HEALTH MANAGEMENT LIMITED=====,99329,1,261.56,OHS CONTRACT,18/07/2013,261.56
030713C,HEALTH MANAGEMENT LIMITED=====,99330,1,505.2,OHS CONTRACT,18/07/2013,505.2
030713C,HEALTH MANAGEMENT LIMITED=====,99332,1,600,THIRD PARTY REPORTS,18/07/2013,"1,800.00"
030713C,HEALTH MANAGEMENT LIMITED=====,99332,2,600,THIRD PARTY REPORTS,18/07/2013,
030713C,HEALTH MANAGEMENT LIMITED=====,99332,3,600,THIRD PARTY REPORTS,18/07/2013,
120713C,HEALTH MANAGEMENT LIMITED=====,99334,1,435.16,OHS CONTRACT,18/07/2013,435.16
120713C,HEALTH MANAGEMENT LIMITED=====,99335,1,486.08,OHS CONTRACT,18/07/2013,486.08
100713C,*OCS GROUP UK LTD,183346,1,"4,249.00",REFRESHMENTS,18/07/2013,"4,249.00"
120713H,INTUITIVE SYSTEMS AND NETWORKS,1869,1,925,MAINTENANCE & SUPPORT,18/07/2013,925
160713H,ARVAL UK LTD,0000764541/1012146813,1,707.72,CONTRACT HIRE,18/07/2013,707.72
150713F,GEORGE JONES & SON LTD========,36425,1,533,STRATEGIC (NON CYCLICAL),18/07/2013,533
100713C,TMP (LIMITED) UK,1E+11,1,"18,000.00",MAINTENANCE & SUPPORT,18/07/2013,"22,500.00"
100713C,TMP (LIMITED) UK,1E+11,2,"2,000.00",MAINTENANCE & SUPPORT,18/07/2013,
100713C,TMP (LIMITED) UK,1E+11,3,"2,500.00",MAINTENANCE & SUPPORT,18/07/2013,
120713C,AFFINITY WATER,101024024,1,341,CURRENT HYDRANT COSTS,18/07/2013,341
010713E,CARILLION COMMUNICATIONS LTD==,1011638,1,450,TACTICAL DAY TO DAY,18/07/2013,450
150713G,*APTCO========================,101665,1,300,OPERATIONAL EQUIP-PURCHASE,18/07/2013,300
120713H,*SPRUE SAFETY PRODUCTS LTD====,1048855,1,"2,275.20",FIRE DETECTORS,18/07/2013,"2,275.20"
150713G,*SPRUE SAFETY PRODUCTS LTD====,1048863,1,"1,137.60",FIRE DETECTORS,18/07/2013,"1,137.60"
800021044,JAMES HUNTER (OUTFITTERS) LTD=,107088,1,224.16,CLOTHING,18/07/2013,283.98
800021044,JAMES HUNTER (OUTFITTERS) LTD=,107088,2,59.82,CLOTHING,18/07/2013,
010713G,ACL ELECTRICAL LIMITED,11111,1,"3,079.00",STRATEGIC (NON CYCLICAL),18/07/2013,"3,079.00"
010713G,ACL ELECTRICAL LIMITED,11112,1,"2,470.00",STRATEGIC (NON CYCLICAL),18/07/2013,"2,470.00"
150713E,CEDAFORCE LTD=================,11280,1,805,DEVELOPMENT  EXPENSES-CONTRACT,18/07/2013,805
030713C,INFOR (UNITED KINGDOM) LIMITED,11304697-GB04G,1,535,MAINTENANCE & SUPPORT,18/07/2013,535
030713C,INFOR (UNITED KINGDOM) LIMITED,11304701-GB04G,1,535,MAINTENANCE & SUPPORT,18/07/2013,535
020713E,SAFEGUARD PEST CON. & ENV.LTD,117856,1,460,PEST CONTROL,18/07/2013,460
100713C,VISTA LANDSCAPE MANAGEMENT LTD,118336,1,142.31,GROUNDS MAINTENANCE,18/07/2013,"3,024.91"
100713C,VISTA LANDSCAPE MANAGEMENT LTD,118336,2,24.77,GROUNDS MAINTENANCE,18/07/2013,
100713C,VISTA LANDSCAPE MANAGEMENT LTD,118336,3,27.29,GROUNDS MAINTENANCE,18/07/2013,
100713C,VISTA LANDSCAPE MANAGEMENT LTD,118336,4,30.32,GROUNDS MAINTENANCE,18/07/2013,
100713C,VISTA LANDSCAPE MANAGEMENT LTD,118336,5,111.28,GROUNDS MAINTENANCE,18/07/2013,
100713C,VISTA LANDSCAPE MANAGEMENT LTD,118336,6,23.48,GROUNDS MAINTENANCE,18/07/2013,
100713C,VISTA LANDSCAPE MANAGEMENT LTD,118336,7,31.2,GROUNDS MAINTENANCE,18/07/2013,
100713C,VISTA LANDSCAPE MANAGEMENT LTD,118336,8,24.52,GROUNDS MAINTENANCE,18/07/2013,
100713C,VISTA LANDSCAPE MANAGEMENT LTD,118336,9,21.11,GROUNDS MAINTENANCE,18/07/2013,
100713C,VISTA LANDSCAPE MANAGEMENT LTD,118336,10,21.2,GROUNDS MAINTENANCE,18/07/2013,
100713C,VISTA LANDSCAPE MANAGEMENT LTD,118336,11,24.74,GROUNDS MAINTENANCE,18/07/2013,
100713C,VISTA LANDSCAPE MANAGEMENT LTD,118336,12,35.29,GROUNDS MAINTENANCE,18/07/2013,
100713C,VISTA LANDSCAPE MANAGEMENT LTD,118336,13,122.19,GROUNDS MAINTENANCE,18/07/2013,
100713C,VISTA LANDSCAPE MANAGEMENT LTD,118336,14,20.52,GROUNDS MAINTENANCE,18/07/2013,
100713C,VISTA LANDSCAPE MANAGEMENT LTD,118336,15,92.06,GROUNDS MAINTENANCE,18/07/2013,
100713C,VISTA LANDSCAPE MANAGEMENT LTD,118336,16,27.21,GROUNDS MAINTENANCE,18/07/2013,
100713C,VISTA LANDSCAPE MANAGEMENT LTD,118336,17,23.91,GROUNDS MAINTENANCE,18/07/2013,
100713C,VISTA LANDSCAPE MANAGEMENT LTD,118336,18,139.8,GROUNDS MAINTENANCE,18/07/2013,
100713C,VISTA LANDSCAPE MANAGEMENT LTD,118336,19,22.33,GROUNDS MAINTENANCE,18/07/2013,
100713C,VISTA LANDSCAPE MANAGEMENT LTD,118336,20,23.87,GROUNDS MAINTENANCE,18/07/2013,
100713C,VISTA LANDSCAPE MANAGEMENT LTD,118336,21,17.53,GROUNDS MAINTENANCE,18/07/2013,
100713C,VISTA LANDSCAPE MANAGEMENT LTD,118336,22,23,GROUNDS MAINTENANCE,18/07/2013,
100713C,VISTA LANDSCAPE MANAGEMENT LTD,118336,23,23.85,GROUNDS MAINTENANCE,18/07/2013,
100713C,VISTA LANDSCAPE MANAGEMENT LTD,118336,24,27.55,GROUNDS MAINTENANCE,18/07/2013,
100713C,VISTA LANDSCAPE MANAGEMENT LTD,118336,25,25.72,GROUNDS MAINTENANCE,18/07/2013,
100713C,VISTA LANDSCAPE MANAGEMENT LTD,118336,26,66.27,GROUNDS MAINTENANCE,18/07/2013,
100713C,VISTA LANDSCAPE MANAGEMENT LTD,118336,27,21.41,GROUNDS MAINTENANCE,18/07/2013,
100713C,VISTA LANDSCAPE MANAGEMENT LTD,118336,28,21.28,GROUNDS MAINTENANCE,18/07/2013,
100713C,VISTA LANDSCAPE MANAGEMENT LTD,118336,29,19.18,GROUNDS MAINTENANCE,18/07/2013,
100713C,VISTA LANDSCAPE MANAGEMENT LTD,118336,30,89.2,GROUNDS MAINTENANCE,18/07/2013,
100713C,VISTA LANDSCAPE MANAGEMENT LTD,118336,31,94.1,GROUNDS MAINTENANCE,18/07/2013,
100713C,VISTA LANDSCAPE MANAGEMENT LTD,118336,32,22.58,GROUNDS MAINTENANCE,18/07/2013,
100713C,VISTA LANDSCAPE MANAGEMENT LTD,118336,33,278.31,GROUNDS MAINTENANCE,18/07/2013,
100713C,VISTA LANDSCAPE MANAGEMENT LTD,118336,34,22.07,GROUNDS MAINTENANCE,18/07/2013,
100713C,VISTA LANDSCAPE MANAGEMENT LTD,118336,35,71.29,GROUNDS MAINTENANCE,18/07/2013,
100713C,VISTA LANDSCAPE MANAGEMENT LTD,118336,36,20.59,GROUNDS MAINTENANCE,18/07/2013,
100713C,VISTA LANDSCAPE MANAGEMENT LTD,118336,37,22.08,GROUNDS MAINTENANCE,18/07/2013,
100713C,VISTA LANDSCAPE MANAGEMENT LTD,118336,38,21.4,GROUNDS MAINTENANCE,18/07/2013,
100713C,VISTA LANDSCAPE MANAGEMENT LTD,118336,39,88.9,GROUNDS MAINTENANCE,18/07/2013,
100713C,VISTA LANDSCAPE MANAGEMENT LTD,118336,40,130.36,GROUNDS MAINTENANCE,18/07/2013,
100713C,VISTA LANDSCAPE MANAGEMENT LTD,118336,41,19.12,GROUNDS MAINTENANCE,18/07/2013,
100713C,VISTA LANDSCAPE MANAGEMENT LTD,118336,42,749.82,GROUNDS MAINTENANCE,18/07/2013,
100713C,VISTA LANDSCAPE MANAGEMENT LTD,118336,43,70.24,GROUNDS MAINTENANCE,18/07/2013,
100713C,VISTA LANDSCAPE MANAGEMENT LTD,118336,44,62.34,GROUNDS MAINTENANCE,18/07/2013,
100713C,VISTA LANDSCAPE MANAGEMENT LTD,118336,45,27.32,GROUNDS MAINTENANCE,18/07/2013,
120713C,BUSINESS IMAGE LTD============,125021,1,852.75,UNIFORMS - POMS,18/07/2013,852.75
030713C,GP CONTRACTS==================,14749,1,520,OFFICE FURNITURE,18/07/2013,520
120713H,IRON MOUNTAIN (UK) LTD========,16176419,1,"2,671.52",MAINTENANCE & SUPPORT,18/07/2013,"2,671.52"
160713H,B NOKES CONTRACTS LTD,1816,1,"3,063.75",STRATEGIC (CYCLICAL),18/07/2013,"3,063.75"
120713C,B NOKES CONTRACTS LTD,1820,1,"4,810.00",DEVELOPMENT  EXPENSES-CONTRACT,18/07/2013,"4,810.00"
120713C,B NOKES CONTRACTS LTD,1821,1,"4,810.00",DEVELOPMENT  EXPENSES-CONTRACT,18/07/2013,"4,810.00"
120713C,B NOKES CONTRACTS LTD,1822,1,"4,810.00",DEVELOPMENT  EXPENSES-CONTRACT,18/07/2013,"4,810.00"
120713C,B NOKES CONTRACTS LTD,1823,1,653,DEVELOPMENT  EXPENSES-CONTRACT,18/07/2013,653
120713C,B NOKES CONTRACTS LTD,1824,1,420,DEVELOPMENT  EXPENSES-CONTRACT,18/07/2013,420
120713C,B NOKES CONTRACTS LTD,1825,1,420,DEVELOPMENT  EXPENSES-CONTRACT,18/07/2013,420
120713C,B NOKES CONTRACTS LTD,1827,1,"2,832.00",STRATEGIC (NON CYCLICAL),18/07/2013,"2,832.00"
120713H,VODAFONE LIMITED==============,226549,1,"1,015.00",RADIO,18/07/2013,"1,085.11"
120713H,VODAFONE LIMITED==============,226549,2,70.11,RADIO,18/07/2013,
030713C,UNDERSTANDING RECRUITMENT=====,2468,1,"4,200.00",MAINTENANCE & SUPPORT,18/07/2013,"8,120.00"
030713C,UNDERSTANDING RECRUITMENT=====,2468,2,"3,920.00",MAINTENANCE & SUPPORT,18/07/2013,
050713C,PRECISE MEDIA MONITORING LTD==,247096,1,"2,691.60",PRESS OFFICE,18/07/2013,"2,691.60"
160713H,BRITISH TELECOM===============,25518479,1,"68,539.21",TELECOMMUNICATIONS,18/07/2013,"68,539.21"
800021485,*BANNER BUSINESS SUPPLIES LTD=,26604722,1,52.6,STATIONERY CONSUMABLES,18/07/2013,316.7
800021485,*BANNER BUSINESS SUPPLIES LTD=,26604722,2,76.6,STATIONERY CONSUMABLES,18/07/2013,
800021485,*BANNER BUSINESS SUPPLIES LTD=,26604722,3,105,STATIONERY CONSUMABLES,18/07/2013,
800021485,*BANNER BUSINESS SUPPLIES LTD=,26604722,4,82.5,STATIONERY CONSUMABLES,18/07/2013,
100713C,MCGRATH BROS (WASTE CONTROL) L,293730,1,312,REFUSE COLLECTION,18/07/2013,624
100713C,MCGRATH BROS (WASTE CONTROL) L,293730,2,312,REFUSE COLLECTION,18/07/2013,
100713C,MCGRATH BROS (WASTE CONTROL) L,293743,1,"1,147.52",REFUSE COLLECTION,18/07/2013,"1,997.52"
100713C,MCGRATH BROS (WASTE CONTROL) L,293743,2,850,REFUSE COLLECTION,18/07/2013,
080713C,MCGRATH BROS (WASTE CONTROL) L,294481,1,261.8,REFUSE COLLECTION,18/07/2013,"16,891.20"
080713C,MCGRATH BROS (WASTE CONTROL) L,294481,2,109.4,REFUSE COLLECTION,18/07/2013,
080713C,MCGRATH BROS (WASTE CONTROL) L,294481,3,204.2,REFUSE COLLECTION,18/07/2013,
080713C,MCGRATH BROS (WASTE CONTROL) L,294481,4,80.6,REFUSE COLLECTION,18/07/2013,
080713C,MCGRATH BROS (WASTE CONTROL) L,294481,5,109.4,REFUSE COLLECTION,18/07/2013,
080713C,MCGRATH BROS (WASTE CONTROL) L,294481,6,80.6,REFUSE COLLECTION,18/07/2013,
080713C,MCGRATH BROS (WASTE CONTROL) L,294481,7,141,REFUSE COLLECTION,18/07/2013,
080713C,MCGRATH BROS (WASTE CONTROL) L,294481,8,141,REFUSE COLLECTION,18/07/2013,
080713C,MCGRATH BROS (WASTE CONTROL) L,294481,9,109.4,REFUSE COLLECTION,18/07/2013,
080713C,MCGRATH BROS (WASTE CONTROL) L,294481,10,80.6,REFUSE COLLECTION,18/07/2013,
080713C,MCGRATH BROS (WASTE CONTROL) L,294481,11,80.6,REFUSE COLLECTION,18/07/2013,
080713C,MCGRATH BROS (WASTE CONTROL) L,294481,12,112.2,REFUSE COLLECTION,18/07/2013,
080713C,MCGRATH BROS (WASTE CONTROL) L,294481,13,141,REFUSE COLLECTION,18/07/2013,
080713C,MCGRATH BROS (WASTE CONTROL) L,294481,14,261.8,REFUSE COLLECTION,18/07/2013,
080713C,MCGRATH BROS (WASTE CONTROL) L,294481,15,109.4,REFUSE COLLECTION,18/07/2013,
080713C,MCGRATH BROS (WASTE CONTROL) L,294481,16,261.8,REFUSE COLLECTION,18/07/2013,
080713C,MCGRATH BROS (WASTE CONTROL) L,294481,17,80.6,REFUSE COLLECTION,18/07/2013,
080713C,MCGRATH BROS (WASTE CONTROL) L,294481,18,261.8,REFUSE COLLECTION,18/07/2013,
080713C,MCGRATH BROS (WASTE CONTROL) L,294481,19,261.8,REFUSE COLLECTION,18/07/2013,
080713C,MCGRATH BROS (WASTE CONTROL) L,294481,20,325,REFUSE COLLECTION,18/07/2013,
080713C,MCGRATH BROS (WASTE CONTROL) L,294481,21,141,REFUSE COLLECTION,18/07/2013,
080713C,MCGRATH BROS (WASTE CONTROL) L,294481,22,80.6,REFUSE COLLECTION,18/07/2013,
080713C,MCGRATH BROS (WASTE CONTROL) L,294481,23,80.6,REFUSE COLLECTION,18/07/2013,
080713C,MCGRATH BROS (WASTE CONTROL) L,294481,24,80.6,REFUSE COLLECTION,18/07/2013,
080713C,MCGRATH BROS (WASTE CONTROL) L,294481,25,80.6,REFUSE COLLECTION,18/07/2013,
080713C,MCGRATH BROS (WASTE CONTROL) L,294481,26,109.4,REFUSE COLLECTION,18/07/2013,
080713C,MCGRATH BROS (WASTE CONTROL) L,294481,27,80.6,REFUSE COLLECTION,18/07/2013,
080713C,MCGRATH BROS (WASTE CONTROL) L,294481,28,261.8,REFUSE COLLECTION,18/07/2013,
080713C,MCGRATH BROS (WASTE CONTROL) L,294481,29,198.6,REFUSE COLLECTION,18/07/2013,
080713C,MCGRATH BROS (WASTE CONTROL) L,294481,30,80.6,REFUSE COLLECTION,18/07/2013,
080713C,MCGRATH BROS (WASTE CONTROL) L,294481,31,109.4,REFUSE COLLECTION,18/07/2013,
080713C,MCGRATH BROS (WASTE CONTROL) L,294481,32,261.8,REFUSE COLLECTION,18/07/2013,
080713C,MCGRATH BROS (WASTE CONTROL) L,294481,33,109.4,REFUSE COLLECTION,18/07/2013,
080713C,MCGRATH BROS (WASTE CONTROL) L,294481,34,109.4,REFUSE COLLECTION,18/07/2013,
080713C,MCGRATH BROS (WASTE CONTROL) L,294481,35,141,REFUSE COLLECTION,18/07/2013,
080713C,MCGRATH BROS (WASTE CONTROL) L,294481,36,109.4,REFUSE COLLECTION,18/07/2013,
080713C,MCGRATH BROS (WASTE CONTROL) L,294481,37,141,REFUSE COLLECTION,18/07/2013,
080713C,MCGRATH BROS (WASTE CONTROL) L,294481,38,112.2,REFUSE COLLECTION,18/07/2013,
080713C,MCGRATH BROS (WASTE CONTROL) L,294481,39,80.6,REFUSE COLLECTION,18/07/2013,
080713C,MCGRATH BROS (WASTE CONTROL) L,294481,40,198.6,REFUSE COLLECTION,18/07/2013,
080713C,MCGRATH BROS (WASTE CONTROL) L,294481,41,198.6,REFUSE COLLECTION,18/07/2013,
080713C,MCGRATH BROS (WASTE CONTROL) L,294481,42,109.4,REFUSE COLLECTION,18/07/2013,
080713C,MCGRATH BROS (WASTE CONTROL) L,294481,43,80.6,REFUSE COLLECTION,18/07/2013,
080713C,MCGRATH BROS (WASTE CONTROL) L,294481,44,80.6,REFUSE COLLECTION,18/07/2013,
080713C,MCGRATH BROS (WASTE CONTROL) L,294481,45,261.8,REFUSE COLLECTION,18/07/2013,
080713C,MCGRATH BROS (WASTE CONTROL) L,294481,46,198.6,REFUSE COLLECTION,18/07/2013,
080713C,MCGRATH BROS (WASTE CONTROL) L,294481,47,109.4,REFUSE COLLECTION,18/07/2013,
080713C,MCGRATH BROS (WASTE CONTROL) L,294481,48,80.6,REFUSE COLLECTION,18/07/2013,
080713C,MCGRATH BROS (WASTE CONTROL) L,294481,49,80.6,REFUSE COLLECTION,18/07/2013,
080713C,MCGRATH BROS (WASTE CONTROL) L,294481,50,109.4,REFUSE COLLECTION,18/07/2013,
080713C,MCGRATH BROS (WASTE CONTROL) L,294481,51,261.8,REFUSE COLLECTION,18/07/2013,
080713C,MCGRATH BROS (WASTE CONTROL) L,294481,52,80.6,REFUSE COLLECTION,18/07/2013,
080713C,MCGRATH BROS (WASTE CONTROL) L,294481,53,80.6,REFUSE COLLECTION,18/07/2013,
080713C,MCGRATH BROS (WASTE CONTROL) L,294481,54,109.4,REFUSE COLLECTION,18/07/2013,
080713C,MCGRATH BROS (WASTE CONTROL) L,294481,55,80.6,REFUSE COLLECTION,18/07/2013,
080713C,MCGRATH BROS (WASTE CONTROL) L,294481,56,112.2,REFUSE COLLECTION,18/07/2013,
080713C,MCGRATH BROS (WASTE CONTROL) L,294481,57,80.6,REFUSE COLLECTION,18/07/2013,
080713C,MCGRATH BROS (WASTE CONTROL) L,294481,58,141,REFUSE COLLECTION,18/07/2013,
080713C,MCGRATH BROS (WASTE CONTROL) L,294481,59,80.6,REFUSE COLLECTION,18/07/2013,
080713C,MCGRATH BROS (WASTE CONTROL) L,294481,60,261.8,REFUSE COLLECTION,18/07/2013,
080713C,MCGRATH BROS (WASTE CONTROL) L,294481,61,109.4,REFUSE COLLECTION,18/07/2013,
080713C,MCGRATH BROS (WASTE CONTROL) L,294481,62,109.4,REFUSE COLLECTION,18/07/2013,
080713C,MCGRATH BROS (WASTE CONTROL) L,294481,63,80.6,REFUSE COLLECTION,18/07/2013,
080713C,MCGRATH BROS (WASTE CONTROL) L,294481,64,261.8,REFUSE COLLECTION,18/07/2013,
080713C,MCGRATH BROS (WASTE CONTROL) L,294481,65,80.6,REFUSE COLLECTION,18/07/2013,
080713C,MCGRATH BROS (WASTE CONTROL) L,294481,66,261.8,REFUSE COLLECTION,18/07/2013,
080713C,MCGRATH BROS (WASTE CONTROL) L,294481,67,80.6,REFUSE COLLECTION,18/07/2013,
080713C,MCGRATH BROS (WASTE CONTROL) L,294481,68,109.4,REFUSE COLLECTION,18/07/2013,
080713C,MCGRATH BROS (WASTE CONTROL) L,294481,69,109.4,REFUSE COLLECTION,18/07/2013,
080713C,MCGRATH BROS (WASTE CONTROL) L,294481,70,109.4,REFUSE COLLECTION,18/07/2013,
080713C,MCGRATH BROS (WASTE CONTROL) L,294481,71,109.4,REFUSE COLLECTION,18/07/2013,
080713C,MCGRATH BROS (WASTE CONTROL) L,294481,72,80.6,REFUSE COLLECTION,18/07/2013,
080713C,MCGRATH BROS (WASTE CONTROL) L,294481,73,282,REFUSE COLLECTION,18/07/2013,
080713C,MCGRATH BROS (WASTE CONTROL) L,294481,74,80.6,REFUSE COLLECTION,18/07/2013,
080713C,MCGRATH BROS (WASTE CONTROL) L,294481,75,109.4,REFUSE COLLECTION,18/07/2013,
080713C,MCGRATH BROS (WASTE CONTROL) L,294481,76,112.2,REFUSE COLLECTION,18/07/2013,
080713C,MCGRATH BROS (WASTE CONTROL) L,294481,77,109.4,REFUSE COLLECTION,18/07/2013,
080713C,MCGRATH BROS (WASTE CONTROL) L,294481,78,112.2,REFUSE COLLECTION,18/07/2013,
080713C,MCGRATH BROS (WASTE CONTROL) L,294481,79,80.6,REFUSE COLLECTION,18/07/2013,
080713C,MCGRATH BROS (WASTE CONTROL) L,294481,80,80.6,REFUSE COLLECTION,18/07/2013,
080713C,MCGRATH BROS (WASTE CONTROL) L,294481,81,80.6,REFUSE COLLECTION,18/07/2013,
080713C,MCGRATH BROS (WASTE CONTROL) L,294481,82,80.6,REFUSE COLLECTION,18/07/2013,
080713C,MCGRATH BROS (WASTE CONTROL) L,294481,83,261.8,REFUSE COLLECTION,18/07/2013,
080713C,MCGRATH BROS (WASTE CONTROL) L,294481,84,261.8,REFUSE COLLECTION,18/07/2013,
080713C,MCGRATH BROS (WASTE CONTROL) L,294481,85,109.4,REFUSE COLLECTION,18/07/2013,
080713C,MCGRATH BROS (WASTE CONTROL) L,294481,86,80.6,REFUSE COLLECTION,18/07/2013,
080713C,MCGRATH BROS (WASTE CONTROL) L,294481,87,112.2,REFUSE COLLECTION,18/07/2013,
080713C,MCGRATH BROS (WASTE CONTROL) L,294481,88,109.4,REFUSE COLLECTION,18/07/2013,
080713C,MCGRATH BROS (WASTE CONTROL) L,294481,89,80.6,REFUSE COLLECTION,18/07/2013,
080713C,MCGRATH BROS (WASTE CONTROL) L,294481,90,505,REFUSE COLLECTION,18/07/2013,
080713C,MCGRATH BROS (WASTE CONTROL) L,294481,91,80.6,REFUSE COLLECTION,18/07/2013,
080713C,MCGRATH BROS (WASTE CONTROL) L,294481,92,80.6,REFUSE COLLECTION,18/07/2013,
080713C,MCGRATH BROS (WASTE CONTROL) L,294481,93,261.8,REFUSE COLLECTION,18/07/2013,
080713C,MCGRATH BROS (WASTE CONTROL) L,294481,94,80.6,REFUSE COLLECTION,18/07/2013,
080713C,MCGRATH BROS (WASTE CONTROL) L,294481,95,109.4,REFUSE COLLECTION,18/07/2013,
080713C,MCGRATH BROS (WASTE CONTROL) L,294481,96,109.4,REFUSE COLLECTION,18/07/2013,
080713C,MCGRATH BROS (WASTE CONTROL) L,294481,97,261.8,REFUSE COLLECTION,18/07/2013,
080713C,MCGRATH BROS (WASTE CONTROL) L,294481,98,109.4,REFUSE COLLECTION,18/07/2013,
080713C,MCGRATH BROS (WASTE CONTROL) L,294481,99,"1,525.00",REFUSE COLLECTION,18/07/2013,
080713C,MCGRATH BROS (WASTE CONTROL) L,294481,100,80.6,REFUSE COLLECTION,18/07/2013,
080713C,MCGRATH BROS (WASTE CONTROL) L,294481,101,109.4,REFUSE COLLECTION,18/07/2013,
080713C,MCGRATH BROS (WASTE CONTROL) L,294481,102,109.4,REFUSE COLLECTION,18/07/2013,
080713C,MCGRATH BROS (WASTE CONTROL) L,294481,103,282,REFUSE COLLECTION,18/07/2013,
080713C,MCGRATH BROS (WASTE CONTROL) L,294481,104,80.6,REFUSE COLLECTION,18/07/2013,
080713C,MCGRATH BROS (WASTE CONTROL) L,294481,105,112.2,REFUSE COLLECTION,18/07/2013,
080713C,MCGRATH BROS (WASTE CONTROL) L,294481,106,109.4,REFUSE COLLECTION,18/07/2013,
080713C,MCGRATH BROS (WASTE CONTROL) L,294481,107,204.2,REFUSE COLLECTION,18/07/2013,
080713C,MCGRATH BROS (WASTE CONTROL) L,294481,108,109.4,REFUSE COLLECTION,18/07/2013,
080713C,MCGRATH BROS (WASTE CONTROL) L,294481,109,109.4,REFUSE COLLECTION,18/07/2013,
080713C,MCGRATH BROS (WASTE CONTROL) L,294481,110,112.2,REFUSE COLLECTION,18/07/2013,
080713C,MCGRATH BROS (WASTE CONTROL) L,294481,111,80.6,REFUSE COLLECTION,18/07/2013,
080713C,MCGRATH BROS (WASTE CONTROL) L,294481,112,80.6,REFUSE COLLECTION,18/07/2013,
080713C,MCGRATH BROS (WASTE CONTROL) L,294481,113,80.6,REFUSE COLLECTION,18/07/2013,
080713C,MCGRATH BROS (WASTE CONTROL) L,294481,114,80.6,REFUSE COLLECTION,18/07/2013,
150713G,BRISTOL UNIFORMS LTD==========,3101676,1,169.44,CLOTHING,18/07/2013,338.88
150713G,BRISTOL UNIFORMS LTD==========,3101676,2,169.44,CLOTHING,18/07/2013,
140289,REACTIVE ROOFING (UK) LIMITED,3218,1,"1,110.00",STRATEGIC (NON CYCLICAL),18/07/2013,"3,441.20"
140289,REACTIVE ROOFING (UK) LIMITED,3218,2,"2,331.20",STRATEGIC (NON CYCLICAL),18/07/2013,
140288,HENRY STREETER (AUTOMOTIVE)==,3418,1,"3,336.90",PREMIUMS,18/07/2013,"4,004.28"
140288,HENRY STREETER (AUTOMOTIVE)==,3418,2,667.38,PAYMENTS IN ADVANCE,18/07/2013,
120713H,HUNTERS CONTRACTS LIMITED,342604,1,718.2,OFFICE FURNITURE,18/07/2013,718.2
160713H,ABBEY COMMUNITY SERVICES LTD==,3645,1,580,PUBLIC RELATIONS,18/07/2013,580
120713H,COMPUTACENTRE================,3700791534,1,280,ACQUISITIONS,18/07/2013,907.6
120713H,COMPUTACENTRE================,3700791534,2,627.6,ACQUISITIONS,18/07/2013,
120713H,COMPUTACENTRE================,3700791538,1,162,ACQUISITIONS,18/07/2013,521
120713H,COMPUTACENTRE================,3700791538,2,324,ACQUISITIONS,18/07/2013,
120713H,COMPUTACENTRE================,3700791538,3,35,ACQUISITIONS,18/07/2013,
120713C,L B OF HACKNEY================,3721719,1,"1,368.10",PUBLIC RELATIONS,18/07/2013,"1,368.10"
120713H,OPEN UNIVERSITY===============,380949,1,865,PROFESSIONAL DEVELOPMENT,18/07/2013,865
120713C,MUSCO LIGHTING EUROPE LTD=====,3831,1,"3,853.33",GENERAL,18/07/2013,"3,853.33"
120713H,CITY OF LONDON,4101211,1,"10,260.83",GENERAL,18/07/2013,"10,260.83"
120713H,BOND DICKINSON LLP,4148328,1,"8,632.50",PROFESSIONAL SERVICES,18/07/2013,"36,112.40"
120713H,BOND DICKINSON LLP,4148328,2,"1,161.90",PROFESSIONAL SERVICES,18/07/2013,
120713H,BOND DICKINSON LLP,4148328,3,"26,318.00",PROFESSIONAL SERVICES,18/07/2013,
800021878,*BURLINGTON UNIFORMS LTD,419304,1,"2,581.20",UNIFORMS - POMS,18/07/2013,"2,581.20"
100713C,MITIE SECURITY (LONDON) LTD===,45/522769,1,"8,213.92",PREMISES SECURITY,18/07/2013,"8,213.92"
100713C,MITIE SECURITY (LONDON) LTD===,45/522773,1,"16,516.80",PREMISES SECURITY,18/07/2013,"16,516.80"
120713H,MITIE SECURITY (LONDON) LTD===,45/522883,1,252.34,PREMISES SECURITY,18/07/2013,252.34
140291,THAMES WATER UTILITIES LTD====,4719045186E,1,"1,988.01",WATER & SEWERAGE RATES,18/07/2013,"1,988.01"
140291,THAMES WATER UTILITIES LTD====,51792-16119/,1,309.04,WATER & SEWERAGE RATES,18/07/2013,309.04
120713H,URS SCOTT WILSON LIMITED,5566461,1,"2,726.92",PROF FEES-MISCELLANEOUS,18/07/2013,"3,440.73"
120713H,URS SCOTT WILSON LIMITED,5566461,2,713.81,PROF FEES-MISCELLANEOUS,18/07/2013,
150713G,URS SCOTT WILSON LIMITED,5567628,1,"7,828.50",PROF FEES-MISCELLANEOUS,18/07/2013,"9,166.75"
150713G,URS SCOTT WILSON LIMITED,5567628,2,"1,338.25",PROF FEES-MISCELLANEOUS,18/07/2013,
120713C,SUMTOTAL SYSTEMS UK LTD,5898,1,"1,500.00",MAINTENANCE & SUPPORT,18/07/2013,"1,500.00"
160713H,GARRAN LOCKERS LTD============,62296,1,"3,377.76",PURCHASES-FURNITURE,18/07/2013,"3,377.76"
140291,THAMES WATER UTILITIES LTD====,6395955189V,1,377.54,WATER & SEWERAGE RATES,18/07/2013,377.54
050713C,*LYRECO,6721507673,1,414.9,STATIONERY CONSUMABLES,18/07/2013,414.9
160713H,*SP SERVICES,697942,1,395,OPERATIONAL EQUIP-PURCHASE,18/07/2013,402
160713H,*SP SERVICES,697942,2,7,HYGIENE,18/07/2013,
010713F,SWEETT  UK LTD,7025707,1,"2,745.00",PROF FEES-MISCELLANEOUS,18/07/2013,"2,745.00"
140291,THAMES WATER UTILITIES LTD====,8204330850E,1,596.58,WATER & SEWERAGE RATES,18/07/2013,596.58
160713H,SMITHS DETECTION WATFORD LTD.,92015192,1,"3,995.00",OPERATIONAL EQUIP-PURCHASE,18/07/2013,"3,995.00"
160713H,SMITHS DETECTION WATFORD LTD.,92015193,1,"3,995.00",OPERATIONAL EQUIP-PURCHASE,18/07/2013,"3,995.00"
120713H,CAPITA SECURE INFO SOLUTIONS,93062449,1,"41,047.86",ACQUISITIONS,18/07/2013,"41,047.86"
140291,THAMES WATER UTILITIES LTD====,95240-85193V,1,968.28,WATER & SEWERAGE RATES,18/07/2013,968.28
050713C,*OFFICE DEPOT UK LTD,957934118,1,476,STATIONERY CONSUMABLES,18/07/2013,476
150713E,COLT TECHNOLOGY SERVICES======,AD5766,1,"4,501.05",TELECOMMUNICATIONS,18/07/2013,"4,501.05"
050713G,LPFA CONTRIBUTIONS ACCOUNT====,BD451,1,"63,947.00",PENSION SERVICES,18/07/2013,"63,947.00"
120713H,RADIOCOMS SYSTEMS LIMITED=====,CF266427,1,260,OPERATIONAL EQUIP-PURCHASE,18/07/2013,260
040713E,BAILY GARNER LLP==============,EL:39586,1,"2,879.37",STRATEGIC (NON CYCLICAL),18/07/2013,"2,879.37"
120713H,PEGASUS ENVIRONMENTAL CONSULTA,INV/5338-13,1,900,STRATEGIC (CYCLICAL),18/07/2013,"2,700.00"
120713H,PEGASUS ENVIRONMENTAL CONSULTA,INV/5338-13,2,900,STRATEGIC (CYCLICAL),18/07/2013,
120713H,PEGASUS ENVIRONMENTAL CONSULTA,INV/5338-13,3,900,STRATEGIC (CYCLICAL),18/07/2013,
150713G,RADIOCOMS SYSTEMS LIMITED=====,OP/I011707,1,"2,458.50",RADIO,18/07/2013,"2,458.50"
800021940,ALLSTAR BUSINESS SOLUTIONS LTD,P2001171948,1,"1,305.51",FUEL,18/07/2013,"23,763.62"
800021940,ALLSTAR BUSINESS SOLUTIONS LTD,P2001171948,2,983.96,FUEL,18/07/2013,
800021940,ALLSTAR BUSINESS SOLUTIONS LTD,P2001171948,3,732.29,FUEL,18/07/2013,
800021940,ALLSTAR BUSINESS SOLUTIONS LTD,P2001171948,4,697.97,FUEL,18/07/2013,
800021940,ALLSTAR BUSINESS SOLUTIONS LTD,P2001171948,5,601.1,FUEL,18/07/2013,
800021940,ALLSTAR BUSINESS SOLUTIONS LTD,P2001171948,6,548.29,FUEL,18/07/2013,
800021940,ALLSTAR BUSINESS SOLUTIONS LTD,P2001171948,7,520.84,FUEL,18/07/2013,
800021940,ALLSTAR BUSINESS SOLUTIONS LTD,P2001171948,8,424.81,FUEL,18/07/2013,
800021940,ALLSTAR BUSINESS SOLUTIONS LTD,P2001171948,9,418.43,FUEL,18/07/2013,
800021940,ALLSTAR BUSINESS SOLUTIONS LTD,P2001171948,10,400.6,FUEL,18/07/2013,
800021940,ALLSTAR BUSINESS SOLUTIONS LTD,P2001171948,11,362.19,FUEL,18/07/2013,
800021940,ALLSTAR BUSINESS SOLUTIONS LTD,P2001171948,12,349.02,FUEL,18/07/2013,
800021940,ALLSTAR BUSINESS SOLUTIONS LTD,P2001171948,13,349.01,FUEL,18/07/2013,
800021940,ALLSTAR BUSINESS SOLUTIONS LTD,P2001171948,14,338.52,FUEL,18/07/2013,
800021940,ALLSTAR BUSINESS SOLUTIONS LTD,P2001171948,15,334.5,FUEL,18/07/2013,
800021940,ALLSTAR BUSINESS SOLUTIONS LTD,P2001171948,16,317.41,FUEL,18/07/2013,
800021940,ALLSTAR BUSINESS SOLUTIONS LTD,P2001171948,17,317.18,FUEL,18/07/2013,
800021940,ALLSTAR BUSINESS SOLUTIONS LTD,P2001171948,18,314.14,FUEL,18/07/2013,
800021940,ALLSTAR BUSINESS SOLUTIONS LTD,P2001171948,19,307.39,FUEL,18/07/2013,
800021940,ALLSTAR BUSINESS SOLUTIONS LTD,P2001171948,20,303.92,FUEL,18/07/2013,
800021940,ALLSTAR BUSINESS SOLUTIONS LTD,P2001171948,21,296.75,FUEL,18/07/2013,
800021940,ALLSTAR BUSINESS SOLUTIONS LTD,P2001171948,22,290.72,FUEL,18/07/2013,
800021940,ALLSTAR BUSINESS SOLUTIONS LTD,P2001171948,23,283.08,FUEL,18/07/2013,
800021940,ALLSTAR BUSINESS SOLUTIONS LTD,P2001171948,24,275.47,FUEL,18/07/2013,
800021940,ALLSTAR BUSINESS SOLUTIONS LTD,P2001171948,25,271.36,FUEL,18/07/2013,
800021940,ALLSTAR BUSINESS SOLUTIONS LTD,P2001171948,26,268.07,FUEL,18/07/2013,
800021940,ALLSTAR BUSINESS SOLUTIONS LTD,P2001171948,27,267.55,FUEL,18/07/2013,
800021940,ALLSTAR BUSINESS SOLUTIONS LTD,P2001171948,28,265.55,FUEL,18/07/2013,
800021940,ALLSTAR BUSINESS SOLUTIONS LTD,P2001171948,29,264.57,FUEL,18/07/2013,
800021940,ALLSTAR BUSINESS SOLUTIONS LTD,P2001171948,30,263.26,FUEL,18/07/2013,
800021940,ALLSTAR BUSINESS SOLUTIONS LTD,P2001171948,31,261.55,FUEL,18/07/2013,
800021940,ALLSTAR BUSINESS SOLUTIONS LTD,P2001171948,32,256.69,FUEL,18/07/2013,
800021940,ALLSTAR BUSINESS SOLUTIONS LTD,P2001171948,33,255.87,FUEL,18/07/2013,
800021940,ALLSTAR BUSINESS SOLUTIONS LTD,P2001171948,34,246.24,FUEL,18/07/2013,
800021940,ALLSTAR BUSINESS SOLUTIONS LTD,P2001171948,35,244.32,FUEL,18/07/2013,
800021940,ALLSTAR BUSINESS SOLUTIONS LTD,P2001171948,36,236.31,FUEL,18/07/2013,
800021940,ALLSTAR BUSINESS SOLUTIONS LTD,P2001171948,37,225.64,FUEL,18/07/2013,
800021940,ALLSTAR BUSINESS SOLUTIONS LTD,P2001171948,38,221.21,FUEL,18/07/2013,
800021940,ALLSTAR BUSINESS SOLUTIONS LTD,P2001171948,39,220.45,FUEL,18/07/2013,
800021940,ALLSTAR BUSINESS SOLUTIONS LTD,P2001171948,40,217.61,FUEL,18/07/2013,
800021940,ALLSTAR BUSINESS SOLUTIONS LTD,P2001171948,41,213.64,FUEL,18/07/2013,
800021940,ALLSTAR BUSINESS SOLUTIONS LTD,P2001171948,42,211.07,FUEL,18/07/2013,
800021940,ALLSTAR BUSINESS SOLUTIONS LTD,P2001171948,43,209.86,FUEL,18/07/2013,
800021940,ALLSTAR BUSINESS SOLUTIONS LTD,P2001171948,44,208.55,FUEL,18/07/2013,
800021940,ALLSTAR BUSINESS SOLUTIONS LTD,P2001171948,45,201.45,FUEL,18/07/2013,
800021940,ALLSTAR BUSINESS SOLUTIONS LTD,P2001171948,46,197.31,FUEL,18/07/2013,
800021940,ALLSTAR BUSINESS SOLUTIONS LTD,P2001171948,47,196.74,FUEL,18/07/2013,
800021940,ALLSTAR BUSINESS SOLUTIONS LTD,P2001171948,48,196.38,FUEL,18/07/2013,
800021940,ALLSTAR BUSINESS SOLUTIONS LTD,P2001171948,49,194.74,FUEL,18/07/2013,
800021940,ALLSTAR BUSINESS SOLUTIONS LTD,P2001171948,50,194.41,FUEL,18/07/2013,
800021940,ALLSTAR BUSINESS SOLUTIONS LTD,P2001171948,51,192.27,FUEL,18/07/2013,
800021940,ALLSTAR BUSINESS SOLUTIONS LTD,P2001171948,52,178.85,FUEL,18/07/2013,
800021940,ALLSTAR BUSINESS SOLUTIONS LTD,P2001171948,53,172.04,FUEL,18/07/2013,
800021940,ALLSTAR BUSINESS SOLUTIONS LTD,P2001171948,54,169.87,FUEL,18/07/2013,
800021940,ALLSTAR BUSINESS SOLUTIONS LTD,P2001171948,55,167.75,FUEL,18/07/2013,
800021940,ALLSTAR BUSINESS SOLUTIONS LTD,P2001171948,56,164.43,FUEL,18/07/2013,
800021940,ALLSTAR BUSINESS SOLUTIONS LTD,P2001171948,57,163.14,FUEL,18/07/2013,
800021940,ALLSTAR BUSINESS SOLUTIONS LTD,P2001171948,58,163.04,FUEL,18/07/2013,
800021940,ALLSTAR BUSINESS SOLUTIONS LTD,P2001171948,59,156.97,FUEL,18/07/2013,
800021940,ALLSTAR BUSINESS SOLUTIONS LTD,P2001171948,60,147.44,FUEL,18/07/2013,
800021940,ALLSTAR BUSINESS SOLUTIONS LTD,P2001171948,61,146.61,FUEL,18/07/2013,
800021940,ALLSTAR BUSINESS SOLUTIONS LTD,P2001171948,62,144.4,FUEL,18/07/2013,
800021940,ALLSTAR BUSINESS SOLUTIONS LTD,P2001171948,63,143.88,FUEL,18/07/2013,
800021940,ALLSTAR BUSINESS SOLUTIONS LTD,P2001171948,64,143.3,FUEL,18/07/2013,
800021940,ALLSTAR BUSINESS SOLUTIONS LTD,P2001171948,65,140.73,FUEL,18/07/2013,
800021940,ALLSTAR BUSINESS SOLUTIONS LTD,P2001171948,66,139.87,FUEL,18/07/2013,
800021940,ALLSTAR BUSINESS SOLUTIONS LTD,P2001171948,67,136.04,FUEL,18/07/2013,
800021940,ALLSTAR BUSINESS SOLUTIONS LTD,P2001171948,68,133.2,FUEL,18/07/2013,
800021940,ALLSTAR BUSINESS SOLUTIONS LTD,P2001171948,69,132.92,FUEL,18/07/2013,
800021940,ALLSTAR BUSINESS SOLUTIONS LTD,P2001171948,70,132.03,FUEL,18/07/2013,
800021940,ALLSTAR BUSINESS SOLUTIONS LTD,P2001171948,71,129.45,FUEL,18/07/2013,
800021940,ALLSTAR BUSINESS SOLUTIONS LTD,P2001171948,72,128.99,FUEL,18/07/2013,
800021940,ALLSTAR BUSINESS SOLUTIONS LTD,P2001171948,73,128.64,FUEL,18/07/2013,
800021940,ALLSTAR BUSINESS SOLUTIONS LTD,P2001171948,74,127.2,FUEL,18/07/2013,
800021940,ALLSTAR BUSINESS SOLUTIONS LTD,P2001171948,75,126.88,FUEL,18/07/2013,
800021940,ALLSTAR BUSINESS SOLUTIONS LTD,P2001171948,76,126.78,FUEL,18/07/2013,
800021940,ALLSTAR BUSINESS SOLUTIONS LTD,P2001171948,77,124.41,FUEL,18/07/2013,
800021940,ALLSTAR BUSINESS SOLUTIONS LTD,P2001171948,78,118.61,FUEL,18/07/2013,
800021940,ALLSTAR BUSINESS SOLUTIONS LTD,P2001171948,79,116.37,FUEL,18/07/2013,
800021940,ALLSTAR BUSINESS SOLUTIONS LTD,P2001171948,80,116.2,FUEL,18/07/2013,
800021940,ALLSTAR BUSINESS SOLUTIONS LTD,P2001171948,81,113.93,FUEL,18/07/2013,
800021940,ALLSTAR BUSINESS SOLUTIONS LTD,P2001171948,82,112.47,FUEL,18/07/2013,
800021940,ALLSTAR BUSINESS SOLUTIONS LTD,P2001171948,83,112.4,FUEL,18/07/2013,
800021940,ALLSTAR BUSINESS SOLUTIONS LTD,P2001171948,84,111.91,FUEL,18/07/2013,
800021940,ALLSTAR BUSINESS SOLUTIONS LTD,P2001171948,85,109.31,FUEL,18/07/2013,
800021940,ALLSTAR BUSINESS SOLUTIONS LTD,P2001171948,86,106.73,FUEL,18/07/2013,
800021940,ALLSTAR BUSINESS SOLUTIONS LTD,P2001171948,87,104.05,FUEL,18/07/2013,
800021940,ALLSTAR BUSINESS SOLUTIONS LTD,P2001171948,88,101.36,FUEL,18/07/2013,
800021940,ALLSTAR BUSINESS SOLUTIONS LTD,P2001171948,89,99.87,FUEL,18/07/2013,
800021940,ALLSTAR BUSINESS SOLUTIONS LTD,P2001171948,90,99.49,FUEL,18/07/2013,
800021940,ALLSTAR BUSINESS SOLUTIONS LTD,P2001171948,91,98.89,FUEL,18/07/2013,
800021940,ALLSTAR BUSINESS SOLUTIONS LTD,P2001171948,92,97.55,FUEL,18/07/2013,
800021940,ALLSTAR BUSINESS SOLUTIONS LTD,P2001171948,93,89.84,FUEL,18/07/2013,
800021940,ALLSTAR BUSINESS SOLUTIONS LTD,P2001171948,94,89,FUEL,18/07/2013,
800021940,ALLSTAR BUSINESS SOLUTIONS LTD,P2001171948,95,87.1,FUEL,18/07/2013,
800021940,ALLSTAR BUSINESS SOLUTIONS LTD,P2001171948,96,84.22,FUEL,18/07/2013,
800021940,ALLSTAR BUSINESS SOLUTIONS LTD,P2001171948,97,79.03,FUEL,18/07/2013,
800021940,ALLSTAR BUSINESS SOLUTIONS LTD,P2001171948,98,70.9,FUEL,18/07/2013,
800021940,ALLSTAR BUSINESS SOLUTIONS LTD,P2001171948,99,68.8,FUEL,18/07/2013,
800021940,ALLSTAR BUSINESS SOLUTIONS LTD,P2001171948,100,67.26,FUEL,18/07/2013,
800021940,ALLSTAR BUSINESS SOLUTIONS LTD,P2001171948,101,66.69,FUEL,18/07/2013,
800021940,ALLSTAR BUSINESS SOLUTIONS LTD,P2001171948,102,61.68,FUEL,18/07/2013,
800021940,ALLSTAR BUSINESS SOLUTIONS LTD,P2001171948,103,54.17,FUEL,18/07/2013,
800021940,ALLSTAR BUSINESS SOLUTIONS LTD,P2001171948,104,51.72,FUEL,18/07/2013,
800021940,ALLSTAR BUSINESS SOLUTIONS LTD,P2001171948,105,50.31,FUEL,18/07/2013,
800021940,ALLSTAR BUSINESS SOLUTIONS LTD,P2001171948,106,47.8,FUEL,18/07/2013,
800021940,ALLSTAR BUSINESS SOLUTIONS LTD,P2001171948,107,37.58,FUEL,18/07/2013,
800021940,ALLSTAR BUSINESS SOLUTIONS LTD,P2001171948,108,35.78,FUEL,18/07/2013,
800021940,ALLSTAR BUSINESS SOLUTIONS LTD,P2001171948,109,24.83,FUEL,18/07/2013,
800021940,ALLSTAR BUSINESS SOLUTIONS LTD,P2001171948,110,22.38,FUEL,18/07/2013,
800021940,ALLSTAR BUSINESS SOLUTIONS LTD,P2001171948,111,10.76,FUEL,18/07/2013,
100713C,PULLMAN MOTORS================,PULL172,1,"1,500.00",OPERATIONAL EQUIP-PURCHASE,18/07/2013,"1,500.00"
050713C,PULLMAN MOTORS================,PULL173,1,270,"INSPECTION,ROAD TAX & EXCESS MILEAGE",18/07/2013,270
050713C,PULLMAN MOTORS================,PULL174,1,800,OPERATIONAL EQUIP-PURCHASE,18/07/2013,800
030713C,SECURITAS SECURITY SERVICES LT,S-SIN0148001,1,"130,375.96",GENERAL,18/07/2013,"130,375.96"
030713C,SECURITAS SECURITY SERVICES LT,S-SIN0148026,1,"31,356.83",GENERAL,18/07/2013,"31,356.83"
100713H,GROUND CONTROL UMITED,SIN020862,1,13,GROUNDS MAINTENANCE,18/07/2013,"1,047.10"
100713H,GROUND CONTROL UMITED,SIN020862,2,13,GROUNDS MAINTENANCE,18/07/2013,
100713H,GROUND CONTROL UMITED,SIN020862,3,57.34,GROUNDS MAINTENANCE,18/07/2013,
100713H,GROUND CONTROL UMITED,SIN020862,4,13,GROUNDS MAINTENANCE,18/07/2013,
100713H,GROUND CONTROL UMITED,SIN020862,5,41.58,GROUNDS MAINTENANCE,18/07/2013,
100713H,GROUND CONTROL UMITED,SIN020862,6,41.58,GROUNDS MAINTENANCE,18/07/2013,
100713H,GROUND CONTROL UMITED,SIN020862,7,13,GROUNDS MAINTENANCE,18/07/2013,
100713H,GROUND CONTROL UMITED,SIN020862,8,13,GROUNDS MAINTENANCE,18/07/2013,
100713H,GROUND CONTROL UMITED,SIN020862,9,53.87,GROUNDS MAINTENANCE,18/07/2013,
100713H,GROUND CONTROL UMITED,SIN020862,10,13,GROUNDS MAINTENANCE,18/07/2013,
100713H,GROUND CONTROL UMITED,SIN020862,11,13,GROUNDS MAINTENANCE,18/07/2013,
100713H,GROUND CONTROL UMITED,SIN020862,12,60.38,GROUNDS MAINTENANCE,18/07/2013,
100713H,GROUND CONTROL UMITED,SIN020862,13,45.21,GROUNDS MAINTENANCE,18/07/2013,
100713H,GROUND CONTROL UMITED,SIN020862,14,49.12,GROUNDS MAINTENANCE,18/07/2013,
100713H,GROUND CONTROL UMITED,SIN020862,15,13,GROUNDS MAINTENANCE,18/07/2013,
100713H,GROUND CONTROL UMITED,SIN020862,16,13,GROUNDS MAINTENANCE,18/07/2013,
100713H,GROUND CONTROL UMITED,SIN020862,17,13,GROUNDS MAINTENANCE,18/07/2013,
100713H,GROUND CONTROL UMITED,SIN020862,18,49.12,GROUNDS MAINTENANCE,18/07/2013,
100713H,GROUND CONTROL UMITED,SIN020862,19,15,GROUNDS MAINTENANCE,18/07/2013,
100713H,GROUND CONTROL UMITED,SIN020862,20,13,GROUNDS MAINTENANCE,18/07/2013,
100713H,GROUND CONTROL UMITED,SIN020862,21,13,GROUNDS MAINTENANCE,18/07/2013,
100713H,GROUND CONTROL UMITED,SIN020862,22,50.41,GROUNDS MAINTENANCE,18/07/2013,
100713H,GROUND CONTROL UMITED,SIN020862,23,13,GROUNDS MAINTENANCE,18/07/2013,
100713H,GROUND CONTROL UMITED,SIN020862,24,13,GROUNDS MAINTENANCE,18/07/2013,
100713H,GROUND CONTROL UMITED,SIN020862,25,13,GROUNDS MAINTENANCE,18/07/2013,
100713H,GROUND CONTROL UMITED,SIN020862,26,49.12,GROUNDS MAINTENANCE,18/07/2013,
100713H,GROUND CONTROL UMITED,SIN020862,27,45.21,GROUNDS MAINTENANCE,18/07/2013,
100713H,GROUND CONTROL UMITED,SIN020862,28,13,GROUNDS MAINTENANCE,18/07/2013,
100713H,GROUND CONTROL UMITED,SIN020862,29,45.21,GROUNDS MAINTENANCE,18/07/2013,
100713H,GROUND CONTROL UMITED,SIN020862,30,15,GROUNDS MAINTENANCE,18/07/2013,
100713H,GROUND CONTROL UMITED,SIN020862,31,49.12,GROUNDS MAINTENANCE,18/07/2013,
100713H,GROUND CONTROL UMITED,SIN020862,32,49.12,GROUNDS MAINTENANCE,18/07/2013,
100713H,GROUND CONTROL UMITED,SIN020862,33,49.12,GROUNDS MAINTENANCE,18/07/2013,
100713H,GROUND CONTROL UMITED,SIN020862,34,13,GROUNDS MAINTENANCE,18/07/2013,
100713H,GROUND CONTROL UMITED,SIN020862,35,47.59,GROUNDS MAINTENANCE,18/07/2013,
100713H,GROUND CONTROL UMITED,SIN020862,36,13,GROUNDS MAINTENANCE,18/07/2013,
100713H,GROUND CONTROL UMITED,SIN020863,1,79.85,GROUNDS MAINTENANCE,18/07/2013,844.3
100713H,GROUND CONTROL UMITED,SIN020863,2,13,GROUNDS MAINTENANCE,18/07/2013,
100713H,GROUND CONTROL UMITED,SIN020863,3,13,GROUNDS MAINTENANCE,18/07/2013,
100713H,GROUND CONTROL UMITED,SIN020863,4,49.46,GROUNDS MAINTENANCE,18/07/2013,
100713H,GROUND CONTROL UMITED,SIN020863,5,9.88,GROUNDS MAINTENANCE,18/07/2013,
100713H,GROUND CONTROL UMITED,SIN020863,6,34.55,GROUNDS MAINTENANCE,18/07/2013,
100713H,GROUND CONTROL UMITED,SIN020863,7,14.29,GROUNDS MAINTENANCE,18/07/2013,
100713H,GROUND CONTROL UMITED,SIN020863,8,14.29,GROUNDS MAINTENANCE,18/07/2013,
100713H,GROUND CONTROL UMITED,SIN020863,9,41.3,GROUNDS MAINTENANCE,18/07/2013,
100713H,GROUND CONTROL UMITED,SIN020863,10,41.3,GROUNDS MAINTENANCE,18/07/2013,
100713H,GROUND CONTROL UMITED,SIN020863,11,13,GROUNDS MAINTENANCE,18/07/2013,
100713H,GROUND CONTROL UMITED,SIN020863,12,13,GROUNDS MAINTENANCE,18/07/2013,
100713H,GROUND CONTROL UMITED,SIN020863,13,45.21,GROUNDS MAINTENANCE,18/07/2013,
100713H,GROUND CONTROL UMITED,SIN020863,14,41.3,GROUNDS MAINTENANCE,18/07/2013,
100713H,GROUND CONTROL UMITED,SIN020863,15,13,GROUNDS MAINTENANCE,18/07/2013,
100713H,GROUND CONTROL UMITED,SIN020863,16,13,GROUNDS MAINTENANCE,18/07/2013,
100713H,GROUND CONTROL UMITED,SIN020863,17,13,GROUNDS MAINTENANCE,18/07/2013,
100713H,GROUND CONTROL UMITED,SIN020863,18,13,GROUNDS MAINTENANCE,18/07/2013,
100713H,GROUND CONTROL UMITED,SIN020863,19,13,GROUNDS MAINTENANCE,18/07/2013,
100713H,GROUND CONTROL UMITED,SIN020863,20,13,GROUNDS MAINTENANCE,18/07/2013,
100713H,GROUND CONTROL UMITED,SIN020863,21,13,GROUNDS MAINTENANCE,18/07/2013,
100713H,GROUND CONTROL UMITED,SIN020863,22,13,GROUNDS MAINTENANCE,18/07/2013,
100713H,GROUND CONTROL UMITED,SIN020863,23,64.69,GROUNDS MAINTENANCE,18/07/2013,
100713H,GROUND CONTROL UMITED,SIN020863,24,13,GROUNDS MAINTENANCE,18/07/2013,
100713H,GROUND CONTROL UMITED,SIN020863,25,13,GROUNDS MAINTENANCE,18/07/2013,
100713H,GROUND CONTROL UMITED,SIN020863,26,13,GROUNDS MAINTENANCE,18/07/2013,
100713H,GROUND CONTROL UMITED,SIN020863,27,34.55,GROUNDS MAINTENANCE,18/07/2013,
100713H,GROUND CONTROL UMITED,SIN020863,28,13,GROUNDS MAINTENANCE,18/07/2013,
100713H,GROUND CONTROL UMITED,SIN020863,29,34.55,GROUNDS MAINTENANCE,18/07/2013,
100713H,GROUND CONTROL UMITED,SIN020863,30,38.46,GROUNDS MAINTENANCE,18/07/2013,
100713H,GROUND CONTROL UMITED,SIN020863,31,38.46,GROUNDS MAINTENANCE,18/07/2013,
100713H,GROUND CONTROL UMITED,SIN020863,32,13,GROUNDS MAINTENANCE,18/07/2013,
100713H,GROUND CONTROL UMITED,SIN020863,33,13,GROUNDS MAINTENANCE,18/07/2013,
100713H,GROUND CONTROL UMITED,SIN020863,34,13,GROUNDS MAINTENANCE,18/07/2013,
100713H,GROUND CONTROL UMITED,SIN020863,35,6.5,GROUNDS MAINTENANCE,18/07/2013,
100713H,GROUND CONTROL UMITED,SIN020863,36,8.66,GROUNDS MAINTENANCE,18/07/2013,
160713H,BRITISH TELECOM===============,VP71178070 M19201 A2,1,"3,031.41",CALL CHARGES,18/07/2013,"89,363.65"
160713H,BRITISH TELECOM===============,VP71178070 M19201 A2,2,"86,332.24",TELECOMMUNICATIONS,18/07/2013,
120713H,VODAFONE PAGING LTD===========,VR1361051,1,"4,638.78",MAINTENANCE & SUPPORT,18/07/2013,"4,638.78"
120713H,VODAFONE PAGING LTD===========,VR1361052,1,"1,898.19",MAINTENANCE & SUPPORT,18/07/2013,"1,898.19"
160713H,ARVAL UK LTD,VS0000728852,1,"6,904.45",CONTRACT HIRE,18/07/2013,"6,904.45"
160713H,ARVAL UK LTD,VS0000764544,1,372.96,CONTRACT HIRE,18/07/2013,372.96
160713H,ARVAL UK LTD,VS0000800318,1,"2,932.69",CONTRACT HIRE,18/07/2013,"2,932.69"
170713C,HEALTH MANAGEMENT LIMITED=====,99374,1,160,THIRD PARTY REPORTS,22/07/2013,"4,500.20"
170713C,HEALTH MANAGEMENT LIMITED=====,99374,2,420,THIRD PARTY REPORTS,22/07/2013,
170713C,HEALTH MANAGEMENT LIMITED=====,99374,3,350,THIRD PARTY REPORTS,22/07/2013,
170713C,HEALTH MANAGEMENT LIMITED=====,99374,4,250,THIRD PARTY REPORTS,22/07/2013,
170713C,HEALTH MANAGEMENT LIMITED=====,99374,5,200,THIRD PARTY REPORTS,22/07/2013,
170713C,HEALTH MANAGEMENT LIMITED=====,99374,6,250,THIRD PARTY REPORTS,22/07/2013,
170713C,HEALTH MANAGEMENT LIMITED=====,99374,7,200,THIRD PARTY REPORTS,22/07/2013,
170713C,HEALTH MANAGEMENT LIMITED=====,99374,8,200,THIRD PARTY REPORTS,22/07/2013,
170713C,HEALTH MANAGEMENT LIMITED=====,99374,9,220,THIRD PARTY REPORTS,22/07/2013,
170713C,HEALTH MANAGEMENT LIMITED=====,99374,10,"2,250.20",THIRD PARTY REPORTS,22/07/2013,
050713C,HEALTH MANAGEMENT LIMITED=====,99375,1,"107,035.75",OHS CONTRACT,22/07/2013,"107,035.75"
170713C,SUE HILL RECRUITMENT & SRV.LTD,45379,1,"1,121.25",FRS STAFF AGENCY,22/07/2013,"1,121.25"
170713C,AFFINITY WATER,101024736,1,714,CURRENT HYDRANT COSTS,22/07/2013,714
170713C,AFFINITY WATER,101024737,1,568,CURRENT HYDRANT COSTS,22/07/2013,568
170713C,AFFINITY WATER,101024738,1,714,CURRENT HYDRANT COSTS,22/07/2013,714
170713C,AFFINITY WATER,101024739,1,714,CURRENT HYDRANT COSTS,22/07/2013,714
170713C,AFFINITY WATER,101024740,1,550,CURRENT HYDRANT COSTS,22/07/2013,550
170713C,AFFINITY WATER,101024745,1,341,CURRENT HYDRANT COSTS,22/07/2013,341
100713C,REAM CONTRACTS LTD============,10164,1,"3,006.00",STRATEGIC (NON CYCLICAL),22/07/2013,"3,006.00"
800022027,AZTEC COMPUTING LTD===========,10411,1,"11,375.00",MAINTENANCE & SUPPORT,22/07/2013,"22,750.00"
800022027,AZTEC COMPUTING LTD===========,10411,2,"11,375.00",MAINTENANCE & SUPPORT,22/07/2013,
800022028,AZTEC COMPUTING LTD===========,10412,1,"4,200.00",MAINTENANCE & SUPPORT,22/07/2013,"4,200.00"
800022029,AZTEC COMPUTING LTD===========,10413,1,"1,400.00",TELECOMMUNICATIONS,22/07/2013,"1,400.00"
160713F,*SPRUE SAFETY PRODUCTS LTD====,1048895,1,"1,516.80",FIRE DETECTORS,22/07/2013,"1,516.80"
160713F,*SPRUE SAFETY PRODUCTS LTD====,1048897,1,"1,516.80",FIRE DETECTORS,22/07/2013,"1,516.80"
180713H,*SPRUE SAFETY PRODUCTS LTD====,1048900,1,"1,516.80",FIRE DETECTORS,22/07/2013,"1,516.80"
800022009,JAMES HUNTER (OUTFITTERS) LTD=,107144,1,224.16,CLOTHING,22/07/2013,283.98
800022009,JAMES HUNTER (OUTFITTERS) LTD=,107144,2,59.82,CLOTHING,22/07/2013,
800022031,REDFERN TRAVEL LTD,1112343,1,"1,314.80",PUBLIC TRANSPORT,22/07/2013,"1,314.80"
140295,MS SAMANTHA COOPER,112965,1,500,COUNSELS FEES,22/07/2013,500
180713H,YOUGOV PLC,125945,1,"6,700.00",CONSULTANTS,22/07/2013,"11,950.00"
180713H,YOUGOV PLC,125945,2,"5,250.00",CONSULTANTS,22/07/2013,
180713H,AGE CONCERN HAVERING==========,13042,1,455,COMMUNITY RELATIONS,22/07/2013,455
170713C,PA ASSOCIATES (UK) LTD========,13052,1,"1,257.50",STRATEGIC (NON CYCLICAL),22/07/2013,"1,257.50"
140292,PA ASSOCIATES (UK) LTD========,13057,1,150.12,GAS,22/07/2013,"10,659.00"
140292,PA ASSOCIATES (UK) LTD========,13057,2,150.12,GAS,22/07/2013,
140292,PA ASSOCIATES (UK) LTD========,13057,3,75.06,GAS,22/07/2013,
140292,PA ASSOCIATES (UK) LTD========,13057,4,225.18,GAS,22/07/2013,
140292,PA ASSOCIATES (UK) LTD========,13057,5,150.12,GAS,22/07/2013,
140292,PA ASSOCIATES (UK) LTD========,13057,6,150.12,GAS,22/07/2013,
140292,PA ASSOCIATES (UK) LTD========,13057,7,150.12,GAS,22/07/2013,
140292,PA ASSOCIATES (UK) LTD========,13057,8,75.06,GAS,22/07/2013,
140292,PA ASSOCIATES (UK) LTD========,13057,9,75.06,GAS,22/07/2013,
140292,PA ASSOCIATES (UK) LTD========,13057,10,150.12,GAS,22/07/2013,
140292,PA ASSOCIATES (UK) LTD========,13057,11,150.12,GAS,22/07/2013,
140292,PA ASSOCIATES (UK) LTD========,13057,12,225.18,GAS,22/07/2013,
140292,PA ASSOCIATES (UK) LTD========,13057,13,75.06,GAS,22/07/2013,
140292,PA ASSOCIATES (UK) LTD========,13057,14,75.06,GAS,22/07/2013,
140292,PA ASSOCIATES (UK) LTD========,13057,15,150.12,GAS,22/07/2013,
140292,PA ASSOCIATES (UK) LTD========,13057,16,75.06,GAS,22/07/2013,
140292,PA ASSOCIATES (UK) LTD========,13057,17,300.24,GAS,22/07/2013,
140292,PA ASSOCIATES (UK) LTD========,13057,18,75.06,GAS,22/07/2013,
140292,PA ASSOCIATES (UK) LTD========,13057,19,75.06,GAS,22/07/2013,
140292,PA ASSOCIATES (UK) LTD========,13057,20,75.06,GAS,22/07/2013,
140292,PA ASSOCIATES (UK) LTD========,13057,21,225.18,GAS,22/07/2013,
140292,PA ASSOCIATES (UK) LTD========,13057,22,75.06,GAS,22/07/2013,
140292,PA ASSOCIATES (UK) LTD========,13057,23,75.06,GAS,22/07/2013,
140292,PA ASSOCIATES (UK) LTD========,13057,24,75.06,GAS,22/07/2013,
140292,PA ASSOCIATES (UK) LTD========,13057,25,225.18,GAS,22/07/2013,
140292,PA ASSOCIATES (UK) LTD========,13057,26,75.06,GAS,22/07/2013,
140292,PA ASSOCIATES (UK) LTD========,13057,27,150.12,GAS,22/07/2013,
140292,PA ASSOCIATES (UK) LTD========,13057,28,150.12,GAS,22/07/2013,
140292,PA ASSOCIATES (UK) LTD========,13057,29,75.06,GAS,22/07/2013,
140292,PA ASSOCIATES (UK) LTD========,13057,30,150.12,GAS,22/07/2013,
140292,PA ASSOCIATES (UK) LTD========,13057,31,150.12,GAS,22/07/2013,
140292,PA ASSOCIATES (UK) LTD========,13057,32,75.06,GAS,22/07/2013,
140292,PA ASSOCIATES (UK) LTD========,13057,33,150.12,GAS,22/07/2013,
140292,PA ASSOCIATES (UK) LTD========,13057,34,225.18,GAS,22/07/2013,
140292,PA ASSOCIATES (UK) LTD========,13057,35,150.12,GAS,22/07/2013,
140292,PA ASSOCIATES (UK) LTD========,13057,36,75.06,GAS,22/07/2013,
140292,PA ASSOCIATES (UK) LTD========,13057,37,150.12,GAS,22/07/2013,
140292,PA ASSOCIATES (UK) LTD========,13057,38,150.12,GAS,22/07/2013,
140292,PA ASSOCIATES (UK) LTD========,13057,39,150.12,GAS,22/07/2013,
140292,PA ASSOCIATES (UK) LTD========,13057,40,150.12,GAS,22/07/2013,
140292,PA ASSOCIATES (UK) LTD========,13057,41,75.06,GAS,22/07/2013,
140292,PA ASSOCIATES (UK) LTD========,13057,42,75.54,GAS,22/07/2013,
140292,PA ASSOCIATES (UK) LTD========,13057,43,75.06,WATER & SEWERAGE RATES,22/07/2013,
140292,PA ASSOCIATES (UK) LTD========,13057,44,150.12,ELECTRICITY,22/07/2013,
140292,PA ASSOCIATES (UK) LTD========,13057,45,225.18,ELECTRICITY,22/07/2013,
140292,PA ASSOCIATES (UK) LTD========,13057,46,75.06,ELECTRICITY,22/07/2013,
140292,PA ASSOCIATES (UK) LTD========,13057,47,75.06,ELECTRICITY,22/07/2013,
140292,PA ASSOCIATES (UK) LTD========,13057,48,75.06,ELECTRICITY,22/07/2013,
140292,PA ASSOCIATES (UK) LTD========,13057,49,75.06,ELECTRICITY,22/07/2013,
140292,PA ASSOCIATES (UK) LTD========,13057,50,75.06,ELECTRICITY,22/07/2013,
140292,PA ASSOCIATES (UK) LTD========,13057,51,150.12,ELECTRICITY,22/07/2013,
140292,PA ASSOCIATES (UK) LTD========,13057,52,75.06,ELECTRICITY,22/07/2013,
140292,PA ASSOCIATES (UK) LTD========,13057,53,150.12,ELECTRICITY,22/07/2013,
140292,PA ASSOCIATES (UK) LTD========,13057,54,150.12,ELECTRICITY,22/07/2013,
140292,PA ASSOCIATES (UK) LTD========,13057,55,75.06,ELECTRICITY,22/07/2013,
140292,PA ASSOCIATES (UK) LTD========,13057,56,150.12,ELECTRICITY,22/07/2013,
140292,PA ASSOCIATES (UK) LTD========,13057,57,150.12,ELECTRICITY,22/07/2013,
140292,PA ASSOCIATES (UK) LTD========,13057,58,75.06,ELECTRICITY,22/07/2013,
140292,PA ASSOCIATES (UK) LTD========,13057,59,150.12,ELECTRICITY,22/07/2013,
140292,PA ASSOCIATES (UK) LTD========,13057,60,75.06,ELECTRICITY,22/07/2013,
140292,PA ASSOCIATES (UK) LTD========,13057,61,75.06,ELECTRICITY,22/07/2013,
140292,PA ASSOCIATES (UK) LTD========,13057,62,150.12,ELECTRICITY,22/07/2013,
140292,PA ASSOCIATES (UK) LTD========,13057,63,75.06,ELECTRICITY,22/07/2013,
140292,PA ASSOCIATES (UK) LTD========,13057,64,75.06,ELECTRICITY,22/07/2013,
140292,PA ASSOCIATES (UK) LTD========,13057,65,75.06,ELECTRICITY,22/07/2013,
140292,PA ASSOCIATES (UK) LTD========,13057,66,75.06,ELECTRICITY,22/07/2013,
140292,PA ASSOCIATES (UK) LTD========,13057,67,75.06,ELECTRICITY,22/07/2013,
140292,PA ASSOCIATES (UK) LTD========,13057,68,150.12,ELECTRICITY,22/07/2013,
140292,PA ASSOCIATES (UK) LTD========,13057,69,75.06,ELECTRICITY,22/07/2013,
140292,PA ASSOCIATES (UK) LTD========,13057,70,75.06,ELECTRICITY,22/07/2013,
140292,PA ASSOCIATES (UK) LTD========,13057,71,150.12,ELECTRICITY,22/07/2013,
140292,PA ASSOCIATES (UK) LTD========,13057,72,150.12,ELECTRICITY,22/07/2013,
140292,PA ASSOCIATES (UK) LTD========,13057,73,75.06,ELECTRICITY,22/07/2013,
140292,PA ASSOCIATES (UK) LTD========,13057,74,150.12,ELECTRICITY,22/07/2013,
140292,PA ASSOCIATES (UK) LTD========,13057,75,75.06,ELECTRICITY,22/07/2013,
140292,PA ASSOCIATES (UK) LTD========,13057,76,225.18,ELECTRICITY,22/07/2013,
140292,PA ASSOCIATES (UK) LTD========,13057,77,150.12,ELECTRICITY,22/07/2013,
140292,PA ASSOCIATES (UK) LTD========,13057,78,75.06,ELECTRICITY,22/07/2013,
140292,PA ASSOCIATES (UK) LTD========,13057,79,150.12,ELECTRICITY,22/07/2013,
140292,PA ASSOCIATES (UK) LTD========,13057,80,150.12,ELECTRICITY,22/07/2013,
140292,PA ASSOCIATES (UK) LTD========,13057,81,150.12,ELECTRICITY,22/07/2013,
140292,PA ASSOCIATES (UK) LTD========,13057,82,150.12,ELECTRICITY,22/07/2013,
140292,PA ASSOCIATES (UK) LTD========,13057,83,150.12,ELECTRICITY,22/07/2013,
140292,PA ASSOCIATES (UK) LTD========,13057,84,75.06,ELECTRICITY,22/07/2013,
140292,PA ASSOCIATES (UK) LTD========,13057,85,75.06,ELECTRICITY,22/07/2013,
140292,PA ASSOCIATES (UK) LTD========,13057,86,75.06,ELECTRICITY,22/07/2013,
140292,PA ASSOCIATES (UK) LTD========,13057,87,225.18,ELECTRICITY,22/07/2013,
160713E,DITTON ELECTRICAL CONTRACTS LT,13867,1,"29,672.36",PURCHASES-COMPUTER/EQUIPMENT,22/07/2013,"29,672.36"
140294,AFFINITY WATER,1462190-&F,1,260.01,WATER & SEWERAGE RATES,22/07/2013,260.01
140295,MISS SARAH LE FEVRE===========,231918,1,490,PROFESSIONAL FEES ENFORCEMENT,22/07/2013,490
120713H,UNDERSTANDING RECRUITMENT=====,2481,1,"5,940.00",FRS STAFF AGENCY,22/07/2013,"5,940.00"
800021975,ADECCO UK LIMITED=============,26472736,1,"1,949.85",FRS STAFF AGENCY,22/07/2013,"1,949.85"
800021976,ADECCO UK LIMITED=============,26472737,1,953.68,FRS STAFF AGENCY,22/07/2013,953.68
800021977,ADECCO UK LIMITED=============,26472738,1,356.58,FRS STAFF AGENCY,22/07/2013,356.58
800021978,ADECCO UK LIMITED=============,26472739,1,989.12,FRS STAFF AGENCY,22/07/2013,989.12
800021981,ADECCO UK LIMITED=============,26472742,1,"1,166.76",FRS STAFF AGENCY,22/07/2013,"1,166.76"
800021982,ADECCO UK LIMITED=============,26472743,1,945.42,FRS STAFF AGENCY,22/07/2013,945.42
800021983,ADECCO UK LIMITED=============,26472744,1,594.3,FRS STAFF AGENCY,22/07/2013,594.3
800021984,ADECCO UK LIMITED=============,26472745,1,739.5,FRS STAFF AGENCY,22/07/2013,739.5
800021985,ADECCO UK LIMITED=============,26472746,1,339.12,FRS STAFF AGENCY,22/07/2013,339.12
800021986,ADECCO UK LIMITED=============,26472747,1,439.6,FRS STAFF AGENCY,22/07/2013,439.6
800021987,ADECCO UK LIMITED=============,26472748,1,952.7,FRS STAFF AGENCY,22/07/2013,952.7
800021993,ADECCO UK LIMITED=============,26475854,1,"1,357.44",FRS STAFF AGENCY,22/07/2013,"1,357.44"
800021990,ADECCO UK LIMITED=============,26475855,1,"1,212.00",FRS STAFF AGENCY,22/07/2013,"1,212.00"
800021991,ADECCO UK LIMITED=============,26475856,1,"1,131.55",FRS STAFF AGENCY,22/07/2013,"1,131.55"
800021992,ADECCO UK LIMITED=============,26475857,1,"1,131.55",FRS STAFF AGENCY,22/07/2013,"1,131.55"
170713C,J & B BRAIDWAY LTD,323,1,139.3,CLOTHING,22/07/2013,278.6
170713C,J & B BRAIDWAY LTD,323,2,139.3,CLOTHING,22/07/2013,
120713H,HUNTERS CONTRACTS LIMITED,342603,1,718.2,OFFICE FURNITURE,22/07/2013,718.2
120713H,HUNTERS CONTRACTS LIMITED,342608,1,478.8,OFFICE FURNITURE,22/07/2013,478.8
180713H,COMPUTACENTRE================,3804769552,1,"1,989.12",MAINTENANCE & SUPPORT,22/07/2013,"1,989.12"
180713H,COMPUTACENTRE================,3804772959,1,302.74,MAINTENANCE & SUPPORT,22/07/2013,302.74
180713H,COMPUTACENTRE================,3804803383,1,"1,321.11",ACQUISITIONS,22/07/2013,"1,321.11"
140294,THAMES WATER UTILITIES LTD====,3999296402F,1,834.02,WATER & SEWERAGE RATES,22/07/2013,834.02
100713C,GRAHAM MALTBY,44,1,"11,000.00",CONSULTANTS,22/07/2013,"12,208.92"
100713C,GRAHAM MALTBY,44,2,"1,208.92",CONSULTANTS,22/07/2013,
170713C,SPORTSAFE UK LTD==============,446656,1,285,GYM EQUIPMENT,22/07/2013,285
170713C,SPORTSAFE UK LTD==============,446691,1,270,GYM EQUIPMENT,22/07/2013,270
170713C,SPORTSAFE UK LTD==============,446697,1,825,GYM EQUIPMENT,22/07/2013,825
160713E,R J HOLLAND LTD===============,4761,1,500,STRATEGIC (NON CYCLICAL),22/07/2013,500
180713H,COSTELLO & SONS LIMITED=======,49399,1,283.4,UNIFORMS - POMS,22/07/2013,"1,275.00"
180713H,COSTELLO & SONS LIMITED=======,49399,2,141.7,UNIFORMS - POMS,22/07/2013,
180713H,COSTELLO & SONS LIMITED=======,49399,3,141.7,UNIFORMS - POMS,22/07/2013,
180713H,COSTELLO & SONS LIMITED=======,49399,4,425.1,UNIFORMS - POMS,22/07/2013,
180713H,COSTELLO & SONS LIMITED=======,49399,5,141.7,UNIFORMS - POMS,22/07/2013,
180713H,COSTELLO & SONS LIMITED=======,49399,6,141.4,UNIFORMS - POMS,22/07/2013,
170713C,FAHEY BUILDERS LTD============,5163,1,"4,800.00",STRATEGIC (NON CYCLICAL),22/07/2013,"4,800.00"
170713C,FAHEY BUILDERS LTD============,5164,1,"6,125.00",STRATEGIC (NON CYCLICAL),22/07/2013,"6,125.00"
170713C,FAHEY BUILDERS LTD============,5165,1,"6,100.00",STRATEGIC (NON CYCLICAL),22/07/2013,"6,100.00"
160713F,OPERATIONAL RESEARCH IN HEALTH,54X/LFB1/34,1,"9,563.33",CONSULTANTS,22/07/2013,"9,563.33"
180713H,SIEMENS ENTERPRISE COMM LTD===,600847835,1,663.75,PURCHASES-IT COMMUNICATIONS,22/07/2013,663.75
160713F,GAS & AIR SERVICES (UK)=======,6145,1,"1,321.42",REPAIR & MAINTENANCE,22/07/2013,"1,321.42"
170713C,GRANT THORNTON UK,6807211,1,"17,520.61",CONSULTANTS,22/07/2013,"17,520.61"
150713G,ACORN BUSINESS SUPPLIES LTD,7/I02784,1,415.1,OFFICE EQUIPMENT,22/07/2013,415.1
180713H,LEVEL 3 COMMUNICATIONS UK,80335699,1,"15,195.39",MAINTENANCE & SUPPORT,22/07/2013,"76,981.00"
180713H,LEVEL 3 COMMUNICATIONS UK,80335699,2,"1,596.33",MAINTENANCE & SUPPORT,22/07/2013,
180713H,LEVEL 3 COMMUNICATIONS UK,80335699,3,103.75,MAINTENANCE & SUPPORT,22/07/2013,
180713H,LEVEL 3 COMMUNICATIONS UK,80335699,4,40,MAINTENANCE & SUPPORT,22/07/2013,
180713H,LEVEL 3 COMMUNICATIONS UK,80335699,5,"56,768.37",MAINTENANCE & SUPPORT,22/07/2013,
180713H,LEVEL 3 COMMUNICATIONS UK,80335699,6,"3,276.00",MAINTENANCE & SUPPORT,22/07/2013,
180713H,LEVEL 3 COMMUNICATIONS UK,80335699,7,1.16,MAINTENANCE & SUPPORT,22/07/2013,
180713H,MULTITONE ELECTRONICS PLC=====,88387,1,780,PURCHASES-COMPUTER/EQUIPMENT,22/07/2013,780
160713F,DRAEGER SAFETY UK LIMITED=====,90417630,1,800,PROTECTIVE EQUIPT - PARTS,22/07/2013,800
160713F,DRAEGER SAFETY UK LIMITED=====,90417826,1,86,PROTECTIVE EQUIPT - PARTS,22/07/2013,384.57
160713F,DRAEGER SAFETY UK LIMITED=====,90417826,2,111.1,PROTECTIVE EQUIPT - PARTS,22/07/2013,
160713F,DRAEGER SAFETY UK LIMITED=====,90417826,3,21.6,PROTECTIVE EQUIPT - PARTS,22/07/2013,
160713F,DRAEGER SAFETY UK LIMITED=====,90417826,4,94,PROTECTIVE EQUIPT - PARTS,22/07/2013,
160713F,DRAEGER SAFETY UK LIMITED=====,90417826,5,71.87,PROTECTIVE EQUIPT - PARTS,22/07/2013,
160713F,DRAEGER SAFETY UK LIMITED=====,90418053,1,393.2,PROTECTIVE EQUIPT - PARTS,22/07/2013,393.2
160713F,DRAEGER SAFETY UK LIMITED=====,90418121,1,362.5,PROTECTIVE EQUIPT - PARTS,22/07/2013,362.5
160713F,DRAEGER SAFETY UK LIMITED=====,90418304,1,452,PROTECTIVE EQUIPT - PARTS,22/07/2013,"1,252.00"
160713F,DRAEGER SAFETY UK LIMITED=====,90418304,2,800,PROTECTIVE EQUIPT - PARTS,22/07/2013,
160713F,BANCROFT HINCHLEY LTD=========,9085,1,908,REPAIR & MAINTENANCE,22/07/2013,908
050713G,CAPITA SECURE INFO SOLUTIONS,93066542,1,"4,564.38",CONSULTANTS,22/07/2013,"4,564.38"
170713C,ARCHITECTURAL DECORATORS LTD==,AD20277,1,942.55,STRATEGIC (NON CYCLICAL),22/07/2013,942.55
140293,THE JACK PETCHEY FOUNDATION,AD5767,1,400,SPONSORSHIP,22/07/2013,400
140294,JCT600 CONTRACTS LIMITED======,INV00038457,1,"2,458.10",LEASE CAR CHARGES,22/07/2013,"3,603.24"
140294,JCT600 CONTRACTS LIMITED======,INV00038457,2,"1,145.14",P/PAYMTS-CAR LEASG-RENTAL,22/07/2013,
140294,JCT600 CONTRACTS LIMITED======,INV00038457,3,-316.99,VAT CAR LEASING,22/07/2013,
140294,JCT600 CONTRACTS LIMITED======,INV00038457,4,316.99,LEASE CAR CHARGES,22/07/2013,
080713C,OAK TELECOM LTD===============,M40596,1,700,MAINTENANCE & SUPPORT,22/07/2013,700
150713F,SPECIALIST COMPUTER CENTRES===,OP/L685125,1,846.88,ACQUISITIONS,22/07/2013,846.88
140294,ARVAL UK LTD,R10000786609,1,507.54,LEASE CAR CHARGES,22/07/2013,507.54
140294,ARVAL UK LTD,R10000786609,2,-42.23,VAT CAR LEASING,22/07/2013,
140294,ARVAL UK LTD,R10000786609,3,42.23,LEASE CAR CHARGES,22/07/2013,
140294,ARVAL UK LTD,R10000786610,1,"3,832.62",LEASE CAR CHARGES,22/07/2013,"4,823.82"
140294,ARVAL UK LTD,R10000786610,2,991.2,P/PAYMTS-CAR LEASG-RENTAL,22/07/2013,
140294,ARVAL UK LTD,R10000786610,3,-414.5,VAT CAR LEASING,22/07/2013,
140294,ARVAL UK LTD,R10000786610,4,414.5,LEASE CAR CHARGES,22/07/2013,
140294,ARVAL UK LTD,R10000786611,1,"2,895.55",LEASE CAR CHARGES,22/07/2013,"3,708.33"
140294,ARVAL UK LTD,R10000786611,2,812.78,P/PAYMTS-CAR LEASG-RENTAL,22/07/2013,
140294,ARVAL UK LTD,R10000786611,3,-300.17,VAT CAR LEASING,22/07/2013,
140294,ARVAL UK LTD,R10000786611,4,300.17,LEASE CAR CHARGES,22/07/2013,
140294,ARVAL UK LTD,R10000786612,1,"2,664.97",LEASE CAR CHARGES,22/07/2013,"3,563.05"
140294,ARVAL UK LTD,R10000786612,2,898.08,P/PAYMTS-CAR LEASG-RENTAL,22/07/2013,
140294,ARVAL UK LTD,R10000786612,3,-301.68,VAT CAR LEASING,22/07/2013,
140294,ARVAL UK LTD,R10000786612,4,301.68,LEASE CAR CHARGES,22/07/2013,
140294,ARVAL UK LTD,R10000786613,1,"2,296.97",LEASE CAR CHARGES,22/07/2013,"3,093.71"
140294,ARVAL UK LTD,R10000786613,2,796.74,P/PAYMTS-CAR LEASG-RENTAL,22/07/2013,
140294,ARVAL UK LTD,R10000786613,3,-260.44,VAT CAR LEASING,22/07/2013,
140294,ARVAL UK LTD,R10000786613,4,260.44,LEASE CAR CHARGES,22/07/2013,
140294,ARVAL UK LTD,R10000786614,1,"2,744.94",LEASE CAR CHARGES,22/07/2013,"3,490.95"
140294,ARVAL UK LTD,R10000786614,2,746.01,P/PAYMTS-CAR LEASG-RENTAL,22/07/2013,
140294,ARVAL UK LTD,R10000786614,3,-301.36,VAT CAR LEASING,22/07/2013,
140294,ARVAL UK LTD,R10000786614,4,301.36,LEASE CAR CHARGES,22/07/2013,
140294,ARVAL UK LTD,R10000786615,1,"3,287.99",LEASE CAR CHARGES,22/07/2013,"4,348.25"
140294,ARVAL UK LTD,R10000786615,2,"1,060.26",P/PAYMTS-CAR LEASG-RENTAL,22/07/2013,
140294,ARVAL UK LTD,R10000786615,3,-361.48,VAT CAR LEASING,22/07/2013,
140294,ARVAL UK LTD,R10000786615,4,361.48,LEASE CAR CHARGES,22/07/2013,
180713H,HARVEY NASH PLC,RL/55138/PL,1,"8,100.00",CONSULTANTS,22/07/2013,"8,100.00"
170713G,SECURITAS SECURITY SERVICES LT,S-SIN0139102,1,"12,841.05",REPAIR & MAINTENANCE,22/07/2013,"12,841.05"
140294,VEOLIA WATER PROJECTS LTD=====,SI-13-0003762,1,"13,007.87",ELECTRICITY,22/07/2013,"13,007.87"
180713H,COLLINS (CONTRACTORS) LTD=====,SPAM367,1,"1,290.00",STRATEGIC (NON CYCLICAL),22/07/2013,"1,290.00"
180713H,COLLINS (CONTRACTORS) LTD=====,SPAM368,1,"1,080.00",STRATEGIC (NON CYCLICAL),22/07/2013,"1,080.00"
180713H,*THOMAS KNEALE & CO LTD,TK3285,1,669.9,COMMUNITY RELATIONS,22/07/2013,"1,649.55"
180713H,*THOMAS KNEALE & CO LTD,TK3285,2,429.8,COMMUNITY RELATIONS,22/07/2013,
180713H,*THOMAS KNEALE & CO LTD,TK3285,3,334.95,COMMUNITY RELATIONS,22/07/2013,
180713H,*THOMAS KNEALE & CO LTD,TK3285,4,214.9,COMMUNITY RELATIONS,22/07/2013,
230713E,MOOLANDS LTD,36,1,495,STRATEGIC (NON CYCLICAL),26/07/2013,495
160713H,ADVANCED FURNITURE============,52329,1,540,OFFICE FURNITURE,26/07/2013,540
180713E,SYNERGY HEALTH LAB SERVICE LTD,98854,1,130,DRUG & ALCOHOL TESTS,26/07/2013,265
180713E,SYNERGY HEALTH LAB SERVICE LTD,98854,2,135,DRUG & ALCOHOL TESTS,26/07/2013,
190713C,ENTEL UK LTD==================,128344,1,420,RADIO,26/07/2013,429
190713C,ENTEL UK LTD==================,128344,2,9,RADIO,26/07/2013,
160713F,H-SQUARED ELECTRONICS LTD,333682,1,344,OPERATIONAL EQUIP-PURCHASE,26/07/2013,"1,720.00"
160713F,H-SQUARED ELECTRONICS LTD,333682,2,344,OPERATIONAL EQUIP-PURCHASE,26/07/2013,
160713F,H-SQUARED ELECTRONICS LTD,333682,3,344,OPERATIONAL EQUIP-PURCHASE,26/07/2013,
160713F,H-SQUARED ELECTRONICS LTD,333682,4,344,OPERATIONAL EQUIP-PURCHASE,26/07/2013,
160713F,H-SQUARED ELECTRONICS LTD,333682,5,344,OPERATIONAL EQUIP-PURCHASE,26/07/2013,
100713C,CLARITY INFORMATION SOLUTIONS=,955,1,500,PRESS OFFICE,26/07/2013,500
140299,CORONA ENERGY RETAIL 4 LTD,842006130,1,365.01,GAS,26/07/2013,"10,169.85"
140299,CORONA ENERGY RETAIL 4 LTD,842006130,2,6.73,GAS,26/07/2013,
140299,CORONA ENERGY RETAIL 4 LTD,842006130,3,155.13,GAS,26/07/2013,
140299,CORONA ENERGY RETAIL 4 LTD,842006130,4,250.12,GAS,26/07/2013,
140299,CORONA ENERGY RETAIL 4 LTD,842006130,5,152.47,GAS,26/07/2013,
140299,CORONA ENERGY RETAIL 4 LTD,842006130,6,340.05,GAS,26/07/2013,
140299,CORONA ENERGY RETAIL 4 LTD,842006130,7,409.64,GAS,26/07/2013,
140299,CORONA ENERGY RETAIL 4 LTD,842006130,8,218.35,GAS,26/07/2013,
140299,CORONA ENERGY RETAIL 4 LTD,842006130,9,313.84,GAS,26/07/2013,
140299,CORONA ENERGY RETAIL 4 LTD,842006130,10,50.1,GAS,26/07/2013,
140299,CORONA ENERGY RETAIL 4 LTD,842006130,11,312.74,GAS,26/07/2013,
140299,CORONA ENERGY RETAIL 4 LTD,842006130,12,293.19,GAS,26/07/2013,
140299,CORONA ENERGY RETAIL 4 LTD,842006130,13,284.23,GAS,26/07/2013,
140299,CORONA ENERGY RETAIL 4 LTD,842006130,14,783.48,GAS,26/07/2013,
140299,CORONA ENERGY RETAIL 4 LTD,842006130,15,315.32,GAS,26/07/2013,
140299,CORONA ENERGY RETAIL 4 LTD,842006130,16,365.31,GAS,26/07/2013,
140299,CORONA ENERGY RETAIL 4 LTD,842006130,17,312.44,GAS,26/07/2013,
140299,CORONA ENERGY RETAIL 4 LTD,842006130,18,553.93,GAS,26/07/2013,
140299,CORONA ENERGY RETAIL 4 LTD,842006130,19,24.43,GAS,26/07/2013,
140299,CORONA ENERGY RETAIL 4 LTD,842006130,20,148.68,GAS,26/07/2013,
140299,CORONA ENERGY RETAIL 4 LTD,842006130,21,30,GAS,26/07/2013,
140299,CORONA ENERGY RETAIL 4 LTD,842006130,22,414.52,GAS,26/07/2013,
140299,CORONA ENERGY RETAIL 4 LTD,842006130,23,789.03,GAS,26/07/2013,
140299,CORONA ENERGY RETAIL 4 LTD,842006130,24,520.9,GAS,26/07/2013,
140299,CORONA ENERGY RETAIL 4 LTD,842006130,25,218.63,GAS,26/07/2013,
140299,CORONA ENERGY RETAIL 4 LTD,842006130,26,421.78,GAS,26/07/2013,
140299,CORONA ENERGY RETAIL 4 LTD,842006130,27,263.94,GAS,26/07/2013,
140299,CORONA ENERGY RETAIL 4 LTD,842006130,28,151.14,GAS,26/07/2013,
140299,CORONA ENERGY RETAIL 4 LTD,842006130,29,296.08,GAS,26/07/2013,
140299,CORONA ENERGY RETAIL 4 LTD,842006130,30,332.54,GAS,26/07/2013,
140299,CORONA ENERGY RETAIL 4 LTD,842006130,31,594.08,GAS,26/07/2013,
140299,CORONA ENERGY RETAIL 4 LTD,842006130,32,482.02,GAS,26/07/2013,
140300,CORONA ENERGY RETAIL 4 LTD,842006131,1,139.88,GAS,26/07/2013,"8,284.39"
140300,CORONA ENERGY RETAIL 4 LTD,842006131,2,276.79,GAS,26/07/2013,
140300,CORONA ENERGY RETAIL 4 LTD,842006131,3,290.15,GAS,26/07/2013,
140300,CORONA ENERGY RETAIL 4 LTD,842006131,4,267.7,GAS,26/07/2013,
140300,CORONA ENERGY RETAIL 4 LTD,842006131,5,483.84,GAS,26/07/2013,
140300,CORONA ENERGY RETAIL 4 LTD,842006131,6,258.31,GAS,26/07/2013,
140300,CORONA ENERGY RETAIL 4 LTD,842006131,7,173.08,GAS,26/07/2013,
140300,CORONA ENERGY RETAIL 4 LTD,842006131,8,613.39,GAS,26/07/2013,
140300,CORONA ENERGY RETAIL 4 LTD,842006131,9,33.88,GAS,26/07/2013,
140300,CORONA ENERGY RETAIL 4 LTD,842006131,10,154.37,GAS,26/07/2013,
140300,CORONA ENERGY RETAIL 4 LTD,842006131,11,242.67,GAS,26/07/2013,
140300,CORONA ENERGY RETAIL 4 LTD,842006131,12,101.1,GAS,26/07/2013,
140300,CORONA ENERGY RETAIL 4 LTD,842006131,13,301.05,GAS,26/07/2013,
140300,CORONA ENERGY RETAIL 4 LTD,842006131,14,292.38,GAS,26/07/2013,
140300,CORONA ENERGY RETAIL 4 LTD,842006131,15,19.28,GAS,26/07/2013,
140300,CORONA ENERGY RETAIL 4 LTD,842006131,16,64.15,GAS,26/07/2013,
140300,CORONA ENERGY RETAIL 4 LTD,842006131,17,115.41,GAS,26/07/2013,
140300,CORONA ENERGY RETAIL 4 LTD,842006131,18,65.79,GAS,26/07/2013,
140300,CORONA ENERGY RETAIL 4 LTD,842006131,19,48.84,GAS,26/07/2013,
140300,CORONA ENERGY RETAIL 4 LTD,842006131,20,32.25,GAS,26/07/2013,
140300,CORONA ENERGY RETAIL 4 LTD,842006131,21,297.95,GAS,26/07/2013,
140300,CORONA ENERGY RETAIL 4 LTD,842006131,22,357.13,GAS,26/07/2013,
140300,CORONA ENERGY RETAIL 4 LTD,842006131,23,216.79,GAS,26/07/2013,
140300,CORONA ENERGY RETAIL 4 LTD,842006131,24,237.77,GAS,26/07/2013,
140300,CORONA ENERGY RETAIL 4 LTD,842006131,25,299.71,GAS,26/07/2013,
140300,CORONA ENERGY RETAIL 4 LTD,842006131,26,282.99,GAS,26/07/2013,
140300,CORONA ENERGY RETAIL 4 LTD,842006131,27,242.61,GAS,26/07/2013,
140300,CORONA ENERGY RETAIL 4 LTD,842006131,28,592.32,GAS,26/07/2013,
140300,CORONA ENERGY RETAIL 4 LTD,842006131,29,191.39,GAS,26/07/2013,
140300,CORONA ENERGY RETAIL 4 LTD,842006131,30,480.98,GAS,26/07/2013,
140300,CORONA ENERGY RETAIL 4 LTD,842006131,31,660.59,GAS,26/07/2013,
140300,CORONA ENERGY RETAIL 4 LTD,842006131,32,449.85,GAS,26/07/2013,
140301,CORONA ENERGY RETAIL 4 LTD,842006132,1,434.9,GAS,26/07/2013,"11,518.71"
140301,CORONA ENERGY RETAIL 4 LTD,842006132,2,238.42,GAS,26/07/2013,
140301,CORONA ENERGY RETAIL 4 LTD,842006132,3,394.75,GAS,26/07/2013,
140301,CORONA ENERGY RETAIL 4 LTD,842006132,4,386.76,GAS,26/07/2013,
140301,CORONA ENERGY RETAIL 4 LTD,842006132,5,953.69,GAS,26/07/2013,
140301,CORONA ENERGY RETAIL 4 LTD,842006132,6,284.45,GAS,26/07/2013,
140301,CORONA ENERGY RETAIL 4 LTD,842006132,7,65.7,GAS,26/07/2013,
140301,CORONA ENERGY RETAIL 4 LTD,842006132,8,126.15,GAS,26/07/2013,
140301,CORONA ENERGY RETAIL 4 LTD,842006132,9,502.28,GAS,26/07/2013,
140301,CORONA ENERGY RETAIL 4 LTD,842006132,10,238.29,GAS,26/07/2013,
140301,CORONA ENERGY RETAIL 4 LTD,842006132,11,588.72,GAS,26/07/2013,
140301,CORONA ENERGY RETAIL 4 LTD,842006132,12,"1,386.10",GAS,26/07/2013,
140301,CORONA ENERGY RETAIL 4 LTD,842006132,13,141.65,GAS,26/07/2013,
140301,CORONA ENERGY RETAIL 4 LTD,842006132,14,524.22,GAS,26/07/2013,
140301,CORONA ENERGY RETAIL 4 LTD,842006132,15,164.44,GAS,26/07/2013,
140301,CORONA ENERGY RETAIL 4 LTD,842006132,16,440.55,GAS,26/07/2013,
140301,CORONA ENERGY RETAIL 4 LTD,842006132,17,53.4,GAS,26/07/2013,
140301,CORONA ENERGY RETAIL 4 LTD,842006132,18,298.56,GAS,26/07/2013,
140301,CORONA ENERGY RETAIL 4 LTD,842006132,19,238.93,GAS,26/07/2013,
140301,CORONA ENERGY RETAIL 4 LTD,842006132,20,412.97,GAS,26/07/2013,
140301,CORONA ENERGY RETAIL 4 LTD,842006132,21,246.39,GAS,26/07/2013,
140301,CORONA ENERGY RETAIL 4 LTD,842006132,22,223.79,GAS,26/07/2013,
140301,CORONA ENERGY RETAIL 4 LTD,842006132,23,242.55,GAS,26/07/2013,
140301,CORONA ENERGY RETAIL 4 LTD,842006132,24,654.14,GAS,26/07/2013,
140301,CORONA ENERGY RETAIL 4 LTD,842006132,25,346.2,GAS,26/07/2013,
140301,CORONA ENERGY RETAIL 4 LTD,842006132,26,346.15,GAS,26/07/2013,
140301,CORONA ENERGY RETAIL 4 LTD,842006132,27,528.09,GAS,26/07/2013,
140301,CORONA ENERGY RETAIL 4 LTD,842006132,28,307.66,GAS,26/07/2013,
140301,CORONA ENERGY RETAIL 4 LTD,842006132,29,177.95,GAS,26/07/2013,
140301,CORONA ENERGY RETAIL 4 LTD,842006132,30,381.62,GAS,26/07/2013,
140301,CORONA ENERGY RETAIL 4 LTD,842006132,31,189.24,GAS,26/07/2013,
140303,CORONA ENERGY RETAIL 4 LTD,842006133,1,323.8,GAS,26/07/2013,"16,770.16"
140303,CORONA ENERGY RETAIL 4 LTD,842006133,2,217.98,GAS,26/07/2013,
140303,CORONA ENERGY RETAIL 4 LTD,842006133,3,216.48,GAS,26/07/2013,
140303,CORONA ENERGY RETAIL 4 LTD,842006133,4,478.89,GAS,26/07/2013,
140303,CORONA ENERGY RETAIL 4 LTD,842006133,5,844.19,GAS,26/07/2013,
140303,CORONA ENERGY RETAIL 4 LTD,842006133,6,"1,174.01",GAS,26/07/2013,
140303,CORONA ENERGY RETAIL 4 LTD,842006133,7,"1,278.34",GAS,26/07/2013,
140303,CORONA ENERGY RETAIL 4 LTD,842006133,8,151.52,GAS,26/07/2013,
140303,CORONA ENERGY RETAIL 4 LTD,842006133,9,178.29,GAS,26/07/2013,
140303,CORONA ENERGY RETAIL 4 LTD,842006133,10,351.52,GAS,26/07/2013,
140303,CORONA ENERGY RETAIL 4 LTD,842006133,11,232.71,GAS,26/07/2013,
140303,CORONA ENERGY RETAIL 4 LTD,842006133,12,158.84,GAS,26/07/2013,
140303,CORONA ENERGY RETAIL 4 LTD,842006133,13,"1,312.08",GAS,26/07/2013,
140303,CORONA ENERGY RETAIL 4 LTD,842006133,14,328.02,GAS,26/07/2013,
140303,CORONA ENERGY RETAIL 4 LTD,842006133,15,111.3,GAS,26/07/2013,
140303,CORONA ENERGY RETAIL 4 LTD,842006133,16,252.04,GAS,26/07/2013,
140303,CORONA ENERGY RETAIL 4 LTD,842006133,17,281.64,GAS,26/07/2013,
140303,CORONA ENERGY RETAIL 4 LTD,842006133,18,465.18,GAS,26/07/2013,
140303,CORONA ENERGY RETAIL 4 LTD,842006133,19,5.1,GAS,26/07/2013,
140303,CORONA ENERGY RETAIL 4 LTD,842006133,20,182.88,GAS,26/07/2013,
140303,CORONA ENERGY RETAIL 4 LTD,842006133,21,540.95,GAS,26/07/2013,
140303,CORONA ENERGY RETAIL 4 LTD,842006133,22,257.87,GAS,26/07/2013,
140303,CORONA ENERGY RETAIL 4 LTD,842006133,23,258.86,GAS,26/07/2013,
140303,CORONA ENERGY RETAIL 4 LTD,842006133,24,113.99,GAS,26/07/2013,
140303,CORONA ENERGY RETAIL 4 LTD,842006133,25,344.62,GAS,26/07/2013,
140303,CORONA ENERGY RETAIL 4 LTD,842006133,26,159.37,GAS,26/07/2013,
140303,CORONA ENERGY RETAIL 4 LTD,842006133,27,592.35,GAS,26/07/2013,
140303,CORONA ENERGY RETAIL 4 LTD,842006133,28,893.45,GAS,26/07/2013,
140303,CORONA ENERGY RETAIL 4 LTD,842006133,29,"1,030.56",GAS,26/07/2013,
140303,CORONA ENERGY RETAIL 4 LTD,842006133,30,"1,135.16",GAS,26/07/2013,
140303,CORONA ENERGY RETAIL 4 LTD,842006133,31,"1,005.07",GAS,26/07/2013,
140303,CORONA ENERGY RETAIL 4 LTD,842006133,32,"1,149.15",GAS,26/07/2013,
140303,CORONA ENERGY RETAIL 4 LTD,842006133,33,743.95,GAS,26/07/2013,
140304,CORONA ENERGY RETAIL 4 LTD,842006134,1,648.77,GAS,26/07/2013,"5,451.16"
140304,CORONA ENERGY RETAIL 4 LTD,842006134,2,383.46,GAS,26/07/2013,
140304,CORONA ENERGY RETAIL 4 LTD,842006134,3,360.14,GAS,26/07/2013,
140304,CORONA ENERGY RETAIL 4 LTD,842006134,4,500.83,GAS,26/07/2013,
140304,CORONA ENERGY RETAIL 4 LTD,842006134,5,114.97,GAS,26/07/2013,
140304,CORONA ENERGY RETAIL 4 LTD,842006134,6,234.55,GAS,26/07/2013,
140304,CORONA ENERGY RETAIL 4 LTD,842006134,7,369.24,GAS,26/07/2013,
140304,CORONA ENERGY RETAIL 4 LTD,842006134,8,18.3,GAS,26/07/2013,
140304,CORONA ENERGY RETAIL 4 LTD,842006134,9,491.76,GAS,26/07/2013,
140304,CORONA ENERGY RETAIL 4 LTD,842006134,10,33.24,GAS,26/07/2013,
140304,CORONA ENERGY RETAIL 4 LTD,842006134,11,313.16,GAS,26/07/2013,
140304,CORONA ENERGY RETAIL 4 LTD,842006134,12,252.97,GAS,26/07/2013,
140304,CORONA ENERGY RETAIL 4 LTD,842006134,13,484.8,GAS,26/07/2013,
140304,CORONA ENERGY RETAIL 4 LTD,842006134,14,297.55,GAS,26/07/2013,
140304,CORONA ENERGY RETAIL 4 LTD,842006134,15,484.55,GAS,26/07/2013,
140304,CORONA ENERGY RETAIL 4 LTD,842006134,16,462.87,GAS,26/07/2013,
230713H,G WORRALL & SON LIMITED=======,100558,1,325,TACTICAL DAY TO DAY,26/07/2013,325
230713H,AFFINITY WATER,101025082,1,398,CURRENT HYDRANT COSTS,26/07/2013,398
220713H,*SPRUE SAFETY PRODUCTS LTD====,1048686,1,"1,516.80",FIRE DETECTORS,26/07/2013,"1,516.80"
800022010,JAMES HUNTER (OUTFITTERS) LTD=,107145,1,283.77,CLOTHING,26/07/2013,283.77
800022011,JAMES HUNTER (OUTFITTERS) LTD=,107146,1,283.77,CLOTHING,26/07/2013,283.77
800022047,REDFERN TRAVEL LTD,1102160,1,264.8,PUBLIC TRANSPORT,26/07/2013,264.8
800022044,REDFERN TRAVEL LTD,1107005,1,261.7,SUBSISTENCE,26/07/2013,261.7
800022070,REDFERN TRAVEL LTD,1107389,1,734.8,PUBLIC TRANSPORT,26/07/2013,734.8
800022083,REDFERN TRAVEL LTD,1111152,1,308.68,PUBLIC TRANSPORT,26/07/2013,308.68
800022080,REDFERN TRAVEL LTD,1111192,1,403,OVERSEAS TRAVEL,26/07/2013,403
800022084,REDFERN TRAVEL LTD,1112279,1,263.7,PUBLIC TRANSPORT,26/07/2013,263.7
800022092,REDFERN TRAVEL LTD,1114072,1,371.1,PUBLIC TRANSPORT,26/07/2013,371.1
120713C,BDO LLP,1194923,1,"5,778.00",PROFESSIONAL SERVICES,26/07/2013,"6,171.00"
120713C,BDO LLP,1194923,2,393,PROFESSIONAL SERVICES,26/07/2013,
230713H,GRANGEWOOD PLASTIC PACKAGING,120973 GBP,1,162,STATIONERY CONSUMABLES,26/07/2013,304
230713H,GRANGEWOOD PLASTIC PACKAGING,120973 GBP,2,142,STATIONERY CONSUMABLES,26/07/2013,
140296,BOURNE CONSTRUCTION COMPANY,13/447,1,"2,800.00",STRATEGIC (NON CYCLICAL),26/07/2013,"9,835.00"
140296,BOURNE CONSTRUCTION COMPANY,13/447,2,"7,035.00",STRATEGIC (NON CYCLICAL),26/07/2013,
140296,BOURNE CONSTRUCTION COMPANY,13/448,1,"1,250.00",STRATEGIC (NON CYCLICAL),26/07/2013,"2,350.00"
140296,BOURNE CONSTRUCTION COMPANY,13/448,2,"1,100.00",STRATEGIC (NON CYCLICAL),26/07/2013,
140296,BOURNE CONSTRUCTION COMPANY,13/449,1,425,STRATEGIC (NON CYCLICAL),26/07/2013,675
140296,BOURNE CONSTRUCTION COMPANY,13/449,2,250,STRATEGIC (NON CYCLICAL),26/07/2013,
140297,THAMES WATER UTILITIES LTD====,13752-86795G,1,469.52,WATER & SEWERAGE RATES,26/07/2013,469.52
180713H,BRITISH TELECOMMUNICATIONS PLC,145688,1,"2,800.00",TELECOMMUNICATIONS,26/07/2013,"16,407.00"
180713H,BRITISH TELECOMMUNICATIONS PLC,145688,2,"13,607.00",TELECOMMUNICATIONS,26/07/2013,
230713H,COMMUNITIES & LOCAL GOVERNMENT,1800018727,1,373.87,VEHICLES NFWT,26/07/2013,373.87
180713H,COMMUNITIES & LOCAL GOVERNMENT,1800018825,1,"101,452.20",MAINTENANCE & SUPPORT,26/07/2013,"109,476.30"
180713H,COMMUNITIES & LOCAL GOVERNMENT,1800018825,2,"8,024.10",MAINTENANCE & SUPPORT,26/07/2013,
230713H,B NOKES CONTRACTS LTD,1818,1,280,TACTICAL DAY TO DAY,26/07/2013,280
230713H,B NOKES CONTRACTS LTD,1819,1,315,TACTICAL DAY TO DAY,26/07/2013,315
190713C,B NOKES CONTRACTS LTD,1829,1,"44,012.45",DEVELOPMENT  EXPENSES-CONTRACT,26/07/2013,"44,012.45"
230713E,GRADIENT CONSULTANTS LLP======,1854,1,61.96,PROF FEES-MISCELLANEOUS,26/07/2013,800.21
230713E,GRADIENT CONSULTANTS LLP======,1854,2,242.57,PROF FEES-MISCELLANEOUS,26/07/2013,
230713E,GRADIENT CONSULTANTS LLP======,1854,3,185.88,PROF FEES-MISCELLANEOUS,26/07/2013,
230713E,GRADIENT CONSULTANTS LLP======,1854,4,61.96,PROF FEES-MISCELLANEOUS,26/07/2013,
230713E,GRADIENT CONSULTANTS LLP======,1854,5,123.92,PROF FEES-MISCELLANEOUS,26/07/2013,
230713E,GRADIENT CONSULTANTS LLP======,1854,6,123.92,PROF FEES-MISCELLANEOUS,26/07/2013,
230713E,GRADIENT CONSULTANTS LLP======,1855,1,290.02,ASBESTOS,26/07/2013,"5,358.85"
230713E,GRADIENT CONSULTANTS LLP======,1855,2,290.02,ASBESTOS,26/07/2013,
230713E,GRADIENT CONSULTANTS LLP======,1855,3,52.74,ASBESTOS,26/07/2013,
230713E,GRADIENT CONSULTANTS LLP======,1855,4,290.02,ASBESTOS,26/07/2013,
230713E,GRADIENT CONSULTANTS LLP======,1855,5,295.3,ASBESTOS,26/07/2013,
230713E,GRADIENT CONSULTANTS LLP======,1855,6,295.3,ASBESTOS,26/07/2013,
230713E,GRADIENT CONSULTANTS LLP======,1855,7,290.02,ASBESTOS,26/07/2013,
230713E,GRADIENT CONSULTANTS LLP======,1855,8,290.02,ASBESTOS,26/07/2013,
230713E,GRADIENT CONSULTANTS LLP======,1855,9,290.02,ASBESTOS,26/07/2013,
230713E,GRADIENT CONSULTANTS LLP======,1855,10,290.02,ASBESTOS,26/07/2013,
230713E,GRADIENT CONSULTANTS LLP======,1855,11,290.02,ASBESTOS,26/07/2013,
230713E,GRADIENT CONSULTANTS LLP======,1855,12,290.02,ASBESTOS,26/07/2013,
230713E,GRADIENT CONSULTANTS LLP======,1855,13,290.02,ASBESTOS,26/07/2013,
230713E,GRADIENT CONSULTANTS LLP======,1855,14,290.02,ASBESTOS,26/07/2013,
230713E,GRADIENT CONSULTANTS LLP======,1855,15,290.02,ASBESTOS,26/07/2013,
230713E,GRADIENT CONSULTANTS LLP======,1855,16,96.23,ASBESTOS,26/07/2013,
230713E,GRADIENT CONSULTANTS LLP======,1855,17,242.57,ASBESTOS,26/07/2013,
230713E,GRADIENT CONSULTANTS LLP======,1855,18,290.02,ASBESTOS,26/07/2013,
230713E,GRADIENT CONSULTANTS LLP======,1855,19,202,ASBESTOS,26/07/2013,
230713E,GRADIENT CONSULTANTS LLP======,1855,20,202,ASBESTOS,26/07/2013,
230713E,GRADIENT CONSULTANTS LLP======,1855,21,202.45,ASBESTOS,26/07/2013,
230713H,CARPETS & FLOOR COVERS DIRECT=,1937,1,"2,550.26",FIXTURES & FITTINGS,26/07/2013,"2,550.26"
230713H,CARPETS & FLOOR COVERS DIRECT=,1938,1,559.84,FIXTURES & FITTINGS,26/07/2013,559.84
190713C,SOUTHERN ASBESTOS SERVICES LTD,217410,1,750,ASBESTOS,26/07/2013,"1,350.00"
190713C,SOUTHERN ASBESTOS SERVICES LTD,217410,2,600,ASBESTOS,26/07/2013,
190713C,BRISTOL UNIFORMS LTD==========,219475,1,"3,624.17",CLOTHING,26/07/2013,"3,724.17"
190713C,BRISTOL UNIFORMS LTD==========,219475,2,100,CLOTHING,26/07/2013,
120713H,STORM TECHNOLOGIES============,230379,1,"1,050.00",REMOVALS,26/07/2013,"1,050.00"
100713C,STORM TECHNOLOGIES============,230416,1,611.4,ACQUISITIONS,26/07/2013,704.93
100713C,STORM TECHNOLOGIES============,230416,2,93.53,ACQUISITIONS,26/07/2013,
230713H,BISHOP CREIGHTON HSE SETTLEMNT,2641,1,665,COMMUNITY RELATIONS,26/07/2013,665
800021763,*BANNER BUSINESS SUPPLIES LTD=,26641116,1,165.6,STATIONERY CONSUMABLES,26/07/2013,566.72
800021763,*BANNER BUSINESS SUPPLIES LTD=,26641116,2,220.8,STATIONERY CONSUMABLES,26/07/2013,
800021763,*BANNER BUSINESS SUPPLIES LTD=,26641116,3,180.32,STATIONERY CONSUMABLES,26/07/2013,
230713H,BISHOP CREIGHTON HSE SETTLEMNT,2704,1,350,COMMUNITY RELATIONS,26/07/2013,350
230713H,DRAIN CONTROL=================,29647,1,838,TACTICAL DAY TO DAY,26/07/2013,838
190713C,EXPRESS VENDING LIMITED=======,327954,1,884,CATERING EQUIPMENT,26/07/2013,884
230713E,R B OF KINGSTON UPON THAMES===,33284085,1,400,COMMUNITY RELATIONS,26/07/2013,400
180713C,COMPUTACENTRE================,3804831423,1,157.66,ACQUISITIONS,26/07/2013,269.02
180713C,COMPUTACENTRE================,3804831423,2,46.31,ACQUISITIONS,26/07/2013,
180713C,COMPUTACENTRE================,3804831423,3,65.05,ACQUISITIONS,26/07/2013,
800022099,*BURLINGTON UNIFORMS LTD,419173,1,191.87,CLOTHING,26/07/2013,575.61
800022099,*BURLINGTON UNIFORMS LTD,419173,2,191.87,CLOTHING,26/07/2013,
800022099,*BURLINGTON UNIFORMS LTD,419173,3,191.87,CLOTHING,26/07/2013,
180713C,SPORTSAFE UK LTD==============,446823,1,61.51,GYM EQUIPMENT,26/07/2013,496.09
180713C,SPORTSAFE UK LTD==============,446823,2,207.76,GYM EQUIPMENT,26/07/2013,
180713C,SPORTSAFE UK LTD==============,446823,3,73.94,GYM EQUIPMENT,26/07/2013,
180713C,SPORTSAFE UK LTD==============,446823,4,103.88,GYM EQUIPMENT,26/07/2013,
180713C,SPORTSAFE UK LTD==============,446823,5,49,GYM EQUIPMENT,26/07/2013,
180713C,SPORTSAFE UK LTD==============,446824,1,103.88,GYM EQUIPMENT,26/07/2013,269.82
180713C,SPORTSAFE UK LTD==============,446824,2,73.94,GYM EQUIPMENT,26/07/2013,
180713C,SPORTSAFE UK LTD==============,446824,3,92,GYM EQUIPMENT,26/07/2013,
230713E,DELL SOFTWARE (UK) LTD=======,460101577,1,"1,250.00",MAINTENANCE & SUPPORT,26/07/2013,"1,250.00"
140297,THAMES WATER UTILITIES LTD====,4894198142U,1,353.84,WATER & SEWERAGE RATES,26/07/2013,353.84
230713H,FAHEY BUILDERS LTD============,5166,1,"4,980.00",STRATEGIC (NON CYCLICAL),26/07/2013,"4,980.00"
800021822,*GREENHAM TRADING LTD=========,5596401,1,62.74,OPERATIONAL EQUIP-PURCHASE,26/07/2013,337.74
800021822,*GREENHAM TRADING LTD=========,5596401,2,15.5,HYGIENE,26/07/2013,
800021822,*GREENHAM TRADING LTD=========,5596401,3,3.57,HYGIENE,26/07/2013,
800021822,*GREENHAM TRADING LTD=========,5596401,4,26.97,HYGIENE,26/07/2013,
800021822,*GREENHAM TRADING LTD=========,5596401,5,28.1,HYGIENE,26/07/2013,
